Workbook

Sheet Gusset Plates Rating
A1: Gusset Plates Analysis & Rating | G1: OAH | H1: =TODAY() -> 2009-06-02 | K1: Disclaimer Note: The Office of Structural Engineering is providing this spreadsheet to facilitate the use of FHWA’s guidance for rating gusset plates on truss bridges. While bridge rating personnel are encouraged to use this spreadsheet for the reason of standardizing the rating procedures, they are responsible for the accuracy of input data, output results, and all calculations ensuring safety of the public.
A2: Load Factor Method
A3: =IF($C$58=6,"Inventory Rating","Operating Rating") -> Operating Rating | C3: =IF(A3="Inventory Rating",1,2) -> 2
G4: Joint Rating Output Summary | K4: *Capacity/Demand (C/D) | M4: Rating Factor (RF= Capacity - lf1*DL / lf2*LL+I)
A5: Bridge: | G5: Check Type | K5: Message | L5: Ratio | M5: Message | N5: Ratio
A6: SFN: | G6: =$A$105 -> 1: Gusset Plate Minimum Edge Stiffness | K6: =$AC$105 -> OK | L6: =IF($AB$105=0,"N/A",$AB$105) -> N/A | M6: =$AC$105 -> OK | N6: =L6 -> N/A
A7: GPS: | G7: =$A$122 -> 2: Gusset Plate Local Compression Buckling Under Whitmore Effective Width | K7: =$AC$122 -> OK | L7: =IF($AB$122=0,"N/A",$AB$122) -> N/A | M7: =IF(N7<1,"NG","OK") -> OK | N7: =IF($AA$122=0,"N/A",$AA$122) -> N/A
G8: =$A$145 -> 3: Minimum Rivet Count Requirement | K8: =$AC$145 -> OK | L8: =IF($AB$145=0,"N/A",$AB$145) -> 1.379310345 | M8: OK | N8: =IF($AA$145=0,"N/A",$AA$145) -> 2.24140602
A9: Functional Class: | G9: =$A$176 -> 4: Gusset Plate Local Tension Yield and Fracture | K9: =$AC$176 -> OK | L9: =IF($AB$176=0,"N/A",$AB$176) -> 4.111275599 | M9: OK | N9: =IF($AA$176=0,"N/A",$AA$176) -> 9.272190919
A10: ADT: | G10: =$A$203 -> 5: Gusset Plate Axial Tension & Shear Rupture Resistance (Block Shear) | K10: =$AC$203 -> OK | L10: =IF($AB$203=0,"N/A",$AB$203) -> 3.646042267 | M10: OK | N10: =IF($AA$203=0,"N/A",$AA$203) -> 8.61193765
A11: Loading Truck : | G11: =$A$240 -> 6: Members Tear Out (Block Shear) | K11: =$AC$240 -> OK | L11: =IF($AB$240=0,"N/A",$AB$240) -> 3.928002869 | M11: OK | N11: =IF($AA$240=0,"N/A",$AA$240) -> 9.868318615
A12: Lanes: | G12: =$A$263 -> 7: Gusset Plate Combined Planes Shear Rupture Resistance | K12: =$AC$263 -> OK | L12: =IF($AB$263=0,"N/A",$AB$263) -> 3.541370745 | M12: OK | N12: =IF($AA$263=0,"N/A",$AA$263) -> 7.743401586
G13: =$A$343 -> 8: Gusset Plate Global Shear Yielding and Fracturing Requirement (Shear Only) | K13: =$AC$343 -> OK | L13: =IF($AB$343=0,"N/A",$AB$343) -> 2.407295903 | M13: OK | N13: =IF($AA$343=0,"N/A",$AA$343) -> 2.281961009
K14: * For Informational & Design Purposes | M14: Minimum R.F. = | N14: =MIN(N7:N13) -> 2.24140602
A17: Plans Year:
A18: Year Built:
A19: Gusset Plate Type: | G19: Scroll Trucks | I19: =$B$58 -> ODOT Truck Train | J19: =CONCATENATE(" (",A3,")") -> (Operating Rating)
A20: Gusset Plate Steel Fy | B20: 33000 | C20: psi | I20: NOTE: JOINTS 111-200 NOT USED
A21: Gusset Plate Steel Fu | B21: 60000 | C21: psi | G21: Scroll Joints | I21: Joint ID = | J21: =$C$48 -> 209 | K21: =B48 -> U9
A22: Gusset Plate Steel E: | B22: 29000000 | C22: psi | I22: Total Thick. = | J22: =MIN(D91:D95,E91:E95)+MIN(F91:F95,G91:G95) -> 1.125
A23: Connectors Diameter: | B23: 0.875 | C23: inch (bolts/rivets) -----------> | D23: =IF(B20>=100000,0,IF(B23<=1.25,0.15,0)) -> 0.15 | E23: = Beta
A24: Connectors Steel Fy: | C24: psi (bolts/rivets) | G24: Live Load % Reduction: | I24: =$E$58 -> 100 | J24: %
A26: k for columns= | B26: 1.2 | C26: Suggested Defaults Values | G26: Note: The above buttons maybe used to scroll values; scrolling will not change the input.
A27: Shear Yield Reduction Factor Ω: | B27: 0.74
A28: Shear Fracture Load Factor Ø: | B28: 0.85
A29: Tension Load Factor Ø: | B29: 0.9
A30: Compression Load Factor Ø: | B30: 0.85
A31: Bearing Load Factor Ø: | B31: 0.9
A32: Block Shear Load Factor Ø: | B32: 0.85
A34: Load Factor for Dead Loads f1: | B34: 1.3
A35: Load Factor for Live Loads f2: | B35: =IF($C$58=6,2.17,1.3) -> 1.3
I36: 6
A37: Cc = | B37: =SQRT(2*PI()^2*$B$22/$B$20) -> 131.7064062 | G37: 3 | H37: Connectors Type: | I37: =IF(I36=1,"1- Connector Fy Shown Above",IF(I36=2,"2- Low Carbon Steel Bolts ASTM A-307 & Ribbed Bolts",IF(I36=3,"3- Power Driven Rivets ASTM A-502 Grade 1 or ASTM A-141",IF(I36=4,"4- Structural Steel Rivets High Dtrength ASTM A-502 Grade 2",IF(I36=5,"5- Unknown Rivet Type Constructed Prior to 1936",IF(I36=6,"6- Unknown Rivet Type Constructed After 1936",IF(I36=7,"7- ASTM A-325",IF(I36=8,"8- ASTM A-490","Error")))))))) -> 6- Unknown Rivet Type Constructed After 1936
A40: Factored Plate Tension Stress | B40: Factored Plate Compression Stress | C40: Factored Plate Shear Stress | F40: Factored Plate Bearing Stress (ksi) | G40: Factored Bolts/Rivet Shear Stress (ksi)
A41: Based on Gross/Net Area (ksi) | B41: Based on Column Action | C41: Yield Based on Gross Area (ksi) | D41: Fracture Based on Net Area (ksi) | E41: Block Shear (ksi)
A42: =IF($C$3=1,$B$29*$B$20/1000,IF($C$3=2, $B$29*$B$20/1000,"Error")) -> 29.7 | B42: See Below for KL/r | C42: =IF($C$3=1,B27*0.58*$B$20/1000,IF($C$3=2, B27*0.58*$B$20/1000,"Error")) -> 14.1636 | D42: =IF($C$3=1,B28*0.58*$B$20/1000,IF($C$3=2, B28*0.58*$B$20/1000,"Error")) -> 16.269 | E42: =IF($C$3=1,B32*0.58*$B$20/1000,IF($C$3=2, B32*0.58*$B$20/1000,"Error")) -> 16.269 | F42: =IF($C$3=1,$B$31*$B$20/1000,IF($C$3=2, $B$31*$B$20/1000,"Error")) -> 29.7 | G42: =IF(I36=1,$B$27*$B$20/1000,IF(I36=2,30,IF(I36=3,27,IF(I36=4,30,IF(I36=5,18,IF(I36=6,21,IF(I36=7,35,IF(I36=8,43,"Error")))))))) -> 21
C47: NOTE: JOINTS 111-200 NOT USED
A48: Check Joint No: | B48: =LOOKUP($C$48,'Info Tables'!A19:A58,'Info Tables'!B19:B58) -> U9 | C48: 209 | D48: Joint ID = | E48: =$C$48 -> 209 | G48: U/L Chord (LT) | H48: U/L Chord (RT) | I48: Diagonal (LT) | J48: Diagonal (RT) | K48: Vertical
A49: Inner Gusset Total Original Thickness: | B49: =(LOOKUP($C$48,'Info Tables'!A19:A58,'Info Tables'!D19:D58)) -> 0.5625 | C49: inch | F49: For tensile area remaining inner gusset | G49: =IF($B$67="None","N/A",LOOKUP($B$67,'Info Tables'!$A$119:$A$196,'Info Tables'!$G$119:$G$196)) -> 1 | H49: =IF($B$68="None","N/A",LOOKUP($B$68,'Info Tables'!$A$119:$A$196,'Info Tables'!$G$119:$G$196)) -> N/A | I49: =IF($B$69="None","N/A",LOOKUP($B$69,'Info Tables'!$A$119:$A$196,'Info Tables'!$G$119:$G$196)) -> 1 | J49: =IF($B$70="None","N/A",LOOKUP($B$70,'Info Tables'!$A$119:$A$196,'Info Tables'!$G$119:$G$196)) -> 1 | K49: =IF($B$71="None","N/A",LOOKUP($B$71,'Info Tables'!$A$119:$A$196,'Info Tables'!$G$119:$G$196)) -> 1
A50: Inner Gusset Horizontal Shear (Global) % Remaining: | B50: =(LOOKUP($C$48,'Info Tables'!A19:A58,'Info Tables'!P19:P58)) -> 1.39 | C50: From the Original Thickness of Gusset After Reduction …. For Whitmore Area | G50: =IF($B$67="None","N/A",LOOKUP($B$67,'Info Tables'!A119:A196,'Info Tables'!H119:H196)) -> 1 | H50: =IF($B$68="None","N/A",LOOKUP($B$68,'Info Tables'!A119:A196,'Info Tables'!H119:H196)) -> N/A | I50: =IF($B$69="None","N/A",LOOKUP($B$69,'Info Tables'!A119:A196,'Info Tables'!H119:H196)) -> 1 | J50: =IF($B$70="None","N/A",LOOKUP($B$70,'Info Tables'!A119:A196,'Info Tables'!H119:H196)) -> 1 | K50: =IF($B$71="None","N/A",LOOKUP($B$71,'Info Tables'!A119:A196,'Info Tables'!H119:H196)) -> 1
A51: Inner Gusset Vertical Shear (Global) % Remaining: | B51: =(LOOKUP($C$48,'Info Tables'!A19:A58,'Info Tables'!R19:R58)) -> 1 | C51: From the Original Thickness of Gusset After Reduction….. For Shear Area | G51: =IF($B$67="None","N/A",LOOKUP($B$67,'Info Tables'!A119:A196,'Info Tables'!I119:I196)) -> 1 | H51: =IF($B$68="None","N/A",LOOKUP($B$68,'Info Tables'!A119:A196,'Info Tables'!I119:I196)) -> N/A | I51: =IF($B$69="None","N/A",LOOKUP($B$69,'Info Tables'!A119:A196,'Info Tables'!I119:I196)) -> 1 | J51: =IF($B$70="None","N/A",LOOKUP($B$70,'Info Tables'!A119:A196,'Info Tables'!I119:I196)) -> 1 | K51: =IF($B$71="None","N/A",LOOKUP($B$71,'Info Tables'!A119:A196,'Info Tables'!I119:I196)) -> 1
A52: Maximum Inner Unstiffened Edge Thickness | B52: =(LOOKUP($C$48,'Info Tables'!A19:A58,'Info Tables'!T19:T58)) -> 1 | C52: From the Original Thickness of Gusset After Reduction….. For Rivet Count | G52: =IF($B67="None","N/A",LOOKUP($B67,'Info Tables'!$A$119:$A$196,'Info Tables'!$J$119:$J$196)) -> 1 | H52: =IF($B68="None","N/A",LOOKUP($B68,'Info Tables'!$A$119:$A$196,'Info Tables'!$J$119:$J$196)) -> N/A | I52: =IF($B69="None","N/A",LOOKUP($B69,'Info Tables'!$A$119:$A$196,'Info Tables'!$J$119:$J$196)) -> 1 | J52: =IF($B70="None","N/A",LOOKUP($B70,'Info Tables'!$A$119:$A$196,'Info Tables'!$J$119:$J$196)) -> 1 | K52: =IF($B71="None","N/A",LOOKUP($B71,'Info Tables'!$A$119:$A$196,'Info Tables'!$J$119:$J$196)) -> 1
A53: Outer Gusset Total Original Thickness: | B53: =(LOOKUP($C$48,'Info Tables'!A19:A58,'Info Tables'!D19:D58)) -> 0.5625 | C53: inch | F53: For tensile area remaining outer gusset | G53: =IF($B$67="None","N/A",LOOKUP($B$67,'Info Tables'!A119:A196,'Info Tables'!K119:K196)) -> 1 | H53: =IF($B$68="None","N/A",LOOKUP($B$68,'Info Tables'!$A$119:$A$196,'Info Tables'!K119:K196)) -> N/A | I53: =IF($B$69="None","N/A",LOOKUP($B$69,'Info Tables'!$A$119:$A$196,'Info Tables'!K119:K196)) -> 1 | J53: =IF($B$70="None","N/A",LOOKUP($B$70,'Info Tables'!$A$119:$A$196,'Info Tables'!K119:K196)) -> 1 | K53: =IF($B$71="None","N/A",LOOKUP($B$71,'Info Tables'!$A$119:$A$196,'Info Tables'!K119:K196)) -> 1
A54: Outer Gusset Horizontal Shear (Global) % Remaining: | B54: =(LOOKUP($C$48,'Info Tables'!A19:A58,'Info Tables'!Q19:Q58)) -> 1.39 | C54: From the Original Thickness of Gusset After Reduction …. For Whitmore Area | G54: =IF($B$67="None","N/A",LOOKUP($B$67,'Info Tables'!A119:A196,'Info Tables'!L119:L196)) -> 1 | H54: =IF($B$68="None","N/A",LOOKUP($B$68,'Info Tables'!A119:A196,'Info Tables'!L119:L196)) -> N/A | I54: =IF($B$69="None","N/A",LOOKUP($B$69,'Info Tables'!A119:A196,'Info Tables'!L119:L196)) -> 1 | J54: =IF($B$70="None","N/A",LOOKUP($B$70,'Info Tables'!A119:A196,'Info Tables'!L119:L196)) -> 1 | K54: =IF($B$71="None","N/A",LOOKUP($B$71,'Info Tables'!A119:A196,'Info Tables'!L119:L196)) -> 1
A55: Outer Gusset Vertical Shear (Global) % Remaining: | B55: =(LOOKUP($C$48,'Info Tables'!A19:A58,'Info Tables'!S19:S58)) -> 1 | C55: From the Original Thickness of Gusset After Reduction….. For Shear Area | G55: =IF($B$67="None","N/A",LOOKUP($B$67,'Info Tables'!A119:A196,'Info Tables'!M119:M196)) -> 1 | H55: =IF($B$68="None","N/A",LOOKUP($B$68,'Info Tables'!A119:A196,'Info Tables'!M119:M196)) -> N/A | I55: =IF($B$69="None","N/A",LOOKUP($B$69,'Info Tables'!A119:A196,'Info Tables'!M119:M196)) -> 1 | J55: =IF($B$70="None","N/A",LOOKUP($B$70,'Info Tables'!A119:A196,'Info Tables'!M119:M196)) -> 1 | K55: =IF($B$71="None","N/A",LOOKUP($B$71,'Info Tables'!A119:A196,'Info Tables'!M119:M196)) -> 1
A56: Maximum Outer Unstiffened Edge Thickness | B56: =(LOOKUP($C$48,'Info Tables'!A19:A58,'Info Tables'!U19:U58)) -> 1 | C56: From the Original Thickness of Gusset After Reduction….. For Rivet Count | G56: =IF($B67="None","N/A",LOOKUP($B67,'Info Tables'!$A$119:$A$196,'Info Tables'!$N$119:$N$196)) -> 1 | H56: =IF($B68="None","N/A",LOOKUP($B68,'Info Tables'!$A$119:$A$196,'Info Tables'!$N$119:$N$196)) -> N/A | I56: =IF($B69="None","N/A",LOOKUP($B69,'Info Tables'!$A$119:$A$196,'Info Tables'!$N$119:$N$196)) -> 1 | J56: =IF($B70="None","N/A",LOOKUP($B70,'Info Tables'!$A$119:$A$196,'Info Tables'!$N$119:$N$196)) -> 1 | K56: =IF($B71="None","N/A",LOOKUP($B71,'Info Tables'!$A$119:$A$196,'Info Tables'!$N$119:$N$196)) -> 1
A57: Member % Reduction: | C57: From the Original Thickness of Base Plates (Worst Member at The Joint Based on Field Observations)
A58: Live Load Type: | B58: =IF(C58=1,"2F1",IF(C58=2,"3F1",IF(C58=3,"4F1",IF(C58=4,"5C1",IF(C58=5,"HS20-44",IF(C58=6,"Inventory",IF(C58=7,"ODOT Truck Train",""))))))) -> ODOT Truck Train | C58: 7 | D58: Live Load % Reduction: | E58: 100
A59: Rating Type: | B59: =A3 -> Operating Rating
A62: The cells below are locked; please call Omar Abu-Hajar, Office of Structural Engineering (614-387-1257) for any comments or questions.
A65: Member Factored Axial Loads From Truss Analysis:
A66: Location | B66: Member ID | C66: Member | D66: Dead Axial Factored Load For Both Plates (kips) | E66: Max. Compression Factored LL+I For Both Plates (kips) | F66: Max. Tension Factored LL+I For Both Plates (kips) | G66: Total Max. Compressive Factored Load For Both Plates (kips) | H66: Total Max. Tensile Factored Load For Both Plates (kips) | I66: Angle with Plate Axis (degrees) | J66: Member Type | K66: Member Ends Spliced at Joint Center ? | L66: Milled Butt Ends at Splice?
A67: U/L Chord (LT) | B67: =LOOKUP($C$48,'Info Tables'!A70:A109,'Info Tables'!B70:B109) -> 2091 | C67: =IF(B67="None","N/A",LOOKUP(B67,'Info Tables'!$A$119:$A$196,'Info Tables'!$B$119:$B$196)) -> U8 U9 | D67: =IF(B67="None","N/A",$B$34*LOOKUP(B67,'Member Loads'!$A$13:$A$102,'Member Loads'!$B$13:$B$102)) -> -556.01 | E67: =IF(B67="None","N/A",$B$35*($E$58/100)*(IF($B$58="2F1",LOOKUP(B67,'Member Loads'!$D$13:$D$102,'Member Loads'!$E$13:$E$102),IF($B$58="3F1",LOOKUP(B67,'Member Loads'!$H$13:$H$102,'Member Loads'!$I$13:$I$102),IF($B$58="4F1",LOOKUP(B67,'Member Loads'!$L$13:$L$102,'Member Loads'!$M$13:$M$102),IF($B$58="5C1",LOOKUP(B67,'Member Loads'!$P$13:$P$102,'Member Loads'!$Q$13:$Q$102),IF($B$58="HS20-44",LOOKUP(B67,'Member Loads'!$T$13:$T$102,'Member Loads'!$U$13:$U$102),IF($B$58="Inventory",LOOKUP(B67,'Member Loads'!$X$13:$X$102,'Member Loads'!$Y$13:$Y$102),LOOKUP(B67,'Member Loads'!$AB$13:$AB$102,'Member Loads'!$AC$13:$AC$102))))))))) -> -225.966 | F67: =IF(B67="None","N/A",$B$35*($E$58/100)*(IF($B$58="2F1",LOOKUP(B67,'Member Loads'!$D$13:$D$102,'Member Loads'!$F$13:$F$102),IF($B$58="3F1",LOOKUP(B67,'Member Loads'!$H$13:$H$102,'Member Loads'!$J$13:$J$102),IF($B$58="4F1",LOOKUP(B67,'Member Loads'!$L$13:$L$102,'Member Loads'!$N$13:$N$102),IF($B$58="5C1",LOOKUP(B67,'Member Loads'!$P$13:$P$102,'Member Loads'!$R$13:$R$102),IF($B$58="HS20-44",LOOKUP(B67,'Member Loads'!$T$13:$T$102,'Member Loads'!$V$13:$V$102),IF($B$58="Inventory",LOOKUP(B67,'Member Loads'!$X$13:$X$102,'Member Loads'!$Z$13:$Z$102),LOOKUP(B67,'Member Loads'!$AB$13:$AB$102,'Member Loads'!$AD$13:$AD$102))))))))) -> 0 | G67: =IF(B67="None","N/A",IF(D67+E67<=0,D67+E67,"N/A")) -> -781.976 | H67: =IF(B67="None","N/A",IF(D67+F67>=0,D67+F67,"N/A")) -> N/A | I67: =IF(B67="None","N/A",LOOKUP($C$48,'Info Tables'!A254:A293,'Info Tables'!C254:C293)) -> 0 | J67: =IF(AND(G67="N/A",$H$67="N/A"),"N/A",IF(AND(G67<0,$H$67="N/A"),"Compression",IF(AND(G67="N/A",$H$67>0),"Tension",IF(AND(G67<0,$H$67>0),"Reversal",IF(AND(G67=0,$H$67=0),"Dead","N/A"))))) -> Compression | K67: =IF(B67="None","N/A",LOOKUP(B67,'Info Tables'!$A$654:$A$731,'Info Tables'!$C$654:$C$731)) -> Yes | L67: =IF(OR(K67="No",K67="N/A"),"N/A",LOOKUP(B67,'Info Tables'!$A$654:$A$731,'Info Tables'!$D$654:$D$731)) -> Yes
A68: U/L Chord (RT) | B68: =LOOKUP($C$48,'Info Tables'!A70:A109,'Info Tables'!C70:C109) -> None | C68: =IF(B68="None","N/A",LOOKUP(B68,'Info Tables'!$A$119:$A$196,'Info Tables'!$B$119:$B$196)) -> N/A | D68: =IF(B68="None","N/A",$B$34*LOOKUP(B68,'Member Loads'!$A$13:$A$102,'Member Loads'!$B$13:$B$102)) -> N/A | E68: =IF(B68="None","N/A",$B$35*($E$58/100)*(IF($B$58="2F1",LOOKUP(B68,'Member Loads'!$D$13:$D$102,'Member Loads'!$E$13:$E$102),IF($B$58="3F1",LOOKUP(B68,'Member Loads'!$H$13:$H$102,'Member Loads'!$I$13:$I$102),IF($B$58="4F1",LOOKUP(B68,'Member Loads'!$L$13:$L$102,'Member Loads'!$M$13:$M$102),IF($B$58="5C1",LOOKUP(B68,'Member Loads'!$P$13:$P$102,'Member Loads'!$Q$13:$Q$102),IF($B$58="HS20-44",LOOKUP(B68,'Member Loads'!$T$13:$T$102,'Member Loads'!$U$13:$U$102),IF($B$58="Inventory",LOOKUP(B68,'Member Loads'!$X$13:$X$102,'Member Loads'!$Y$13:$Y$102),LOOKUP(B68,'Member Loads'!$AB$13:$AB$102,'Member Loads'!$AC$13:$AC$102))))))))) -> N/A | F68: =IF(B68="None","N/A",$B$35*($E$58/100)*(IF($B$58="2F1",LOOKUP(B68,'Member Loads'!$D$13:$D$102,'Member Loads'!$F$13:$F$102),IF($B$58="3F1",LOOKUP(B68,'Member Loads'!$H$13:$H$102,'Member Loads'!$J$13:$J$102),IF($B$58="4F1",LOOKUP(B68,'Member Loads'!$L$13:$L$102,'Member Loads'!$N$13:$N$102),IF($B$58="5C1",LOOKUP(B68,'Member Loads'!$P$13:$P$102,'Member Loads'!$R$13:$R$102),IF($B$58="HS20-44",LOOKUP(B68,'Member Loads'!$T$13:$T$102,'Member Loads'!$V$13:$V$102),IF($B$58="Inventory",LOOKUP(B68,'Member Loads'!$X$13:$X$102,'Member Loads'!$Z$13:$Z$102),LOOKUP(B68,'Member Loads'!$AB$13:$AB$102,'Member Loads'!$AD$13:$AD$102))))))))) -> N/A | G68: =IF(B68="None","N/A",IF(D68+E68<=0,D68+E68,"N/A")) -> N/A | H68: =IF(B68="None","N/A",IF(D68+F68>=0,D68+F68,"N/A")) -> N/A | I68: =IF(B68="None","N/A",LOOKUP($C$48,'Info Tables'!A254:A293,'Info Tables'!D254:D293)) -> N/A | J68: =IF(AND(G68="N/A",$H$68="N/A"),"N/A",IF(AND(G68<0,$H$68="N/A"),"Compression",IF(AND(G68="N/A",$H$68>0),"Tension",IF(AND(G68<0,$H$68>0),"Reversal",IF(AND(G68=0,$H$68=0),"Dead","N/A"))))) -> N/A | K68: =IF(B68="None","N/A",LOOKUP(B68,'Info Tables'!$A$654:$A$731,'Info Tables'!$C$654:$C$731)) -> N/A | L68: =IF(OR(K68="No",K68="N/A"),"N/A",LOOKUP(B68,'Info Tables'!$A$654:$A$731,'Info Tables'!$D$654:$D$731)) -> N/A
A69: Diagonal (LT) | B69: =LOOKUP($C$48,'Info Tables'!A70:A109,'Info Tables'!D70:D109) -> 2094 | C69: =IF(B69="None","N/A",LOOKUP(B69,'Info Tables'!$A$119:$A$196,'Info Tables'!$B$119:$B$196)) -> U9 L8 | D69: =IF(B69="None","N/A",$B$34*LOOKUP(B69,'Member Loads'!$A$13:$A$102,'Member Loads'!$B$13:$B$102)) -> 239.98 | E69: =IF(B69="None","N/A",$B$35*($E$58/100)*(IF($B$58="2F1",LOOKUP(B69,'Member Loads'!$D$13:$D$102,'Member Loads'!$E$13:$E$102),IF($B$58="3F1",LOOKUP(B69,'Member Loads'!$H$13:$H$102,'Member Loads'!$I$13:$I$102),IF($B$58="4F1",LOOKUP(B69,'Member Loads'!$L$13:$L$102,'Member Loads'!$M$13:$M$102),IF($B$58="5C1",LOOKUP(B69,'Member Loads'!$P$13:$P$102,'Member Loads'!$Q$13:$Q$102),IF($B$58="HS20-44",LOOKUP(B69,'Member Loads'!$T$13:$T$102,'Member Loads'!$U$13:$U$102),IF($B$58="Inventory",LOOKUP(B69,'Member Loads'!$X$13:$X$102,'Member Loads'!$Y$13:$Y$102),LOOKUP(B69,'Member Loads'!$AB$13:$AB$102,'Member Loads'!$AC$13:$AC$102))))))))) -> -22.672 | F69: =IF(B69="None","N/A",$B$35*($E$58/100)*(IF($B$58="2F1",LOOKUP(B69,'Member Loads'!$D$13:$D$102,'Member Loads'!$F$13:$F$102),IF($B$58="3F1",LOOKUP(B69,'Member Loads'!$H$13:$H$102,'Member Loads'!$J$13:$J$102),IF($B$58="4F1",LOOKUP(B69,'Member Loads'!$L$13:$L$102,'Member Loads'!$N$13:$N$102),IF($B$58="5C1",LOOKUP(B69,'Member Loads'!$P$13:$P$102,'Member Loads'!$R$13:$R$102),IF($B$58="HS20-44",LOOKUP(B69,'Member Loads'!$T$13:$T$102,'Member Loads'!$V$13:$V$102),IF($B$58="Inventory",LOOKUP(B69,'Member Loads'!$X$13:$X$102,'Member Loads'!$Z$13:$Z$102),LOOKUP(B69,'Member Loads'!$AB$13:$AB$102,'Member Loads'!$AD$13:$AD$102))))))))) -> 118.287 | G69: =IF(B69="None","N/A",IF(D69+E69<=0,D69+E69,"N/A")) -> N/A | H69: =IF(B69="None","N/A",IF(D69+F69>=0,D69+F69,"N/A")) -> 358.267 | I69: =IF(B69="None","N/A",LOOKUP($C$48,'Info Tables'!A254:A293,'Info Tables'!E254:E293)) -> 63.17 | J69: =IF(AND(G69="N/A",$H$69="N/A"),"N/A",IF(AND(G69<0,$H$69="N/A"),"Compression",IF(AND(G69="N/A",$H$69>0),"Tension",IF(AND(G69<0,$H$69>0),"Reversal",IF(AND(G69=0,$H$69=0),"Dead","N/A"))))) -> Tension | K69: =IF(B69="None","N/A",LOOKUP(B69,'Info Tables'!$A$654:$A$731,'Info Tables'!$C$654:$C$731)) -> Yes | L69: =IF(OR(K69="No",K69="N/A"),"N/A",LOOKUP(B69,'Info Tables'!$A$654:$A$731,'Info Tables'!$D$654:$D$731)) -> No
A70: Diagonal (RT) | B70: =LOOKUP($C$48,'Info Tables'!A70:A109,'Info Tables'!E70:E109) -> 2092 | C70: =IF(B70="None","N/A",LOOKUP(B70,'Info Tables'!$A$119:$A$196,'Info Tables'!$B$119:$B$196)) -> U9 L10 | D70: =IF(B70="None","N/A",$B$34*LOOKUP(B70,'Member Loads'!$A$13:$A$102,'Member Loads'!$B$13:$B$102)) -> -566.54 | E70: =IF(B70="None","N/A",$B$35*($E$58/100)*(IF($B$58="2F1",LOOKUP(B70,'Member Loads'!$D$13:$D$102,'Member Loads'!$E$13:$E$102),IF($B$58="3F1",LOOKUP(B70,'Member Loads'!$H$13:$H$102,'Member Loads'!$I$13:$I$102),IF($B$58="4F1",LOOKUP(B70,'Member Loads'!$L$13:$L$102,'Member Loads'!$M$13:$M$102),IF($B$58="5C1",LOOKUP(B70,'Member Loads'!$P$13:$P$102,'Member Loads'!$Q$13:$Q$102),IF($B$58="HS20-44",LOOKUP(B70,'Member Loads'!$T$13:$T$102,'Member Loads'!$U$13:$U$102),IF($B$58="Inventory",LOOKUP(B70,'Member Loads'!$X$13:$X$102,'Member Loads'!$Y$13:$Y$102),LOOKUP(B70,'Member Loads'!$AB$13:$AB$102,'Member Loads'!$AC$13:$AC$102))))))))) -> -235.495 | F70: =IF(B70="None","N/A",$B$35*($E$58/100)*(IF($B$58="2F1",LOOKUP(B70,'Member Loads'!$D$13:$D$102,'Member Loads'!$F$13:$F$102),IF($B$58="3F1",LOOKUP(B70,'Member Loads'!$H$13:$H$102,'Member Loads'!$J$13:$J$102),IF($B$58="4F1",LOOKUP(B70,'Member Loads'!$L$13:$L$102,'Member Loads'!$N$13:$N$102),IF($B$58="5C1",LOOKUP(B70,'Member Loads'!$P$13:$P$102,'Member Loads'!$R$13:$R$102),IF($B$58="HS20-44",LOOKUP(B70,'Member Loads'!$T$13:$T$102,'Member Loads'!$V$13:$V$102),IF($B$58="Inventory",LOOKUP(B70,'Member Loads'!$X$13:$X$102,'Member Loads'!$Z$13:$Z$102),LOOKUP(B70,'Member Loads'!$AB$13:$AB$102,'Member Loads'!$AD$13:$AD$102))))))))) -> 0 | G70: =IF(B70="None","N/A",IF(D70+E70<=0,D70+E70,"N/A")) -> -802.035 | H70: =IF(B70="None","N/A",IF(D70+F70>=0,D70+F70,"N/A")) -> N/A | I70: =IF(B70="None","N/A",LOOKUP($C$48,'Info Tables'!A254:A293,'Info Tables'!F254:F293)) -> 33.31 | J70: =IF(AND(G70="N/A",$H$70="N/A"),"N/A",IF(AND(G70<0,$H$70="N/A"),"Compression",IF(AND(G70="N/A",$H$70>0),"Tension",IF(AND(G70<0,$H$70>0),"Reversal",IF(AND(G70=0,$H$70=0),"Dead","N/A"))))) -> Compression | K70: =IF(B70="None","N/A",LOOKUP(B70,'Info Tables'!$A$654:$A$731,'Info Tables'!$C$654:$C$731)) -> Yes | L70: =IF(OR(K70="No",K70="N/A"),"N/A",LOOKUP(B70,'Info Tables'!$A$654:$A$731,'Info Tables'!$D$654:$D$731)) -> Yes
A71: Vertical | B71: =LOOKUP($C$48,'Info Tables'!A70:A109,'Info Tables'!F70:F109) -> 2093 | C71: =IF(B71="None","N/A",LOOKUP(B71,'Info Tables'!$A$119:$A$196,'Info Tables'!$B$119:$B$196)) -> U9 L9 | D71: =IF(B71="None","N/A",$B$34*LOOKUP(B71,'Member Loads'!$A$13:$A$102,'Member Loads'!$B$13:$B$102)) -> 90.61 | E71: =IF(B71="None","N/A",$B$35*($E$58/100)*(IF($B$58="2F1",LOOKUP(B71,'Member Loads'!$D$13:$D$102,'Member Loads'!$E$13:$E$102),IF($B$58="3F1",LOOKUP(B71,'Member Loads'!$H$13:$H$102,'Member Loads'!$I$13:$I$102),IF($B$58="4F1",LOOKUP(B71,'Member Loads'!$L$13:$L$102,'Member Loads'!$M$13:$M$102),IF($B$58="5C1",LOOKUP(B71,'Member Loads'!$P$13:$P$102,'Member Loads'!$Q$13:$Q$102),IF($B$58="HS20-44",LOOKUP(B71,'Member Loads'!$T$13:$T$102,'Member Loads'!$U$13:$U$102),IF($B$58="Inventory",LOOKUP(B71,'Member Loads'!$X$13:$X$102,'Member Loads'!$Y$13:$Y$102),LOOKUP(B71,'Member Loads'!$AB$13:$AB$102,'Member Loads'!$AC$13:$AC$102))))))))) -> 0 | F71: =IF(B71="None","N/A",$B$35*($E$58/100)*(IF($B$58="2F1",LOOKUP(B71,'Member Loads'!$D$13:$D$102,'Member Loads'!$F$13:$F$102),IF($B$58="3F1",LOOKUP(B71,'Member Loads'!$H$13:$H$102,'Member Loads'!$J$13:$J$102),IF($B$58="4F1",LOOKUP(B71,'Member Loads'!$L$13:$L$102,'Member Loads'!$N$13:$N$102),IF($B$58="5C1",LOOKUP(B71,'Member Loads'!$P$13:$P$102,'Member Loads'!$R$13:$R$102),IF($B$58="HS20-44",LOOKUP(B71,'Member Loads'!$T$13:$T$102,'Member Loads'!$V$13:$V$102),IF($B$58="Inventory",LOOKUP(B71,'Member Loads'!$X$13:$X$102,'Member Loads'!$Z$13:$Z$102),LOOKUP(B71,'Member Loads'!$AB$13:$AB$102,'Member Loads'!$AD$13:$AD$102))))))))) -> 79.599 | G71: =IF(B71="None","N/A",IF(D71+E71<=0,D71+E71,"N/A")) -> N/A | H71: =IF(B71="None","N/A",IF(D71+F71>=0,D71+F71,"N/A")) -> 170.209 | I71: =IF(B71="None","N/A",LOOKUP($C$48,'Info Tables'!A254:A293,'Info Tables'!G254:G293)) -> 104.93 | J71: =IF(AND(G71="N/A",$H$71="N/A"),"N/A",IF(AND(G71<0,$H$71="N/A"),"Compression",IF(AND(G71="N/A",$H$71>0),"Tension",IF(AND(G71<0,$H$71>0),"Reversal",IF(AND(G71=0,$H$71=0),"Dead","N/A"))))) -> Tension | K71: =IF(B71="None","N/A",LOOKUP(B71,'Info Tables'!$A$654:$A$731,'Info Tables'!$C$654:$C$731)) -> Yes | L71: =IF(OR(K71="No",K71="N/A"),"N/A",LOOKUP(B71,'Info Tables'!$A$654:$A$731,'Info Tables'!$D$654:$D$731)) -> No
A77: Resolved Axial Loads into Horizontal and Vertical Components in Gusset Plates
A78: Location | B78: Member ID | C78: Member | D78: COS (Angle) | E78: SIN (Angle) | F78: Horizontal Component Factored Dead Load For Both Plates (kips) | G78: Vertical Component Factored Dead Load For Both Plates (kips) | H78: Horizontal Component Max. Factored Compression LL+I For Both Plates (kips) | I78: Vertical Component Max. Factored Compression LL+I For Both Plates (kips) | J78: Horizontal Component Max. Factored Tension LL+I For Both Plates (kips) | K78: Vertical Component Max. Factored Tension LL+I For Both Plates (kips) | L78: Horizontal Component Total Max. Factored Compressive Load DL+LL+I For Both Plates (kips) | M78: Vertical Component Total Max. Factored Compressive Load DL+LL+I For Both Plates (kips) | N78: Horizontal Component Total Max. Factored Tensile Load DL+LL+I For Both Plates (kips) | O78: Vertical Component Total Max. Factored Tensile Load DL+LL+I For Both Plates (kips)
A79: U/L Chord (LT) | B79: =$B$67 -> 2091 | C79: =$C$67 -> U8 U9 | D79: =IF($B$79="None",0,COS(RADIANS($I$67))) -> 1 | E79: =IF($B$79="None",0,SIN(RADIANS($I$67))) -> 0 | F79: =IF(D67="N/A",0,D67*D79) -> -556.01 | G79: =IF(D67="N/A",0,D67*E79) -> 0 | H79: =IF($E$67="N/A",0,E67*D79) -> -225.966 | I79: =IF($E$67="N/A",0,E67*E79) -> 0 | J79: =IF(F67="N/A",0,F67*D79) -> 0 | K79: =IF(F67="N/A",0,F67*E79) -> 0 | L79: =IF(G67="N/A",0,G67*D79) -> -781.976 | M79: =IF(G67="N/A",0,G67*E79) -> 0 | N79: =IF($H$67="N/A",0,$H$67*D79) -> 0 | O79: =IF($H$67="N/A",0,$H$67*E79) -> 0
A80: U/L Chord (RT) | B80: =$B$68 -> None | C80: =$C$68 -> N/A | D80: =IF($B$80="None",0,COS(RADIANS($I$68))) -> 0 | E80: =IF($B$80="None",0,SIN(RADIANS($I$68))) -> 0 | F80: =IF(D68="N/A",0,D68*D80) -> 0 | G80: =IF(D68="N/A",0,D68*E80) -> 0 | H80: =IF($E$68="N/A",0,E68*D80) -> 0 | I80: =IF($E$68="N/A",0,E68*E80) -> 0 | J80: =IF(F68="N/A",0,F68*D80) -> 0 | K80: =IF(F68="N/A",0,F68*E80) -> 0 | L80: =IF(G68="N/A",0,G68*D80) -> 0 | M80: =IF(G68="N/A",0,G68*E80) -> 0 | N80: =IF($H$68="N/A",0,$H$68*D80) -> 0 | O80: =IF($H$68="N/A",0,$H$68*E80) -> 0
A81: Diagonal (LT) | B81: =$B$69 -> 2094 | C81: =$C$69 -> U9 L8 | D81: =IF($B$81="None",0,COS(RADIANS($I$69))) -> 0.4513448357 | E81: =IF($B$81="None",0,SIN(RADIANS($I$69))) -> 0.8923496172 | F81: =IF(D69="N/A",0,D69*D81) -> 108.3137337 | G81: =IF(D69="N/A",0,D69*E81) -> 214.1460611 | H81: =IF($E$69="N/A",0,E69*D81) -> -10.23289012 | I81: =IF($E$69="N/A",0,E69*E81) -> -20.23135052 | J81: =IF(F69="N/A",0,F69*D81) -> 53.38822658 | K81: =IF(F69="N/A",0,F69*E81) -> 105.5533592 | L81: =IF(G69="N/A",0,G69*D81) -> 0 | M81: =IF(G69="N/A",0,G69*E81) -> 0 | N81: =IF($H$69="N/A",0,$H$69*D81) -> 161.7019603 | O81: =IF($H$69="N/A",0,$H$69*E81) -> 319.6994203
A82: Diagonal (RT) | B82: =$B$70 -> 2092 | C82: =$C$70 -> U9 L10 | D82: =IF($B$82="None",0,COS(RADIANS($I$70))) -> 0.8357115261 | E82: =IF($B$82="None",0,SIN(RADIANS($I$70))) -> 0.5491686855 | F82: =IF(D70="N/A",0,D70*D82) -> -473.464008 | G82: =IF(D70="N/A",0,D70*E82) -> -311.1260271 | H82: =IF($E$70="N/A",0,E70*D82) -> -196.8058858 | I82: =IF($E$70="N/A",0,E70*E82) -> -129.3264796 | J82: =IF(F70="N/A",0,F70*D82) -> 0 | K82: =IF(F70="N/A",0,F70*E82) -> 0 | L82: =IF(G70="N/A",0,G70*D82) -> -670.2698938 | M82: =IF(G70="N/A",0,G70*E82) -> -440.4525067 | N82: =IF($H$70="N/A",0,$H$70*D82) -> 0 | O82: =IF($H$70="N/A",0,$H$70*E82) -> 0
A83: Vertical | B83: =$B$71 -> 2093 | C83: =$C$71 -> U9 L9 | D83: =IF($B$83="None",0,COS(RADIANS($I$71))) -> -0.2576387512 | E83: =IF($B$83="None",0,SIN(RADIANS($I$71))) -> 0.9662413124 | F83: =IF(D71="N/A",0,D71*ABS(D83)) -> 23.34464725 | G83: =IF(D71="N/A",0,D71*E83) -> 87.55112532 | H83: =IF($E$71="N/A",0,E71*ABS(D83)) -> 0 | I83: =IF($E$71="N/A",0,E71*E83) -> 0 | J83: =IF(F71="N/A",0,F71*ABS(D83)) -> 20.50778696 | K83: =IF(F71="N/A",0,F71*E83) -> 76.91184223 | L83: =IF(G71="N/A",0,G71*ABS(D83)) -> 0 | M83: =IF(G71="N/A",0,G71*E83) -> 0 | N83: =IF($H$71="N/A",0,$H$71*ABS(D83)) -> 43.85243421 | O83: =IF($H$71="N/A",0,$H$71*E83) -> 164.4629675
A89: Gusset Plate Geometric Properties
A90: Location | B90: ID | C90: Member | D90: Inner Gusset Plates Actual Thickness For Whitmore (in) | E90: Inner Gusset Plates Actual Thickness For Plate Shear (in) | F90: Outer Gusset Plates Actual Thickness For Whitmore (in) | G90: Outer Gusset Plates Actual Thickness For Plate Shear (in) | H90: Actual Base Metal Thickness At Member End Total for Both Sides (in) | I90: Total No. of Rivets At Member End in Both Plates | J90: Connection Length in One Plate (in) | K90: * Shear Resistance Reduction Factor | L90: Whitmore Effective Gross Width "b" For One Plate (in) | M90: Unbraced Column Length For One Plate (in) | N90: Inner Gusset Whitmore Area "A" For One Plate (in^2) | O90: Inner Gusset Moment of Inertia "I" For One Plate (in^4) | P90: Inner Gusset plate Radius of Gyration "r" For One Plate (in) | Q90: Inner Gusset Plate kl/r | R90: Maximum Axial StressFcr (ksi) | S90: Outer Gusset Whitmore Area "A" For One Plate (in^2) | T90: Outer Gusset Moment of Inertia "I" For One Plate (in^4) | U90: Outer Gusset Plate Radius of Gyration "r" For One Plate (in) | V90: Outer Gusset Plate kl/r | W90: Maximum Fcr (ksi)
A91: U/L Chord (LT) | B91: =$B$67 -> 2091 | C91: =$C$67 -> U8 U9 | D91: =IF(OR(B91="None",K67="No"),"N/A",$B$49*$G$50) -> 0.5625 | E91: =IF(OR(B91="None",K67="No"),"N/A",$B$49*$G$51) -> 0.5625 | F91: =IF(OR(B91="None",K67="No"),"N/A",$B$53*$G$54) -> 0.5625 | G91: =IF(OR(B91="None",K67="No"),"N/A",$B$53*$G$55) -> 0.5625 | H91: =IF(B91="None","N/A",(LOOKUP(B91,'Info Tables'!$A$119:$A$196,'Info Tables'!$F$119:$F$196))) -> 2.9 | I91: =IF(B91="None","N/A",(LOOKUP($C$48,'Info Tables'!$A$204:$A$243,'Info Tables'!$C$204:$C$243))) -> 54 | J91: =IF(B91="None","N/A",1*(LOOKUP($C$48,'Info Tables'!$A$204:$A$243,'Info Tables'!$K$204:$K$243))) -> 23 | K91: =IF(J91>50,0.8,1) -> 1 | L91: =IF(B91="None","N/A",(LOOKUP($C$48,'Info Tables'!$A$304:$A$343,'Info Tables'!$C$304:$C$343))) -> 27.162 | M91: =IF(B91="None","N/A",(LOOKUP($C$48,'Info Tables'!$A$354:$A$393,'Info Tables'!$C$354:$C$393))) -> 8.446 | N91: =IF(OR(B91="None",K67="No"),"N/A",D91*L91) -> 15.278625 | O91: =IF(OR(B91="None",K67="No"),"N/A",$L$91*D91^3/12) -> 0.4028543701 | P91: =IF(OR(B91="None",K67="No"),"N/A",SQRT(O91/N91)) -> 0.1623797632 | Q91: =IF(OR(B91="None",K67="No"),"N/A",($B$26*M91/P91)) -> 62.41664478 | R91: =IF(OR(Q91=0,Q91="N/A"),0,IF($B$37>Q91,$B$20*(1-(($B$20/(4*PI()^2*$B$22)))*Q91^2)/1000,((PI()^2*$B$22/Q91^2)/1000))) -> 29.2942938 | S91: =IF(OR(B91="None",K67="No"),"N/A",F91*L91) -> 15.278625 | T91: =IF(OR(B91="None",K67="No"),"N/A",$L$91*F91^3/12) -> 0.4028543701 | U91: =IF(OR(B91="None",K67="No"),"N/A",SQRT(T91/S91)) -> 0.1623797632 | V91: =IF(OR(B91="None",K67="No"),"N/A",($B$26*M91/U91)) -> 62.41664478 | W91: =IF(OR(V91=0,V91="N/A"),0,IF($B$37>V91,$B$20*(1-(($B$20/(4*PI()^2*$B$22)))*V91^2)/1000,((PI()^2*$B$22/V91^2)/1000))) -> 29.2942938
A92: U/L Chord (RT) | B92: =$B$68 -> None | C92: =$C$68 -> N/A | D92: =IF(OR($B$92="None",$K$68="No"),"N/A",$B$49*$H$50) -> N/A | E92: =IF(OR($B$92="None",$K$68="No"),"N/A",$B$49*$H$51) -> N/A | F92: =IF(OR($B$92="None",$K$68="No"),"N/A",$B$53*$H$54) -> N/A | G92: =IF(OR($B$92="None",$K$68="No"),"N/A",$B$53*$H$55) -> N/A | H92: =IF(B92="None","N/A",(LOOKUP(B92,'Info Tables'!$A$119:$A$196,'Info Tables'!$F$119:$F$196))) -> N/A | I92: =IF(B92="None","N/A",(LOOKUP($C$48,'Info Tables'!$A$204:$A$243,'Info Tables'!$D$204:$D$243))) -> N/A | J92: =IF(B92="None","N/A",1*(LOOKUP($C$48,'Info Tables'!$A$204:$A$243,'Info Tables'!$L$204:$L$243))) -> N/A | K92: =IF(J92>50,0.8,1) -> 0.8 | L92: =IF(B92="None","N/A",(LOOKUP($C$48,'Info Tables'!$A$304:$A$343,'Info Tables'!$D$304:$D$343))) -> N/A | M92: =IF(B92="None","N/A",(LOOKUP($C$48,'Info Tables'!$A$354:$A$393,'Info Tables'!$D$354:$D$393))) -> N/A | N92: =IF(OR($B$92="None",$K$68="No"),"N/A",D92*L92) -> N/A | O92: =IF(OR($B$92="None",$K$68="No"),"N/A",$L$92*D92^3/12) -> N/A | P92: =IF(OR($B$92="None",$K$68="No"),"N/A",SQRT(O92/N92)) -> N/A | Q92: =IF(OR($B$92="None",$K$68="No"),"N/A",($B$26*M92/P92)) -> N/A | R92: =IF(OR(Q92=0,Q92="N/A"),0,IF($B$37>Q92,$B$20*(1-(($B$20/(4*PI()^2*$B$22)))*Q92^2)/1000,((PI()^2*$B$22/Q92^2)/1000))) -> 0 | S92: =IF(OR($B$92="None",$K$68="No"),"N/A",F92*L92) -> N/A | T92: =IF(OR($B$92="None",$K$68="No"),"N/A",$L$92*F92^3/12) -> N/A | U92: =IF(OR($B$92="None",$K$68="No"),"N/A",SQRT(T92/S92)) -> N/A | V92: =IF(OR($B$92="None",$K$68="No"),"N/A",($B$26*M92/U92)) -> N/A | W92: =IF(OR(V92=0,V92="N/A"),0,IF($B$37>V92,$B$20*(1-(($B$20/(4*PI()^2*$B$22)))*V92^2)/1000,((PI()^2*$B$22/V92^2)/1000))) -> 0
A93: Diagonal (LT) | B93: =$B$69 -> 2094 | C93: =$C$69 -> U9 L8 | D93: =IF(OR(B93="None",K69="No"),"N/A",$B$49*$I$50) -> 0.5625 | E93: =IF(OR(B93="None",K69="No"),"N/A",$B$49*$I$51) -> 0.5625 | F93: =IF(OR(B93="None",K69="No"),"N/A",$B$53*$I$54) -> 0.5625 | G93: =IF(OR(B93="None",K69="No"),"N/A",$B$53*$I$55) -> 0.5625 | H93: =IF(B93="None","N/A",(LOOKUP(B93,'Info Tables'!$A$119:$A$196,'Info Tables'!$F$119:$F$196))) -> 1.212 | I93: =IF(B93="None","N/A",(LOOKUP($C$48,'Info Tables'!$A$204:$A$243,'Info Tables'!$E$204:$E$243))) -> 40 | J93: =IF(B93="None","N/A",1*(LOOKUP($C$48,'Info Tables'!$A$204:$A$243,'Info Tables'!$M$204:$M$243))) -> 25.5 | K93: =IF(J93>50,0.8,1) -> 1 | L93: =IF(B93="None","N/A",(LOOKUP($C$48,'Info Tables'!$A$304:$A$343,'Info Tables'!$E$304:$E$343))) -> 39.675 | M93: =IF(B93="None","N/A",(LOOKUP($C$48,'Info Tables'!$A$354:$A$393,'Info Tables'!$E$354:$E$393))) -> 3.149 | N93: =IF(OR(B93="None",K69="No"),"N/A",D93*L93) -> 22.3171875 | O93: =IF(OR(B93="None",K69="No"),"N/A",$L$93*D93^3/12) -> 0.5884414673 | P93: =IF(OR(B93="None",K69="No"),"N/A",SQRT(O93/N93)) -> 0.1623797632 | Q93: =IF(OR(B93="None",K69="No"),"N/A",($B$26*M93/P93)) -> 23.27137277 | R93: =IF(OR(Q93=0,Q93="N/A"),0,IF($B$37>Q93,$B$20*(1-(($B$20/(4*PI()^2*$B$22)))*Q93^2)/1000,((PI()^2*$B$22/Q93^2)/1000))) -> 32.48487319 | S93: =IF(OR(B93="None",K69="No"),"N/A",F93*L93) -> 22.3171875 | T93: =IF(OR(B93="None",K69="No"),"N/A",$L$93*F93^3/12) -> 0.5884414673 | U93: =IF(OR(B93="None",K69="No"),"N/A",SQRT(T93/S93)) -> 0.1623797632 | V93: =IF(OR(B93="None",K69="No"),"N/A",($B$26*M93/U93)) -> 23.27137277 | W93: =IF(OR(V93=0,V93="N/A"),0,IF($B$37>V93,$B$20*(1-(($B$20/(4*PI()^2*$B$22)))*V93^2)/1000,((PI()^2*$B$22/V93^2)/1000))) -> 32.48487319
A94: Diagonal (RT) | B94: =$B$70 -> 2092 | C94: =$C$70 -> U9 L10 | D94: =IF(OR(B94="None",K70="No"),"N/A",$B$49*$J$50) -> 0.5625 | E94: =IF(OR(B94="None",K70="No"),"N/A",$B$49*$J$51) -> 0.5625 | F94: =IF(OR(B94="None",K70="No"),"N/A",$B$53*$J$54) -> 0.5625 | G94: =IF(OR(B94="None",K70="No"),"N/A",$B$53*$J$55) -> 0.5625 | H94: =IF(B94="None","N/A",(LOOKUP(B94,'Info Tables'!$A$119:$A$196,'Info Tables'!$F$119:$F$196))) -> 1.95 | I94: =IF(B94="None","N/A",(LOOKUP($C$48,'Info Tables'!$A$204:$A$243,'Info Tables'!$F$204:$F$243))) -> 128 | J94: =IF(B94="None","N/A",1*(LOOKUP($C$48,'Info Tables'!$A$204:$A$243,'Info Tables'!$N$204:$N$243))) -> 26.75 | K94: =IF(J94>50,0.8,1) -> 1 | L94: =IF(B94="None","N/A",(LOOKUP($C$48,'Info Tables'!$A$304:$A$343,'Info Tables'!$F$304:$F$343))) -> 29.327 | M94: =IF(B94="None","N/A",(LOOKUP($C$48,'Info Tables'!$A$354:$A$393,'Info Tables'!$F$354:$F$393))) -> 5.505 | N94: =IF(OR(B94="None",K70="No"),"N/A",D94*L94) -> 16.4964375 | O94: =IF(OR(B94="None",K70="No"),"N/A",$L$94*D94^3/12) -> 0.4349646606 | P94: =IF(OR(B94="None",K70="No"),"N/A",SQRT(O94/N94)) -> 0.1623797632 | Q94: =IF(OR(B94="None",K70="No"),"N/A",($B$26*M94/P94)) -> 40.68240937 | R94: =IF(OR(Q94=0,Q94="N/A"),0,IF($B$37>Q94,$B$20*(1-(($B$20/(4*PI()^2*$B$22)))*Q94^2)/1000,((PI()^2*$B$22/Q94^2)/1000))) -> 31.42571457 | S94: =IF(OR(B94="None",K70="No"),"N/A",F94*L94) -> 16.4964375 | T94: =IF(OR(B94="None",K70="No"),"N/A",$L$94*F94^3/12) -> 0.4349646606 | U94: =IF(OR(B94="None",K70="No"),"N/A",SQRT(T94/S94)) -> 0.1623797632 | V94: =IF(OR(B94="None",K70="No"),"N/A",($B$26*M94/U94)) -> 40.68240937 | W94: =IF(OR(V94=0,V94="N/A"),0,IF($B$37>V94,$B$20*(1-(($B$20/(4*PI()^2*$B$22)))*V94^2)/1000,((PI()^2*$B$22/V94^2)/1000))) -> 31.42571457
A95: Vertical | B95: =$B$71 -> 2093 | C95: =$C$71 -> U9 L9 | D95: =IF(OR(B95="None",K71="No"),"N/A",$B$49*$K$50) -> 0.5625 | E95: =IF(OR(B95="None",K71="No"),"N/A",$B$49*$K$51) -> 0.5625 | F95: =IF(OR(B95="None",K71="No"),"N/A",$B$53*$K$54) -> 0.5625 | G95: =IF(OR(B95="None",K71="No"),"N/A",$B$53*$K$55) -> 0.5625 | H95: =IF(B95="None","N/A",(LOOKUP(B95,'Info Tables'!$A$119:$A$196,'Info Tables'!$F$119:$F$196))) -> 1.282 | I95: =IF(B95="None","N/A",(LOOKUP($C$48,'Info Tables'!$A$204:$A$243,'Info Tables'!$G$204:$G$243))) -> 24 | J95: =IF(B95="None","N/A",1*(LOOKUP($C$48,'Info Tables'!$A$204:$A$243,'Info Tables'!$O$204:$O$243))) -> 16.5 | K95: =IF(J95>50,0.8,1) -> 1 | L95: =IF(B95="None","N/A",(LOOKUP($C$48,'Info Tables'!$A$304:$A$343,'Info Tables'!$G$304:$G$343))) -> 22.321 | M95: =IF(B95="None","N/A",(LOOKUP($C$48,'Info Tables'!$A$354:$A$393,'Info Tables'!$G$354:$G$393))) -> 3.803 | N95: =IF(OR(B95="None",K71="No"),"N/A",D95*L95) -> 12.5555625 | O95: =IF(OR(B95="None",K71="No"),"N/A",$L$95*D95^3/12) -> 0.3310548706 | P95: =IF(OR(B95="None",K71="No"),"N/A",SQRT(O95/N95)) -> 0.1623797632 | Q95: =IF(OR(B95="None",K71="No"),"N/A",($B$26*M95/P95)) -> 28.10448734 | R95: =IF(OR(Q95=0,Q95="N/A"),0,IF($B$37>Q95,$B$20*(1-(($B$20/(4*PI()^2*$B$22)))*Q95^2)/1000,((PI()^2*$B$22/Q95^2)/1000))) -> 32.248686 | S95: =IF(OR(B95="None",K71="No"),"N/A",F95*L95) -> 12.5555625 | T95: =IF(OR(B95="None",K71="No"),"N/A",$L$95*F95^3/12) -> 0.3310548706 | U95: =IF(OR(B95="None",K71="No"),"N/A",SQRT(T95/S95)) -> 0.1623797632 | V95: =IF(OR(B95="None",K71="No"),"N/A",($B$26*M95/U95)) -> 28.10448734 | W95: =IF(OR(V95=0,V95="N/A"),0,IF($B$37>V95,$B$20*(1-(($B$20/(4*PI()^2*$B$22)))*V95^2)/1000,((PI()^2*$B$22/V95^2)/1000))) -> 32.248686
I96: * 0.8 if Connection Length > 50"
A102: Check Stresses:
AB104: Max D/C Ratio
A105: 1: Gusset Plate Minimum Edge Stiffness | AB105: N/A | AC105: =IF(SUM(AC115:AC116)=0,"OK","NG") -> OK | AD105: =A105 -> 1: Gusset Plate Minimum Edge Stiffness
A107: Fy = | B107: =B20 -> 33000 | C107: psi
A108: Inner Plate Thick. = | B108: =LOOKUP($C$48,'Info Tables'!A19:A58,'Info Tables'!N19:N58) -> 0.5625 | C108: inch
A109: Outer Plate Thick. = | B109: =LOOKUP($C$48,'Info Tables'!A19:A58,'Info Tables'!O19:O58) -> 0.5625 | C109: inch
A111: Max. Unstiffened Edge (L/t) Ratio = (11,000/(Fy)½) = | B111: =11000/SQRT(B107) -> 60.55300708 | C111: * t (inch) -- AASHTO 10.16.11
A112: Minimum Plate Thickness | B112: =5/16 -> 0.3125 | C112: inch -- AASHTO 10.8.3
A114: Location | B114: Joint ID | C114: Gusset Plate Actual Thickness (in) | D114: Maximum Unstiffened Actual Edge Length (in) | E114: Maximum Unstiffened Edge Length Not To Be Exceeded (in) | F114: Meets Requirement
A115: Inner Gusset Plate | B115: =$C$48 -> 209 | C115: =B108 -> 0.5625 | D115: =LOOKUP($C$48,'Info Tables'!$A$19:$A$58,'Info Tables'!$J$19:$J$58) -> 31.297 | E115: =$B$111*C115 -> 34.06106648 | F115: =IF(D115="N/A","N/A",IF(AND(D115<=$B$111*$B$108,B112<=B108),"OK","NG")) -> OK | AC115: =IF(OR(AD115="NG",AE115="NG",AF115="NG",AG115="NG",AH115="NG"),1,0) -> 0 | AD115: =F115 -> OK | AE115: =G115 -> 0
A116: Outer Gusset Plate | B116: =$C$48 -> 209 | C116: =B109 -> 0.5625 | D116: =LOOKUP($C$48,'Info Tables'!$A$19:$A$58,'Info Tables'!$K$19:$K$58) -> 31.297 | E116: =$B$111*C116 -> 34.06106648 | F116: =IF(D116="N/A","N/A",IF(AND(D116<=$B$111*$B$109,B112<=B109),"OK","NG")) -> OK | AC116: =IF(OR(AD116="NG",AE116="NG",AF116="NG",AG116="NG",AH116="NG"),1,0) -> 0 | AD116: =F116 -> OK | AE116: =G116 -> 0
A122: 2: Gusset Plate Local Compression Buckling Under Whitmore Effective Width | AA122: =MIN(AB135:AB139) -> 0 | AB122: =MIN(AF126:AG130) -> 0 | AC122: =IF(SUM(AC126:AC130)=0,"OK","NG") -> OK | AD122: =A122 -> 2: Gusset Plate Local Compression Buckling Under Whitmore Effective Width
A124: =$A$30 -> Compression Load Factor Ø: | B124: =$B$30 -> 0.85 | P124: C/D= Capacity/Demand
A125: \ | B125: ID | C125: Member | D125: Member Type | E125: Was Member Spliced at Joint Center? | F125: Was Member Butt End Milled? | G125: Total Max. Factored Compressive Load For Both Plates (kips) | H125: Inner Gusset Plates Area (sq in) | I125: Actual Outer Gusset Plates Area (sq in) | J125: Actual Inner Gusset Plates Stress (ksi) | K125: Outer Gusset Plates Stress (ksi) | L125: Factored Gusset Plate Axial Stress Fa (ksi) | M125: Factored Gusset Plate Axial Stress Fa (ksi) | N125: Inner Gusset Plate Meets Requirement | O125: Inner Gusset Plate Meets Requirement | P125: Inner Gusset Plate C/D Ratio | Q125: Inner Gusset Plate C/D Ratio
A126: =$A$91 -> U/L Chord (LT) | B126: =$B$91 -> 2091 | C126: =$C$91 -> U8 U9 | D126: =$J$67 -> Compression | E126: =$K$67 -> Yes | F126: =$L$67 -> Yes | G126: =IF(C126="N/A","N/A",IF(OR(E126="No",F126="Yes"),"N/A",G67)) -> N/A | H126: =IF($G$126="N/A","N/A",D91*L91) -> N/A | I126: =IF($G$126="N/A","N/A",F91*L91) -> N/A | J126: =IF($G$126="N/A","N/A",ABS(G126/(2*H126))) -> N/A | K126: =IF($G$126="N/A","N/A",ABS(G126/(2*I126))) -> N/A | L126: =IF($G$126="N/A","N/A",R91*$B$124) -> N/A | M126: =IF($G$126="N/A","N/A",W91*$B$124) -> N/A | N126: =IF(OR(G126="N/A",J126=0),"N/A",IF(J126<=L126,"OK","NG")) -> N/A | O126: =IF(OR(G126="N/A",K126=0),"N/A",IF(K126<=M126,"OK","NG")) -> N/A | P126: =IF(OR(G126="N/A",J126=0),"N/A",ABS(L126/J126)) -> N/A | Q126: =IF(OR(G126="N/A",K126=0),"N/A",ABS(M126/K126)) -> N/A | AC126: =IF(OR(AD126="NG",AE126="NG",AF126="NG",AG126="NG",AH126="NG"),1,0) -> 0 | AD126: =N126 -> N/A | AE126: N/A | AF126: N/A | AG126: N/A
A127: =$A$92 -> U/L Chord (RT) | B127: =$B$92 -> None | C127: =$C$92 -> N/A | D127: =$J$68 -> N/A | E127: =$K$68 -> N/A | F127: =$L$68 -> N/A | G127: =IF(C127="N/A","N/A",IF(OR(E127="No",F127="Yes"),"N/A",G68)) -> N/A | H127: =IF($G$127="N/A","N/A",D92*L92) -> N/A | I127: =IF($G$127="N/A","N/A",F92*L92) -> N/A | J127: =IF($G$127="N/A","N/A",ABS(G127/(2*H127))) -> N/A | K127: =IF($G$127="N/A","N/A",ABS(G127/(2*I127))) -> N/A | L127: =IF($G$127="N/A","N/A",R92*$B$124) -> N/A | M127: =IF($G$127="N/A","N/A",W92*$B$124) -> N/A | N127: =IF(OR(G127="N/A",J127=0),"N/A",IF(J127<=L127,"OK","NG")) -> N/A | O127: =IF(OR(G127="N/A",K127=0),"N/A",IF(K127<=M127,"OK","NG")) -> N/A | P127: =IF(OR(G127="N/A",J127=0),"N/A",ABS(L127/J127)) -> N/A | Q127: =IF(OR(G127="N/A",K127=0),"N/A",ABS(M127/K127)) -> N/A | AC127: =IF(OR(AD127="NG",AE127="NG",AF127="NG",AG127="NG",AH127="NG"),1,0) -> 0 | AD127: N/A | AE127: N/A | AF127: N/A | AG127: N/A
A128: =$A$93 -> Diagonal (LT) | B128: =$B$93 -> 2094 | C128: =$C$93 -> U9 L8 | D128: =$J$69 -> Tension | E128: =$K$69 -> Yes | F128: =$L$69 -> No | G128: =IF(C128="N/A","N/A",IF(OR(E128="No",F128="Yes"),"N/A",G69)) -> N/A | H128: =IF($G$128="N/A","N/A",D93*L93) -> N/A | I128: =IF($G$128="N/A","N/A",F93*L93) -> N/A | J128: =IF($G$128="N/A","N/A",ABS(G128/(2*H128))) -> N/A | K128: =IF($G$128="N/A","N/A",ABS(G128/(2*I128))) -> N/A | L128: =IF($G$128="N/A","N/A",R93*$B$124) -> N/A | M128: =IF($G$128="N/A","N/A",W93*$B$124) -> N/A | N128: =IF(OR(G128="N/A",J128=0),"N/A",IF(J128<=L128,"OK","NG")) -> N/A | O128: =IF(OR(G128="N/A",K128=0),"N/A",IF(K128<=M128,"OK","NG")) -> N/A | P128: =IF(OR(G128="N/A",J128=0),"N/A",ABS(L128/J128)) -> N/A | Q128: =IF(OR(G128="N/A",K128=0),"N/A",ABS(M128/K128)) -> N/A | AC128: =IF(OR(AD128="NG",AE128="NG",AF128="NG",AG128="NG",AH128="NG"),1,0) -> 0 | AD128: N/A | AE128: N/A | AF128: N/A | AG128: N/A
A129: =$A$94 -> Diagonal (RT) | B129: =$B$94 -> 2092 | C129: =$C$94 -> U9 L10 | D129: =$J$70 -> Compression | E129: =$K$70 -> Yes | F129: =$L$70 -> Yes | G129: =IF(C129="N/A","N/A",IF(OR(E129="No",F129="Yes"),"N/A",G70)) -> N/A | H129: =IF($G$129="N/A","N/A",D94*L94) -> N/A | I129: =IF($G$129="N/A","N/A",F94*L94) -> N/A | J129: =IF($G$129="N/A","N/A",ABS(G129/(2*H129))) -> N/A | K129: =IF($G$129="N/A","N/A",ABS(G129/(2*I129))) -> N/A | L129: =IF($G$129="N/A","N/A",R94*$B$124) -> N/A | M129: =IF($G$129="N/A","N/A",W94*$B$124) -> N/A | N129: =IF(OR(G129="N/A",J129=0),"N/A",IF(J129<=L129,"OK","NG")) -> N/A | O129: =IF(OR(G129="N/A",K129=0),"N/A",IF(K129<=M129,"OK","NG")) -> N/A | P129: =IF(OR(G129="N/A",J129=0),"N/A",ABS(L129/J129)) -> N/A | Q129: =IF(OR(G129="N/A",K129=0),"N/A",ABS(M129/K129)) -> N/A | AC129: =IF(OR(AD129="NG",AE129="NG",AF129="NG",AG129="NG",AH129="NG"),1,0) -> 0 | AD129: N/A | AE129: N/A | AF129: N/A | AG129: N/A
A130: =$A$95 -> Vertical | B130: =$B$95 -> 2093 | C130: =$C$95 -> U9 L9 | D130: =$J$71 -> Tension | E130: =$K$71 -> Yes | F130: =$L$71 -> No | G130: =IF(C130="N/A","N/A",IF(OR(E130="No",F130="Yes"),"N/A",G71)) -> N/A | H130: =IF($G$130="N/A","N/A",D95*L95) -> N/A | I130: =IF($G$130="N/A","N/A",F95*L95) -> N/A | J130: =IF($G$130="N/A","N/A",ABS(G130/(2*H130))) -> N/A | K130: =IF($G$130="N/A","N/A",ABS(G130/(2*I130))) -> N/A | L130: =IF($G$130="N/A","N/A",R95*$B$124) -> N/A | M130: =IF($G$130="N/A","N/A",W95*$B$124) -> N/A | N130: =IF(OR(G130="N/A",J130=0),"N/A",IF(J130<=L130,"OK","NG")) -> N/A | O130: =IF(OR(G130="N/A",K130=0),"N/A",IF(K130<=M130,"OK","NG")) -> N/A | P130: =IF(OR(G130="N/A",J130=0),"N/A",ABS(L130/J130)) -> N/A | Q130: =IF(OR(G130="N/A",K130=0),"N/A",ABS(M130/K130)) -> N/A | AC130: =IF(OR(AD130="NG",AE130="NG",AF130="NG",AG130="NG",AH130="NG"),1,0) -> 0 | AD130: N/A | AE130: N/A | AF130: N/A | AG130: N/A
L131: Note: Buckling is ignored if butt-end surfaces are milled in chord members
A133: Rating Factor For Local Compression Buckling Under Whitmore Effective Width
A134: Location | B134: ID | C134: Member | D134: Member Type | E134: Total Factored Joint Capacity (kips) | F134: Total Joint Factored Dead Load (kips) | G134: Total Joint Factored Live Load + I (kips) | H134: Rating Factor (C - f1*DL) / (f2*LL+I) | AB134: 2. RF
A135: =$A$91 -> U/L Chord (LT) | B135: =$B$91 -> 2091 | C135: =$C$91 -> U8 U9 | D135: =$J$67 -> Compression | E135: =IF(G126="N/A","N/A",(H126*L126)+(I126*M126)) -> N/A | F135: =IF(OR(E135="N/A",D135="N/A"),"N/A",ABS(D67)) -> N/A | G135: =IF(OR(E135="N/A",D135="N/A"),"N/A",ABS(E67)) -> N/A | H135: =IF(OR(E135="N/A",D135="N/A"),"N/A",(E135-F135)/G135) -> N/A | AB135: =H135 -> N/A
A136: =$A$92 -> U/L Chord (RT) | B136: =$B$92 -> None | C136: =$C$92 -> N/A | D136: =$J$68 -> N/A | E136: =IF(G127="N/A","N/A",(H127*L127)+(I127*M127)) -> N/A | F136: =IF(OR(E136="N/A",D136="N/A"),"N/A",ABS(D68)) -> N/A | G136: =IF(OR(E136="N/A",D136="N/A"),"N/A",ABS(E68)) -> N/A | H136: =IF(OR(E136="N/A",D136="N/A"),"N/A",(E136-F136)/G136) -> N/A | AB136: =H136 -> N/A
A137: =$A$93 -> Diagonal (LT) | B137: =$B$93 -> 2094 | C137: =$C$93 -> U9 L8 | D137: =$J$69 -> Tension | E137: =IF(G128="N/A","N/A",(H128*L128)+(I128*M128)) -> N/A | F137: =IF(OR(E137="N/A",D137="N/A"),"N/A",ABS(D69)) -> N/A | G137: =IF(OR(E137="N/A",D137="N/A"),"N/A",ABS(E69)) -> N/A | H137: =IF(OR(E137="N/A",D137="N/A"),"N/A",(E137-F137)/G137) -> N/A | AB137: =H137 -> N/A
A138: =$A$94 -> Diagonal (RT) | B138: =$B$94 -> 2092 | C138: =$C$94 -> U9 L10 | D138: =$J$70 -> Compression | E138: =IF(G129="N/A","N/A",(H129*L129)+(I129*M129)) -> N/A | F138: =IF(OR(E138="N/A",D138="N/A"),"N/A",ABS(D70)) -> N/A | G138: =IF(OR(E138="N/A",D138="N/A"),"N/A",ABS(E70)) -> N/A | H138: =IF(OR(E138="N/A",D138="N/A"),"N/A",(E138-F138)/G138) -> N/A | AB138: =H138 -> N/A
A139: =$A$95 -> Vertical | B139: =$B$95 -> 2093 | C139: =$C$95 -> U9 L9 | D139: =$J$71 -> Tension | E139: =IF(G130="N/A","N/A",(H130*L130)+(I130*M130)) -> N/A | F139: =IF(OR(E139="N/A",D139="N/A"),"N/A",ABS(D71)) -> N/A | G139: =IF(OR(E139="N/A",D139="N/A"),"N/A",ABS(E71)) -> N/A | H139: =IF(OR(E139="N/A",D139="N/A"),"N/A",(E139-F139)/G139) -> N/A | AB139: =H139 -> N/A
A145: 3: Minimum Rivet Count Requirement | AA145: =MIN(AB165:AB169) -> 2.24140602 | AB145: =MIN(AH156:AK160) -> 1.379310345 | AC145: =IF(SUM(AC156:AC160)=0,"OK","NG") -> OK | AD145: =A145 -> 3: Minimum Rivet Count Requirement
A147: Rivet Diameter = | B147: =$B$23 -> 0.875 | C147: inch
A148: Rivet Area = | B148: =PI()*($B$23/2)^2 -> 0.6013204689 | C148: sq inch
A150: Maximum Plate Bearing Stress (ksi) | B150: Maximum Rivet Shear stress (ksi)
A151: =$F$42 -> 29.7 | B151: =$G$42 -> 21
A154: Axial Loading Acting to Shear Rivets
A155: Location | B155: ID | C155: Member | D155: Member Type | E155: Was Member Spliced at Joint Center? | F155: Was Member Butt End Milled? | G155: Max. Axial Factored Load* For Both Plates (kips) | H155: Total No. of Rivets At Member End for Both Plates (Provided) | I155: Inner Gusset Plates Actual Thickness (in) | J155: Outer Gusset Plates Actual Thickness (in) | K155: Actual Base Metal Thickness Total at Member End (in) | L155: Total No. of Rivets At Member End (Needed for Bearing on Gussets) | M155: Total No. of Rivets At Member End (Needed for Bearing on Base Metal) | N155: Total No. of Rivets At Member End (Needed for Shear in Rivets) | O155: Bearing on Gusset Plates Meets Requirement | P155: Bearing on Base Metal Meets Requirement | Q155: Shear in Rivets Meets Requirement | R155: Bearing on Gusset Plates C/D Ratio | S155: Bearing on Base Metal C/D Ratio | T155: Shear in Rivets C/D Ratio
A156: =$A$91 -> U/L Chord (LT) | B156: =$B$91 -> 2091 | C156: =$C$91 -> U8 U9 | D156: =J67 -> Compression | E156: =$K$67 -> Yes | F156: =$L$67 -> Yes | G156: =IF(C156="N/A","N/A",IF(E156="No","N/A",IF(AND(D156="Compression",F156="Yes"),ABS(G67)/2,IF(D156="Compression",ABS(G67),IF(D156="Tension",ABS(H67),MAX(ABS(G67),ABS(H67))))))) -> 390.988 | H156: =$I$91 -> 54 | I156: =IF(OR($B$49="N/A",$G$52="N/A"),"N/A",$B$49*$G$52) -> 0.5625 | J156: =IF(OR($B$53="N/A",$G$56="N/A"),"N/A",$B$53*$G$56) -> 0.5625 | K156: =$H$91 -> 2.9 | L156: =IF(C156="N/A","N/A",IF(E156="No","N/A",(INT(G156/((I156+J156)*$B$147*$A$151))+1))) -> 14 | M156: =IF(C156="N/A","N/A",IF(E156="No","N/A",INT(G156/((K156)*$B$147*$A$151))+1)) -> 6 | N156: =IF(C156="N/A","N/A",IF(E156="No","N/A",INT(G156/($B$148*$B$151*K91))+1)) -> 31 | O156: =IF(C156="N/A","N/A",IF(E156="No","N/A",IF(H156>=L156,"OK","NG"))) -> OK | P156: =IF(C156="N/A","N/A",IF(E156="No","N/A",IF(H156>=M156,"OK","NG"))) -> OK | Q156: =IF(C156="N/A","N/A",IF(E156="No","N/A",IF(H156>=N156,"OK","NG"))) -> OK | R156: =IF(G156=0,"N/A",IF(C156="N/A","N/A",IF(E156="No","N/A",(H156/L156)))) -> 3.857142857 | S156: =IF(G156=0,"N/A",IF(C156="N/A","N/A",IF(E156="No","N/A",(H156/M156)))) -> 9 | T156: =IF(G156=0,"N/A",IF(C156="N/A","N/A",IF(E156="No","N/A",(H156/N156)))) -> 1.741935484 | AB156: =IF(OR(AD156="N/A",AE156="N/A",AF156="N/A"),0,1) -> 1 | AC156: =IF(OR(AD156="NG",AE156="NG",AF156="NG",AG156="NG",AH156="NG",AI156="NG"),1,0) -> 0 | AD156: =O156 -> OK | AE156: OK | AF156: OK | AG156: 3.857142857 | AH156: 9 | AI156: 1.741935484
A157: =$A$92 -> U/L Chord (RT) | B157: =$B$92 -> None | C157: =$C$92 -> N/A | D157: =J68 -> N/A | E157: =$K$68 -> N/A | F157: =$L$68 -> N/A | G157: =IF(C157="N/A","N/A",IF(E157="No","N/A",IF(AND(D157="Compression",F157="Yes"),ABS(G68)/2,IF(D157="Compression",ABS(G68),IF(D157="Tension",ABS(H68),MAX(ABS(G68),ABS(H68))))))) -> N/A | H157: =$I$92 -> N/A | I157: =IF(OR($B$49="N/A",$H$52="N/A"),"N/A",$B$49*$H$52) -> N/A | J157: =IF(OR($B$53="N/A",$H$56="N/A"),"N/A",$B$53*$H$56) -> N/A | K157: =$H$92 -> N/A | L157: =IF(C157="N/A","N/A",IF(E157="No","N/A",(INT(G157/((I157+J157)*$B$147*$A$151))+1))) -> N/A | M157: =IF(C157="N/A","N/A",IF(E157="No","N/A",INT(G157/((K157)*$B$147*$A$151))+1)) -> N/A | N157: =IF(C157="N/A","N/A",IF(E157="No","N/A",INT(G157/($B$148*$B$151*K92))+1)) -> N/A | O157: =IF(C157="N/A","N/A",IF(E157="No","N/A",IF(H157>=L157,"OK","NG"))) -> N/A | P157: =IF(C157="N/A","N/A",IF(E157="No","N/A",IF(H157>=M157,"OK","NG"))) -> N/A | Q157: =IF(C157="N/A","N/A",IF(E157="No","N/A",IF(H157>=N157,"OK","NG"))) -> N/A | R157: =IF(G157=0,"N/A",IF(C157="N/A","N/A",IF(E157="No","N/A",(H157/L157)))) -> N/A | S157: =IF(G157=0,"N/A",IF(C157="N/A","N/A",IF(E157="No","N/A",(H157/M157)))) -> N/A | T157: =IF(G157=0,"N/A",IF(C157="N/A","N/A",IF(E157="No","N/A",(H157/N157)))) -> N/A | AB157: =IF(OR(AD157="N/A",AE157="N/A",AF157="N/A"),0,1) -> 0 | AC157: =IF(OR(AD157="NG",AE157="NG",AF157="NG",AG157="NG",AH157="NG",AI157="NG"),1,0) -> 0 | AD157: N/A | AE157: N/A | AF157: N/A | AG157: N/A | AH157: N/A | AI157: N/A
A158: =$A$93 -> Diagonal (LT) | B158: =$B$93 -> 2094 | C158: =$C$93 -> U9 L8 | D158: =J69 -> Tension | E158: =$K$69 -> Yes | F158: =$L$69 -> No | G158: =IF(C158="N/A","N/A",IF(E158="No","N/A",IF(AND(D158="Compression",F158="Yes"),ABS(G69)/2,IF(D158="Compression",ABS(G69),IF(D158="Tension",ABS(H69),MAX(ABS(G69),ABS(H69))))))) -> 358.267 | H158: =$I$93 -> 40 | I158: =IF(OR($B$49="N/A",$I$52="N/A"),"N/A",$B$49*$I$52) -> 0.5625 | J158: =IF(OR($B$53="N/A",$I$56="N/A"),"N/A",$B$53*$I$56) -> 0.5625 | K158: =$H$93 -> 1.212 | L158: =IF(C158="N/A","N/A",IF(E158="No","N/A",(INT(G158/((I158+J158)*$B$147*$A$151))+1))) -> 13 | M158: =IF(C158="N/A","N/A",IF(E158="No","N/A",INT(G158/((K158)*$B$147*$A$151))+1)) -> 12 | N158: =IF(C158="N/A","N/A",IF(E158="No","N/A",INT(G158/($B$148*$B$151*K93))+1)) -> 29 | O158: =IF(C158="N/A","N/A",IF(E158="No","N/A",IF(H158>=L158,"OK","NG"))) -> OK | P158: =IF(C158="N/A","N/A",IF(E158="No","N/A",IF(H158>=M158,"OK","NG"))) -> OK | Q158: =IF(C158="N/A","N/A",IF(E158="No","N/A",IF(H158>=N158,"OK","NG"))) -> OK | R158: =IF(G158=0,"N/A",IF(C158="N/A","N/A",IF(E158="No","N/A",(H158/L158)))) -> 3.076923077 | S158: =IF(G158=0,"N/A",IF(C158="N/A","N/A",IF(E158="No","N/A",(H158/M158)))) -> 3.333333333 | T158: =IF(G158=0,"N/A",IF(C158="N/A","N/A",IF(E158="No","N/A",(H158/N158)))) -> 1.379310345 | AB158: =IF(OR(AD158="N/A",AE158="N/A",AF158="N/A"),0,1) -> 1 | AC158: =IF(OR(AD158="NG",AE158="NG",AF158="NG",AG158="NG",AH158="NG",AI158="NG"),1,0) -> 0 | AD158: OK | AE158: OK | AF158: OK | AG158: 3.076923077 | AH158: 3.333333333 | AI158: 1.379310345
A159: =$A$94 -> Diagonal (RT) | B159: =$B$94 -> 2092 | C159: =$C$94 -> U9 L10 | D159: =J70 -> Compression | E159: =$K$70 -> Yes | F159: =$L$70 -> Yes | G159: =IF(C159="N/A","N/A",IF(E159="No","N/A",IF(AND(D159="Compression",F159="Yes"),ABS(G70)/2,IF(D159="Compression",ABS(G70),IF(D159="Tension",ABS(H70),MAX(ABS(G70),ABS(H70))))))) -> 401.0175 | H159: =$I$94 -> 128 | I159: =IF(OR($B$49="N/A",$J$52="N/A"),"N/A",$B$49*$J$52) -> 0.5625 | J159: =IF(OR($B$53="N/A",$J$56="N/A"),"N/A",$B$53*$J$56) -> 0.5625 | K159: =$H$94 -> 1.95 | L159: =IF(C159="N/A","N/A",IF(E159="No","N/A",(INT(G159/((I159+J159)*$B$147*$A$151))+1))) -> 14 | M159: =IF(C159="N/A","N/A",IF(E159="No","N/A",INT(G159/((K159)*$B$147*$A$151))+1)) -> 8 | N159: =IF(C159="N/A","N/A",IF(E159="No","N/A",INT(G159/($B$148*$B$151*K94))+1)) -> 32 | O159: =IF(C159="N/A","N/A",IF(E159="No","N/A",IF(H159>=L159,"OK","NG"))) -> OK | P159: =IF(C159="N/A","N/A",IF(E159="No","N/A",IF(H159>=M159,"OK","NG"))) -> OK | Q159: =IF(C159="N/A","N/A",IF(E159="No","N/A",IF(H159>=N159,"OK","NG"))) -> OK | R159: =IF(G159=0,"N/A",IF(C159="N/A","N/A",IF(E159="No","N/A",(H159/L159)))) -> 9.142857143 | S159: =IF(G159=0,"N/A",IF(C159="N/A","N/A",IF(E159="No","N/A",(H159/M159)))) -> 16 | T159: =IF(G159=0,"N/A",IF(C159="N/A","N/A",IF(E159="No","N/A",(H159/N159)))) -> 4 | AB159: =IF(OR(AD159="N/A",AE159="N/A",AF159="N/A"),0,1) -> 1 | AC159: =IF(OR(AD159="NG",AE159="NG",AF159="NG",AG159="NG",AH159="NG",AI159="NG"),1,0) -> 0 | AD159: OK | AE159: OK | AF159: OK | AG159: 9.142857143 | AH159: 16 | AI159: 4
A160: =$A$95 -> Vertical | B160: =$B$95 -> 2093 | C160: =$C$95 -> U9 L9 | D160: =J71 -> Tension | E160: =$K$71 -> Yes | F160: =$L$71 -> No | G160: =IF(C160="N/A","N/A",IF(E160="No","N/A",IF(AND(D160="Compression",F160="Yes"),ABS(G71)/2,IF(D160="Compression",ABS(G71),IF(D160="Tension",ABS(H71),MAX(ABS(G71),ABS(H71))))))) -> 170.209 | H160: =$I$95 -> 24 | I160: =IF(OR($B$49="N/A",$K$52="N/A"),"N/A",$B$49*$K$52) -> 0.5625 | J160: =IF(OR($B$53="N/A",$K$56="N/A"),"N/A",$B$53*$K$56) -> 0.5625 | K160: =$H$95 -> 1.282 | L160: =IF(C160="N/A","N/A",IF(E160="No","N/A",(INT(G160/((I160+J160)*$B$147*$A$151))+1))) -> 6 | M160: =IF(C160="N/A","N/A",IF(E160="No","N/A",INT(G160/((K160)*$B$147*$A$151))+1)) -> 6 | N160: =IF(C160="N/A","N/A",IF(E160="No","N/A",INT(G160/($B$148*$B$151*K95))+1)) -> 14 | O160: =IF(C160="N/A","N/A",IF(E160="No","N/A",IF(H160>=L160,"OK","NG"))) -> OK | P160: =IF(C160="N/A","N/A",IF(E160="No","N/A",IF(H160>=M160,"OK","NG"))) -> OK | Q160: =IF(C160="N/A","N/A",IF(E160="No","N/A",IF(H160>=N160,"OK","NG"))) -> OK | R160: =IF(G160=0,"N/A",IF(C160="N/A","N/A",IF(E160="No","N/A",(H160/L160)))) -> 4 | S160: =IF(G160=0,"N/A",IF(C160="N/A","N/A",IF(E160="No","N/A",(H160/M160)))) -> 4 | T160: =IF(G160=0,"N/A",IF(C160="N/A","N/A",IF(E160="No","N/A",(H160/N160)))) -> 1.714285714 | AB160: =IF(OR(AD160="N/A",AE160="N/A",AF160="N/A"),0,1) -> 1 | AC160: =IF(OR(AD160="NG",AE160="NG",AF160="NG",AG160="NG",AH160="NG",AI160="NG"),1,0) -> 0 | AD160: OK | AE160: OK | AF160: OK | AG160: 4 | AH160: 4 | AI160: 1.714285714
G161: * Use 50% of the max compression load if butt ends were milled in chord members- AASHTO 10.18.3
A163: Rating Factor For Axial Loading Acting on Rivets | C163: Rating Factor For Axial Loading Acting on Rivets
A164: Location | B164: ID | C164: Member | D164: Member Type | E164: Total Joint Factored Capacity for Bearing on Gusset Plates (kips) | F164: Total Joint Factored Capacity for Bearing on Base Metal (kips) | G164: Total Joint Factored Capacity for Shear in Rivets (kips) | H164: Total Joint Factored Dead Load* (kips) | I164: Total Joint Factored Live Load + I* (kips) | J164: Rating Factor (C - f1*DL) / (f2*LL+I) | AB164: 3. RF
A165: =$A$91 -> U/L Chord (LT) | B165: =$B$91 -> 2091 | C165: =$C$91 -> U8 U9 | D165: =$J$67 -> Compression | E165: =IF(E156="No","N/A",IF(D165="N/A","N/A",IF(AND($D$156="Compression",$F$156="Yes"),0.5*(H156*(I156+J156)*($B$147)*$A$151),H156*(I156+J156)*($B$147)*$A$151))) -> 789.3703125 | F165: =IF(E156="No","N/A",IF(D165="N/A","N/A",IF(AND($D$156="Compression",$F$156="Yes"),0.5*(H156*(K156)*(B147)*$A$151),H156*(K156)*($B$147)*$A$151))) -> 2034.82125 | G165: =IF(E156="No","N/A",IF(D165="N/A","N/A",K91*(H156*$B$148*$B$151))) -> 681.8974117 | H165: =IF(E156="No","N/A",IF(D165="N/A","N/A",IF(AND(D156="Compression",F156="Yes"),0.5*ABS(D67),ABS(D67)))) -> 278.005 | I165: =IF(E156="No","N/A",IF(D165="N/A","N/A",IF(AND(D67<=0,$D$156="Compression",$F$156="Yes"),0.5*ABS(E67),IF(AND(D67<=0,$D$156="Compression",$F$156="No"),ABS(E67),ABS(F67))))) -> 112.983 | J165: =IF(G165="N/A","N/A",((MIN(E165:G165)-H165)/I165)) -> 3.574806933 | AB165: =J165 -> 3.574806933
A166: =$A$92 -> U/L Chord (RT) | B166: =$B$92 -> None | C166: =$C$92 -> N/A | D166: =$J$68 -> N/A | E166: =IF(E157="No","N/A",IF(D166="N/A","N/A",IF(AND($D$157="Compression",$F$157="Yes"),0.5*(H157*(I157+J157)*($B$147)*$A$151),H157*(I157+J157)*($B$147)*$A$151))) -> N/A | F166: =IF(E157="No","N/A",IF(D166="N/A","N/A",IF(AND($D$157="Compression",$F$157="Yes"),0.5*(H157*(K157)*(B147)*$A$151),H157*(K157)*($B$147)*$A$151))) -> N/A | G166: =IF(E157="No","N/A",IF(D166="N/A","N/A",K92*(H157*$B$148*$B$151))) -> N/A | H166: =IF(E157="No","N/A",IF(D166="N/A","N/A",IF(AND(D157="Compression",F157="Yes"),0.5*ABS(D68),ABS(D68)))) -> N/A | I166: =IF(E157="No","N/A",IF(D166="N/A","N/A",IF(AND(D68<=0,$D$157="Compression",$F$157="Yes"),0.5*ABS(E68),IF(AND(D68<=0,$D$157="Compression",$F$157="No"),ABS(E68),ABS(F68))))) -> N/A | J166: =IF(G166="N/A","N/A",((MIN(E166:G166)-H166)/I166)) -> N/A | AB166: =J166 -> N/A
A167: =$A$93 -> Diagonal (LT) | B167: =$B$93 -> 2094 | C167: =$C$93 -> U9 L8 | D167: =$J$69 -> Tension | E167: =IF(E158="No","N/A",IF(D167="N/A","N/A",H158*(I158+J158)*($B$147)*$A$151)) -> 1169.4375 | F167: =IF(E158="No","N/A",IF(D167="N/A","N/A",H158*(K158)*($B$147)*$A$151)) -> 1259.874 | G167: =IF(E158="No","N/A",IF(D167="N/A","N/A",K93*(H158*$B$148*$B$151))) -> 505.1091938 | H167: =IF(E158="No","N/A",IF(D167="N/A","N/A",ABS(D69))) -> 239.98 | I167: =IF(E158="No","N/A",IF(D167="N/A","N/A",IF(D69<=0,ABS(E69),ABS(F69)))) -> 118.287 | J167: =IF(G167="N/A","N/A",((MIN(E167:G167)-H167)/I167)) -> 2.24140602 | AB167: =J167 -> 2.24140602
A168: =$A$94 -> Diagonal (RT) | B168: =$B$94 -> 2092 | C168: =$C$94 -> U9 L10 | D168: =$J$70 -> Compression | E168: =IF(E159="No","N/A",IF(D168="N/A","N/A",H159*(I159+J159)*($B$147)*$A$151)) -> 3742.2 | F168: =IF(E159="No","N/A",IF(D168="N/A","N/A",H159*(K159)*($B$147)*$A$151)) -> 6486.48 | G168: =IF(E159="No","N/A",IF(D168="N/A","N/A",K94*(H159*$B$148*$B$151))) -> 1616.34942 | H168: =IF(E159="No","N/A",IF(D168="N/A","N/A",ABS(D70))) -> 566.54 | I168: =IF(E159="No","N/A",IF(D168="N/A","N/A",IF(D70<=0,ABS(E70),ABS(F70)))) -> 235.495 | J168: =IF(G168="N/A","N/A",((MIN(E168:G168)-H168)/I168)) -> 4.457884118 | AB168: =J168 -> 4.457884118
A169: =$A$95 -> Vertical | B169: =$B$95 -> 2093 | C169: =$C$95 -> U9 L9 | D169: =$J$71 -> Tension | E169: =IF(E160="No","N/A",IF(D169="N/A","N/A",H160*(I160+J160)*($B$147)*$A$151)) -> 701.6625 | F169: =IF(E160="No","N/A",IF(D169="N/A","N/A",H160*(K160)*($B$147)*$A$151)) -> 799.5834 | G169: =IF(E160="No","N/A",IF(D169="N/A","N/A",K95*(H160*$B$148*$B$151))) -> 303.0655163 | H169: =IF(E160="No","N/A",IF(D169="N/A","N/A",ABS(D71))) -> 90.61 | I169: =IF(E160="No","N/A",IF(D169="N/A","N/A",IF(D71<=0,ABS(E71),ABS(F71)))) -> 79.599 | J169: =IF(G169="N/A","N/A",((MIN(E169:G169)-H169)/I169)) -> 2.669072681 | AB169: =J169 -> 2.669072681
F170: * Use 50% of the max compression load if butt ends were milled in chord members- AASHTO 10.18.3
A176: 4: Gusset Plate Local Tension Yield and Fracture | AA176: =MIN(AB193:AB197) -> 9.272190919 | AB176: =MIN(AE184:AE188) -> 4.111275599 | AC176: =IF(SUM(AC184:AC188)=0,"OK","NG") -> OK | AD176: =A176 -> 4: Gusset Plate Local Tension Yield and Fracture
A178: Fy = | B178: =B20/1000 -> 33 | C178: ksi (Yield/Fracture)
A179: Beta (β) = | B179: =$D$23 -> 0.15
A183: Location | B183: ID | C183: Member | D183: Member Type | E183: Was Member Spliced at Joint Center? | F183: Was Member Butt End Milled? | G183: Max. Axial Factored Load total for Both Plates(kips) | H183: Inner Gusset Plate Gross Area (g) | I183: Outer Gusset Plate Gross Area for One Plate Only (g) | J183: Inner Gusset Plate Net Area for One Plate Only (n) | K183: Outer Gusset Plate Net Area for One Plate Only (n) | L183: Ae - Effective Area for inner Plate (An + β*Ag) (sq in) | M183: Ae - Effective Area for Outer Plate (An + β*Ag) (sq in) | N183: Inner/Outer Gusset Plate Max Yield Stress Based on Effective Area (ksi) | O183: Meets Tension Stresses Yield & Fracture Requirement | P183: Tension Stresses Yield & Fracture C/D Ratio
A184: =$A$91 -> U/L Chord (LT) | B184: =$B$91 -> 2091 | C184: =$C$91 -> U8 U9 | D184: =$J$67 -> Compression | E184: =$K$67 -> Yes | F184: =$L$67 -> Yes | G184: =IF(D184="Compression","N/A",IF(C156="N/A","N/A",IF(OR(E156="No",F156="Yes"),"N/A",ABS(MAX(G67:H67))))) -> N/A | H184: =IF(G184="N/A","N/A",B49*G50*L91) -> N/A | I184: =IF(G184="N/A","N/A",B53*G54*L91) -> N/A | J184: =IF($G$184="N/A","N/A",B49*G50*(LOOKUP($C$48,'Info Tables'!$A$404:$A$443,'Info Tables'!$C$404:$C$443))) -> N/A | K184: =IF($G$184="N/A","N/A",B53*G54*(LOOKUP($C$48,'Info Tables'!$A$404:$A$443,'Info Tables'!$C$404:$C$443))) -> N/A | L184: =IF(H184="N/A","N/A",IF(J184+(H184*$B$179)>H184,H184,J184+(H184*$B$179))) -> N/A | M184: N/A | N184: =IF($G$184="N/A","N/A",MAX($G$184/$L$184,$G$184/$M$184)/2) -> N/A | O184: =IF(OR(G184="N/A",G184=0),"N/A",IF($B$178>=N184,"OK","NG")) -> N/A | P184: =IF(OR(G184="N/A",G184=0),"N/A",($B$178/N184)) -> N/A | AC184: =IF(OR(AD184="NG",AE184="NG",AF184="NG",AG184="NG",AH184="NG"),1,0) -> 0 | AD184: =O184 -> N/A | AE184: N/A
A185: =$A$92 -> U/L Chord (RT) | B185: =$B$92 -> None | C185: =$C$92 -> N/A | D185: =$J$68 -> N/A | E185: =$K$68 -> N/A | F185: =$L$68 -> N/A | G185: =IF(D185="Compression","N/A",IF(C157="N/A","N/A",IF(OR(E157="No",F157="Yes"),"N/A",ABS(MAX(G68:H68))))) -> N/A | H185: =IF(G185="N/A","N/A",B49*H50*L92) -> N/A | I185: =IF(G185="N/A","N/A",B53*H54*L92) -> N/A | J185: =IF($G$185="N/A","N/A",B49*H50*(LOOKUP($C$48,'Info Tables'!$A$404:$A$443,'Info Tables'!$D$404:$D$443))) -> N/A | K185: =IF($G$185="N/A","N/A",B53*H54*(LOOKUP($C$48,'Info Tables'!$A$404:$A$443,'Info Tables'!$D$404:$D$443))) -> N/A | L185: N/A | M185: N/A | N185: =IF($G$185="N/A","N/A",0.99*MAX($G$185/$L$185,$G$185/$M$185)/2) -> N/A | O185: =IF(OR(G185="N/A",G185=0),"N/A",IF($B$178>=N185,"OK","NG")) -> N/A | P185: =IF(OR(G185="N/A",G185=0),"N/A",($B$178/N185)) -> N/A | AC185: =IF(OR(AD185="NG",AE185="NG",AF185="NG",AG185="NG",AH185="NG"),1,0) -> 0 | AD185: N/A | AE185: N/A
A186: =$A$93 -> Diagonal (LT) | B186: =$B$93 -> 2094 | C186: =$C$93 -> U9 L8 | D186: =$J$69 -> Tension | E186: =$K$69 -> Yes | F186: =$L$69 -> No | G186: =IF(D186="Compression","N/A",IF(C158="N/A","N/A",IF(OR(E158="No",F158="Yes"),"N/A",ABS(MAX(G69:H69))))) -> 358.267 | H186: =IF(G186="N/A","N/A",B49*I50*L93) -> 22.3171875 | I186: =IF(G186="N/A","N/A",B53*I54*L93) -> 22.3171875 | J186: =IF($G$186="N/A","N/A",B49*I50*(LOOKUP($C$48,'Info Tables'!$A$404:$A$443,'Info Tables'!$E$404:$E$443))) -> 20.0671875 | K186: =IF($G$186="N/A","N/A",B53*I54*(LOOKUP($C$48,'Info Tables'!$A$404:$A$443,'Info Tables'!$E$404:$E$443))) -> 20.0671875 | L186: 22.3171875 | M186: 22.3171875 | N186: =IF($G$186="N/A","N/A",MAX($G$186/$L$186,$G$186/$M$186)/2) -> 8.026705874 | O186: =IF(OR(G186="N/A",G186=0),"N/A",IF($B$178>=N186,"OK","NG")) -> OK | P186: =IF(OR(G186="N/A",G186=0),"N/A",($B$178/N186)) -> 4.111275599 | AC186: =IF(OR(AD186="NG",AE186="NG",AF186="NG",AG186="NG",AH186="NG"),1,0) -> 0 | AD186: OK | AE186: 4.111275599
A187: =$A$94 -> Diagonal (RT) | B187: =$B$94 -> 2092 | C187: =$C$94 -> U9 L10 | D187: =$J$70 -> Compression | E187: =$K$70 -> Yes | F187: =$L$70 -> Yes | G187: =IF(D187="Compression","N/A",IF(C159="N/A","N/A",IF(OR(E159="No",F159="Yes"),"N/A",ABS(MAX(G70:H70))))) -> N/A | H187: =IF(G187="N/A","N/A",B49*J50*L94) -> N/A | I187: =IF(G187="N/A","N/A",B53*J54*L94) -> N/A | J187: =IF($G$187="N/A","N/A",B49*J50*(LOOKUP($C$48,'Info Tables'!$A$404:$A$443,'Info Tables'!$F$404:$F$443))) -> N/A | K187: =IF($G$187="N/A","N/A",B53*J54*(LOOKUP($C$48,'Info Tables'!$A$404:$A$443,'Info Tables'!$F$404:$F$443))) -> N/A | L187: N/A | M187: N/A | N187: =IF($G$187="N/A","N/A",MAX($G$187/$L$187,$G$187/$M$187)/2) -> N/A | O187: =IF(OR(G187="N/A",G187=0),"N/A",IF($B$178>=N187,"OK","NG")) -> N/A | P187: =IF(OR(G187="N/A",G187=0),"N/A",($B$178/N187)) -> N/A | AC187: =IF(OR(AD187="NG",AE187="NG",AF187="NG",AG187="NG",AH187="NG"),1,0) -> 0 | AD187: N/A | AE187: N/A
A188: =$A$95 -> Vertical | B188: =$B$95 -> 2093 | C188: =$C$95 -> U9 L9 | D188: =$J$71 -> Tension | E188: =$K$71 -> Yes | F188: =$L$71 -> No | G188: =IF(D188="Compression","N/A",IF(C160="N/A","N/A",IF(OR(E160="No",F160="Yes"),"N/A",ABS(MAX(G71:H71))))) -> 170.209 | H188: =IF(G188="N/A","N/A",B49*K50*L95) -> 12.5555625 | I188: =IF(G188="N/A","N/A",B53*K54*L95) -> 12.5555625 | J188: =IF($G$188="N/A","N/A",B49*K50*(LOOKUP($C$48,'Info Tables'!$A$404:$A$443,'Info Tables'!$G$404:$G$443))) -> 10.8680625 | K188: =IF($G$188="N/A","N/A",B53*K54*(LOOKUP($C$48,'Info Tables'!$A$404:$A$443,'Info Tables'!$G$404:$G$443))) -> 10.8680625 | L188: 12.5555625 | M188: 12.5555625 | N188: =IF($G$188="N/A","N/A",MAX($G$188/$L$188,$G$188/$M$188)/2) -> 6.778230764 | O188: =IF(OR(G188="N/A",G188=0),"N/A",IF($B$178>=N188,"OK","NG")) -> OK | P188: =IF(OR(G188="N/A",G188=0),"N/A",($B$178/N188)) -> 4.868527076 | AC188: =IF(OR(AD188="NG",AE188="NG",AF188="NG",AG188="NG",AH188="NG"),1,0) -> 0 | AD188: OK | AE188: 4.868527076
A191: Rating Factor For Local Tension and Fracture
A192: Location | B192: ID | C192: Member | D192: Member Type | E192: Inner Gusset Plates Actual Thickness For Whitmore (in) | F192: Outer Gusset Plates Actual Thickness For Whitmore (in) | G192: Whitmore Effective Gross Width "b" For One Plate (in) | H192: Whitmore Effective Net Width "b" For One Plate (in) | I192: Ag - Gross Area for Both Plates (sq in) | J192: An - Net Area for Both Plates (sq in) | K192: Ae - Effective Area for Both Plates (An + β*Ag) (sq in) | L192: Total Joint Factored Capacity (kips) | M192: Total Joint Factored Dead Load (kips) | N192: Total Joint Factored Live Load + I (kips) | O192: Rating Factor (C - f1*DL) / (f2*LL+I) | AB192: 4. RF
A193: =$A$91 -> U/L Chord (LT) | B193: =$B$91 -> 2091 | C193: =$C$91 -> U8 U9 | D193: =$J$67 -> Compression | E193: =IF(OR(B193="None",K67="No"),"N/A",$B$49*$G$50) -> 0.5625 | F193: =IF(OR(B193="None",K67="No"),"N/A",$B$53*$G$54) -> 0.5625 | G193: =IF(B193="None","N/A",(LOOKUP($C$48,'Info Tables'!$A$304:$A$343,'Info Tables'!$C$304:$C$343))) -> 27.162 | H193: =IF(B193="None","N/A",(LOOKUP($C$48,'Info Tables'!$A$404:$A$443,'Info Tables'!$C$404:$C$443))) -> 23.162 | I193: =IF(OR(B193="None",K67="No"),"N/A",(E193+F193)*G193) -> 30.55725 | J193: =IF(OR(B193="None",K67="No"),"N/A",(E193+F193)*H193) -> 26.05725 | K193: =IF(OR(B193="None",K67="No"),"N/A",IF(J193+($B$179*I193)>=I193,I193,(J193+($B$179*I193)))) -> 30.55725 | L193: =IF(OR(D193="Compression",D193="N/A",E184="No"),"N/A",MIN((I193*$B$178),(K193*$B$178))) -> N/A | M193: =IF(OR(D193="Compression",D193="N/A",E184="No"),"N/A",ABS($D$67)) -> N/A | N193: =IF(OR(D193="Compression",D193="N/A",E184="No"),"N/A",ABS($F$67)) -> N/A | O193: =IF(L193="N/A","N/A",(L193-M193)/N193) -> N/A | AB193: =O193 -> N/A
A194: =$A$92 -> U/L Chord (RT) | B194: =$B$92 -> None | C194: =$C$92 -> N/A | D194: =$J$68 -> N/A | E194: =IF(OR(B194="None",K68="No"),"N/A",$B$49*$H$50) -> N/A | F194: =IF(OR(B194="None",K68="No"),"N/A",$B$53*$H$54) -> N/A | G194: =IF(B194="None","N/A",(LOOKUP($C$48,'Info Tables'!$A$304:$A$343,'Info Tables'!$D$304:$D$343))) -> N/A | H194: =IF(B194="None","N/A",(LOOKUP($C$48,'Info Tables'!$A$404:$A$443,'Info Tables'!$D$404:$D$443))) -> N/A | I194: =IF(OR(B194="None",K68="No"),"N/A",(E194+F194)*G194) -> N/A | J194: =IF(OR(B194="None",K68="No"),"N/A",(E194+F194)*H194) -> N/A | K194: =IF(OR(B194="None",K68="No"),"N/A",IF(J194+($B$179*I194)>=I194,I194,(J194+($B$179*I194)))) -> N/A | L194: =IF(OR(D194="Compression",D194="N/A",E185="No"),"N/A",MIN((I194*$B$178),(K194*$B$178))) -> N/A | M194: =IF(OR(D194="Compression",D194="N/A",E185="No"),"N/A",ABS($D$68)) -> N/A | N194: =IF(OR(D194="Compression",D194="N/A",E185="No"),"N/A",ABS($F$68)) -> N/A | O194: =IF(L194="N/A","N/A",(L194-M194)/N194) -> N/A | AB194: =O194 -> N/A
A195: =$A$93 -> Diagonal (LT) | B195: =$B$93 -> 2094 | C195: =$C$93 -> U9 L8 | D195: =$J$69 -> Tension | E195: =IF(OR(B195="None",K69="No"),"N/A",$B$49*$I$50) -> 0.5625 | F195: =IF(OR(B195="None",K69="No"),"N/A",$B$53*$I$54) -> 0.5625 | G195: =IF(B195="None","N/A",(LOOKUP($C$48,'Info Tables'!$A$304:$A$343,'Info Tables'!$E$304:$E$343))) -> 39.675 | H195: =IF(B195="None","N/A",(LOOKUP($C$48,'Info Tables'!$A$404:$A$443,'Info Tables'!$E$404:$E$443))) -> 35.675 | I195: =IF(OR(B195="None",K69="No"),"N/A",(E195+F195)*G195) -> 44.634375 | J195: =IF(OR(B195="None",K69="No"),"N/A",(E195+F195)*H195) -> 40.134375 | K195: =IF(OR(B195="None",K69="No"),"N/A",IF(J195+($B$179*I195)>=I195,I195,(J195+($B$179*I195)))) -> 44.634375 | L195: =IF(OR(D195="Compression",D195="N/A",E186="No"),"N/A",MIN((I195*$B$178),(K195*$B$178))) -> 1472.934375 | M195: =IF(OR(D195="Compression",D195="N/A",E186="No"),"N/A",ABS($D$69)) -> 239.98 | N195: =IF(OR(D195="Compression",D195="N/A",E186="No"),"N/A",ABS($F$69)) -> 118.287 | O195: =IF(L195="N/A","N/A",(L195-M195)/N195) -> 10.42341403 | AB195: =O195 -> 10.42341403
A196: =$A$94 -> Diagonal (RT) | B196: =$B$94 -> 2092 | C196: =$C$94 -> U9 L10 | D196: =$J$70 -> Compression | E196: =IF(OR(B196="None",K70="No"),"N/A",$B$49*$J$50) -> 0.5625 | F196: =IF(OR(B196="None",K70="No"),"N/A",$B$53*$J$54) -> 0.5625 | G196: =IF(B196="None","N/A",(LOOKUP($C$48,'Info Tables'!$A$304:$A$343,'Info Tables'!$F$304:$F$343))) -> 29.327 | H196: =IF(B196="None","N/A",(LOOKUP($C$48,'Info Tables'!$A$404:$A$443,'Info Tables'!$F$404:$F$443))) -> 24.327 | I196: =IF(OR(B196="None",K70="No"),"N/A",(E196+F196)*G196) -> 32.992875 | J196: =IF(OR(B196="None",K70="No"),"N/A",(E196+F196)*H196) -> 27.367875 | K196: =IF(OR(B196="None",K70="No"),"N/A",IF(J196+($B$179*I196)>=I196,I196,(J196+($B$179*I196)))) -> 32.31680625 | L196: =IF(OR(D196="Compression",D196="N/A",E187="No"),"N/A",MIN((I196*$B$178),(K196*$B$178))) -> N/A | M196: =IF(OR(D196="Compression",D196="N/A",E187="No"),"N/A",ABS($D$70)) -> N/A | N196: =IF(OR(D196="Compression",D196="N/A",E187="No"),"N/A",ABS($F$70)) -> N/A | O196: =IF(L196="N/A","N/A",(L196-M196)/N196) -> N/A | AB196: =O196 -> N/A
A197: =$A$95 -> Vertical | B197: =$B$95 -> 2093 | C197: =$C$95 -> U9 L9 | D197: =$J$71 -> Tension | E197: =IF(OR(B197="None",K71="No"),"N/A",$B$49*$K$50) -> 0.5625 | F197: =IF(OR(B197="None",K71="No"),"N/A",$B$53*$K$54) -> 0.5625 | G197: =IF(B197="None","N/A",(LOOKUP($C$48,'Info Tables'!$A$304:$A$343,'Info Tables'!$G$304:$G$343))) -> 22.321 | H197: =IF(B197="None","N/A",(LOOKUP($C$48,'Info Tables'!$A$404:$A$443,'Info Tables'!$G$404:$G$443))) -> 19.321 | I197: =IF(OR(B197="None",K71="No"),"N/A",(E197+F197)*G197) -> 25.111125 | J197: =IF(OR(B197="None",K71="No"),"N/A",(E197+F197)*H197) -> 21.736125 | K197: =IF(OR(B197="None",K71="No"),"N/A",IF(J197+($B$179*I197)>=I197,I197,(J197+($B$179*I197)))) -> 25.111125 | L197: =IF(OR(D197="Compression",D197="N/A",E188="No"),"N/A",MIN((I197*$B$178),(K197*$B$178))) -> 828.667125 | M197: =IF(OR(D197="Compression",D197="N/A",E188="No"),"N/A",ABS($D$71)) -> 90.61 | N197: =IF(OR(D197="Compression",D197="N/A",E188="No"),"N/A",ABS($F$71)) -> 79.599 | O197: =IF(L197="N/A","N/A",(L197-M197)/N197) -> 9.272190919 | AB197: =O197 -> 9.272190919
A203: 5: Gusset Plate Axial Tension & Shear Rupture Resistance (Block Shear) | AA203: =MIN(AB231:AB235) -> 8.61193765 | AB203: =MIN(AE213:AE217,AE222:AE226) -> 3.646042267 | AC203: =IF(SUM(AC213:AC217,AC222:AC226)=0,"OK","NG") -> OK | AD203: =A203 -> 5: Gusset Plate Axial Tension & Shear Rupture Resistance (Block Shear)
A204: For Tensile Members Only
A206: =$A$20 -> Gusset Plate Steel Fy | B206: =$B$20/1000 -> 33 | C206: ksi
A207: =$A$21 -> Gusset Plate Steel Fu | B207: =$B$21/1000 -> 60 | C207: ksi
A208: =$A$32 -> Block Shear Load Factor Ø: | B208: =$B$32 -> 0.85
A211: Inner Plate | H211: Shear Stress* | J211: Tensile Stress
A212: Location | B212: ID | C212: Member | D212: Member Type | E212: Was Member Spliced at Joint Center? | F212: Was Member Butt End Milled? | G212: Max. Joint Factored Axial Load For Both Plates (kips) | H212: Ag - Inner Gusset Plate Gross Area (sq in) | I212: An - Inner Gusset Plate Net Area* (sq in) | J212: Ag - Inner Gusset Plate Gross Area (sq in) | K212: An - Inner Gusset Plate Net Area (sq in) | L212: Maximum Load Capacity For Block Shear 1 Ø(FyAvg + FuAtn) (kips) | M212: Maximum Load Capacity For Block Shear 2 Ø( FuAvn + FyAtg) (kips) | N212: Meets Block Shear Rupture Resistance Requirement | O212: Block Shear Rupture Resistance C/D Ratio
A213: =$A$91 -> U/L Chord (LT) | B213: =$B$91 -> 2091 | C213: =$C$91 -> U8 U9 | D213: =$J$67 -> Compression | E213: =$K$67 -> Yes | F213: =$L$67 -> Yes | G213: =IF(D213="Compression","N/A",IF(C213="N/A","N/A",IF(OR(E213="No",F213="Yes"),"N/A",ABS(MAX(G67:H67))))) -> N/A | H213: =IF(D213="Compression","N/A",IF(C213="N/A","N/A",IF(OR(E213="No",F213="Yes"),"N/A",0.5*$E$91*LOOKUP($C$48,'Info Tables'!$A$554:$A$593,'Info Tables'!$C$554:$C$593)))) -> N/A | I213: =IF(D213="Compression","N/A",IF(C213="N/A","N/A",IF(OR(E213="No",F213="Yes"),"N/A",0.5*$E$91*LOOKUP($C$48,'Info Tables'!$A$604:$A$643,'Info Tables'!$C$604:$C$643)))) -> N/A | J213: =IF(D213="Compression","N/A",IF(C213="N/A","N/A",IF(OR(E213="No",F213="Yes"),"N/A",G49*$B$49*LOOKUP($C$48,'Info Tables'!$A$454:$A$493,'Info Tables'!$C$454:$C$493)))) -> N/A | K213: =IF(D213="Compression","N/A",IF(C213="N/A","N/A",IF(OR(E213="No",F213="Yes"),"N/A",G49*$B$49*LOOKUP($C$48,'Info Tables'!$A$504:$A$543,'Info Tables'!$C$504:$C$543)))) -> N/A | L213: =IF(D213="Compression","N/A",IF(C213="N/A","N/A",IF(OR(E213="No",F213="Yes"),"N/A",$B$208*(($B$206*0.58*H213)+($B$207*K213))))) -> N/A | M213: =IF(D213="Compression","N/A",IF(C213="N/A","N/A",IF(OR(E213="No",F213="Yes"),"N/A",$B$208*(($B$207*0.58*I213)+($B$206*J213))))) -> N/A | N213: =IF(D213="Compression","N/A",IF(OR(C213="N/A",G213=0),"N/A",IF(OR(E213="No",F213="Yes"),"N/A",IF(MIN(L213:M213)>=(G213/2),"OK","NG")))) -> N/A | O213: =IF(D213="Compression","N/A",IF(OR(C213="N/A",G213=0),"N/A",IF(OR(E213="No",F213="Yes"),"N/A",MIN(L213/(G213/2),M213/(G213/2))))) -> N/A | AC213: =IF(OR(AD213="NG",AE213="NG",AF213="NG",AG213="NG",AH213="NG"),1,0) -> 0 | AD213: =N213 -> N/A | AE213: N/A
A214: =$A$92 -> U/L Chord (RT) | B214: =$B$92 -> None | C214: =$C$92 -> N/A | D214: =$J$68 -> N/A | E214: =$K$68 -> N/A | F214: =$L$68 -> N/A | G214: =IF(D214="Compression","N/A",IF(C214="N/A","N/A",IF(OR(E214="No",F214="Yes"),"N/A",ABS(MAX(G68:H68))))) -> N/A | H214: =IF(D214="Compression","N/A",IF(C214="N/A","N/A",IF(OR(E214="No",F214="Yes"),"N/A",0.5*$E$92*LOOKUP($C$48,'Info Tables'!$A$554:$A$593,'Info Tables'!$D$554:$D$593)))) -> N/A | I214: =IF(D214="Compression","N/A",IF(C214="N/A","N/A",IF(OR(E214="No",F214="Yes"),"N/A",0.5*$E$92*LOOKUP($C$48,'Info Tables'!$A$604:$A$643,'Info Tables'!$D$604:$D$643)))) -> N/A | J214: =IF(D214="Compression","N/A",IF(C214="N/A","N/A",IF(OR(E214="No",F214="Yes"),"N/A",H49*$B$49*LOOKUP($C$48,'Info Tables'!$A$454:$A$493,'Info Tables'!$D$454:$D$493)))) -> N/A | K214: =IF(D214="Compression","N/A",IF(C214="N/A","N/A",IF(OR(E214="No",F214="Yes"),"N/A",H49*$B$49*(LOOKUP($C$48,'Info Tables'!$A$504:$A$543,'Info Tables'!$D$504:$D$543))))) -> N/A | L214: =IF(D214="Compression","N/A",IF(C214="N/A","N/A",IF(OR(E214="No",F214="Yes"),"N/A",$B$208*(($B$206*0.58*H214)+($B$207*K214))))) -> N/A | M214: =IF(D214="Compression","N/A",IF(C214="N/A","N/A",IF(OR(E214="No",F214="Yes"),"N/A",$B$208*(($B$207*0.58*I214)+($B$206*J214))))) -> N/A | N214: =IF(D214="Compression","N/A",IF(OR(C214="N/A",G214=0),"N/A",IF(OR(E214="No",F214="Yes"),"N/A",IF(MIN(L214:M214)>=(G214/2),"OK","NG")))) -> N/A | O214: =IF(D214="Compression","N/A",IF(OR(C214="N/A",G214=0),"N/A",IF(OR(E214="No",F214="Yes"),"N/A",MIN(L214/(G214/2),M214/(G214/2))))) -> N/A | AC214: =IF(OR(AD214="NG",AE214="NG",AF214="NG",AG214="NG",AH214="NG"),1,0) -> 0 | AD214: N/A | AE214: N/A
A215: =$A$93 -> Diagonal (LT) | B215: =$B$93 -> 2094 | C215: =$C$93 -> U9 L8 | D215: =$J$69 -> Tension | E215: =$K$69 -> Yes | F215: =$L$69 -> No | G215: =IF(D215="Compression","N/A",IF(C215="N/A","N/A",IF(OR(E215="No",F215="Yes"),"N/A",ABS(MAX(G69:H69))))) -> 358.267 | H215: =IF(D215="Compression","N/A",IF(C215="N/A","N/A",IF(OR(E215="No",F215="Yes"),"N/A",$E$93*LOOKUP($C$48,'Info Tables'!$A$554:$A$593,'Info Tables'!$E$554:$E$593)))) -> 28.6875 | I215: =IF(D215="Compression","N/A",IF(C215="N/A","N/A",IF(OR(E215="No",F215="Yes"),"N/A",$E$93*LOOKUP($C$48,'Info Tables'!$A$604:$A$643,'Info Tables'!$E$604:$E$643)))) -> 23.0625 | J215: =IF(D215="Compression","N/A",IF(C215="N/A","N/A",IF(OR(E215="No",F215="Yes"),"N/A",I49*$B$49*LOOKUP($C$48,'Info Tables'!$A$454:$A$493,'Info Tables'!$E$454:$E$493)))) -> 4.780125 | K215: =IF(D215="Compression","N/A",IF(C215="N/A","N/A",IF(OR(E215="No",F215="Yes"),"N/A",I49*$B$49*(LOOKUP($C$48,'Info Tables'!$A$504:$A$543,'Info Tables'!$E$504:$E$543))))) -> 3.655125 | L215: =IF(D215="Compression","N/A",IF(C215="N/A","N/A",IF(OR(E215="No",F215="Yes"),"N/A",$B$208*(($B$206*0.58*H215)+($B$207*K215))))) -> 653.1283125 | M215: =IF(D215="Compression","N/A",IF(C215="N/A","N/A",IF(OR(E215="No",F215="Yes"),"N/A",$B$208*(($B$207*0.58*I215)+($B$206*J215))))) -> 816.2712562 | N215: =IF(D215="Compression","N/A",IF(OR(C215="N/A",G215=0),"N/A",IF(OR(E215="No",F215="Yes"),"N/A",IF(MIN(L215:M215)>=(G215/2),"OK","NG")))) -> OK | O215: =IF(D215="Compression","N/A",IF(OR(C215="N/A",G215=0),"N/A",IF(OR(E215="No",F215="Yes"),"N/A",MIN(L215/(G215/2),M215/(G215/2))))) -> 3.646042267 | AC215: =IF(OR(AD215="NG",AE215="NG",AF215="NG",AG215="NG",AH215="NG"),1,0) -> 0 | AD215: OK | AE215: 3.646042267
A216: =$A$94 -> Diagonal (RT) | B216: =$B$94 -> 2092 | C216: =$C$94 -> U9 L10 | D216: =$J$70 -> Compression | E216: =$K$70 -> Yes | F216: =$L$70 -> Yes | G216: =IF(D216="Compression","N/A",IF(C216="N/A","N/A",IF(OR(E216="No",F216="Yes"),"N/A",ABS(MAX(G70:H70))))) -> N/A | H216: =IF(D216="Compression","N/A",IF(C216="N/A","N/A",IF(OR(E216="No",F216="Yes"),"N/A",$E$94*LOOKUP($C$48,'Info Tables'!$A$554:$A$593,'Info Tables'!$F$554:$F$593)))) -> N/A | I216: =IF(D216="Compression","N/A",IF(C216="N/A","N/A",IF(OR(E216="No",F216="Yes"),"N/A",$E$94*LOOKUP($C$48,'Info Tables'!$A$604:$A$643,'Info Tables'!$F$604:$F$643)))) -> N/A | J216: =IF(D216="Compression","N/A",IF(C216="N/A","N/A",IF(OR(E216="No",F216="Yes"),"N/A",J49*$B$49*LOOKUP($C$48,'Info Tables'!$A$454:$A$493,'Info Tables'!$F$454:$F$493)))) -> N/A | K216: =IF(D216="Compression","N/A",IF(C216="N/A","N/A",IF(OR(E216="No",F216="Yes"),"N/A",J49*$B$49*(LOOKUP($C$48,'Info Tables'!$A$504:$A$543,'Info Tables'!$F$504:$F$543))))) -> N/A | L216: =IF(D216="Compression","N/A",IF(C216="N/A","N/A",IF(OR(E216="No",F216="Yes"),"N/A",$B$208*(($B$206*0.58*H216)+($B$207*K216))))) -> N/A | M216: =IF(D216="Compression","N/A",IF(C216="N/A","N/A",IF(OR(E216="No",F216="Yes"),"N/A",$B$208*(($B$207*0.58*I216)+($B$206*J216))))) -> N/A | N216: =IF(D216="Compression","N/A",IF(OR(C216="N/A",G216=0),"N/A",IF(OR(E216="No",F216="Yes"),"N/A",IF(MIN(L216:M216)>=(G216/2),"OK","NG")))) -> N/A | O216: =IF(D216="Compression","N/A",IF(OR(C216="N/A",G216=0),"N/A",IF(OR(E216="No",F216="Yes"),"N/A",MIN(L216/(G216/2),M216/(G216/2))))) -> N/A | AC216: =IF(OR(AD216="NG",AE216="NG",AF216="NG",AG216="NG",AH216="NG"),1,0) -> 0 | AD216: N/A | AE216: N/A
A217: =$A$95 -> Vertical | B217: =$B$95 -> 2093 | C217: =$C$95 -> U9 L9 | D217: =$J$71 -> Tension | E217: =$K$71 -> Yes | F217: =$L$71 -> No | G217: =IF(D217="Compression","N/A",IF(C217="N/A","N/A",IF(OR(E217="No",F217="Yes"),"N/A",ABS(MAX(G71:H71))))) -> 170.209 | H217: =IF(D217="Compression","N/A",IF(C217="N/A","N/A",IF(OR(E217="No",F217="Yes"),"N/A",$E$95*LOOKUP($C$48,'Info Tables'!$A$554:$A$593,'Info Tables'!$G$554:$G$593)))) -> 18.5625 | I217: =IF(D217="Compression","N/A",IF(C217="N/A","N/A",IF(OR(E217="No",F217="Yes"),"N/A",$E$95*LOOKUP($C$48,'Info Tables'!$A$604:$A$643,'Info Tables'!$G$604:$G$643)))) -> 11.8125 | J217: =IF(D217="Compression","N/A",IF(C217="N/A","N/A",IF(OR(E217="No",F217="Yes"),"N/A",K49*$B$49*LOOKUP($C$48,'Info Tables'!$A$454:$A$493,'Info Tables'!$G$454:$G$493)))) -> 2.8125 | K217: =IF(D217="Compression","N/A",IF(C217="N/A","N/A",IF(OR(E217="No",F217="Yes"),"N/A",K49*$B$49*(LOOKUP($C$48,'Info Tables'!$A$504:$A$543,'Info Tables'!$G$504:$G$543))))) -> 1.6875 | L217: =IF(D217="Compression","N/A",IF(C217="N/A","N/A",IF(OR(E217="No",F217="Yes"),"N/A",$B$208*(($B$206*0.58*H217)+($B$207*K217))))) -> 388.0558125 | M217: =IF(D217="Compression","N/A",IF(C217="N/A","N/A",IF(OR(E217="No",F217="Yes"),"N/A",$B$208*(($B$207*0.58*I217)+($B$206*J217))))) -> 428.304375 | N217: =IF(D217="Compression","N/A",IF(OR(C217="N/A",G217=0),"N/A",IF(OR(E217="No",F217="Yes"),"N/A",IF(MIN(L217:M217)>=(G217/2),"OK","NG")))) -> OK | O217: =IF(D217="Compression","N/A",IF(OR(C217="N/A",G217=0),"N/A",IF(OR(E217="No",F217="Yes"),"N/A",MIN(L217/(G217/2),M217/(G217/2))))) -> 4.559756681 | AC217: =IF(OR(AD217="NG",AE217="NG",AF217="NG",AG217="NG",AH217="NG"),1,0) -> 0 | AD217: OK | AE217: 4.559756681
I218: * Use 1/2 the shear length in chords due to fractured section
A220: Outer Plate | H220: Shear Stress* | J220: Tensile Stress
A221: Location | B221: ID | C221: Member | D221: Member Type | E221: Was Member Spliced at Joint Center? | F221: Was Member Butt End Milled? | G221: Max. Joint Axial Load For Both Plates (kips) | H221: Ag - Outer Gusset Plate Gross Area (sq in) | I221: An - Outer Gusset Plate Net Area* (sq in) | J221: Outer Gusset Plate Gross Area (sq in) | K221: Outer Gusset Plate Net Area (sq in) | L221: Maximum Load Capacity For Block Shear 1 Ø(FyAvg + FuAtn) (kips) | M221: Maximum Load Capacity For Block Shear 2 Ø( FuAvn + FyAtg) (kips) | N221: Meets Block Shear Rupture Resistance Requirement | O221: Block Shear Rupture Resistance C/D Ratio
A222: =$A$91 -> U/L Chord (LT) | B222: =$B$91 -> 2091 | C222: =$C$91 -> U8 U9 | D222: =$J$67 -> Compression | E222: =$K$67 -> Yes | F222: =$L$67 -> Yes | G222: =IF(D222="Compression","N/A",G213) -> N/A | H222: =IF(D222="Compression","N/A",IF(C222="N/A","N/A",IF(OR(E222="No",F222="Yes"),"N/A",0.5*$G$91*LOOKUP($C$48,'Info Tables'!$A$554:$A$593,'Info Tables'!$C$554:$C$593)))) -> N/A | I222: =IF(D222="Compression","N/A",IF(C222="N/A","N/A",IF(OR(E222="No",F222="Yes"),"N/A",0.5*$G$91*LOOKUP($C$48,'Info Tables'!$A$604:$A$643,'Info Tables'!$C$604:$C$643)))) -> N/A | J222: =IF(D222="Compression","N/A",IF(C222="N/A","N/A",IF(OR(E222="No",F222="Yes"),"N/A",G53*$B$53*LOOKUP($C$48,'Info Tables'!$A$454:$A$493,'Info Tables'!$C$454:$C$493)))) -> N/A | K222: =IF(D222="Compression","N/A",IF(C222="N/A","N/A",IF(OR(E222="No",F222="Yes"),"N/A",G53*$B$53*(LOOKUP($C$48,'Info Tables'!$A$504:$A$543,'Info Tables'!$C$504:$C$543))))) -> N/A | L222: =IF(D222="Compression","N/A",IF(C222="N/A","N/A",IF(OR(E222="No",F222="Yes"),"N/A",$B$208*(($B$206*0.58*H222)+($B$207*K222))))) -> N/A | M222: =IF(D222="Compression","N/A",IF(C222="N/A","N/A",IF(OR(E222="No",F222="Yes"),"N/A",$B$208*(($B$207*0.58*I222)+($B$206*J222))))) -> N/A | N222: =IF(D222="Compression","N/A",IF(OR(C222="N/A",G222=0),"N/A",IF(OR(E222="No",F222="Yes"),"N/A",IF(MIN(L222:M222)>=G222/2,"OK","NG")))) -> N/A | O222: =IF(D222="Compression","N/A",IF(OR(C222="N/A",G222=0),"N/A",IF(OR(E222="No",F222="Yes"),"N/A",MIN(L222/(G222/2),M222/(G222/2))))) -> N/A | AC222: =IF(OR(AD222="NG",AE222="NG",AF222="NG",AG222="NG",AH222="NG"),1,0) -> 0 | AD222: =N222 -> N/A | AE222: N/A
A223: =$A$92 -> U/L Chord (RT) | B223: =$B$92 -> None | C223: =$C$92 -> N/A | D223: =$J$68 -> N/A | E223: =$K$68 -> N/A | F223: =$L$68 -> N/A | G223: =IF(D223="Compression","N/A",G214) -> N/A | H223: =IF(D223="Compression","N/A",IF(C223="N/A","N/A",IF(OR(E223="No",F223="Yes"),"N/A",0.5*$G$92*LOOKUP($C$48,'Info Tables'!$A$554:$A$593,'Info Tables'!$D$554:$D$593)))) -> N/A | I223: =IF(D223="Compression","N/A",IF(C223="N/A","N/A",IF(OR(E223="No",F223="Yes"),"N/A",0.5*$G$92*LOOKUP($C$48,'Info Tables'!$A$604:$A$643,'Info Tables'!$D$604:$D$643)))) -> N/A | J223: =IF(D223="Compression","N/A",IF(C223="N/A","N/A",IF(OR(E223="No",F223="Yes"),"N/A",H53*$B$53*LOOKUP($C$48,'Info Tables'!$A$454:$A$493,'Info Tables'!$D$454:$D$493)))) -> N/A | K223: =IF(D223="Compression","N/A",IF(C223="N/A","N/A",IF(OR(E223="No",F223="Yes"),"N/A",H53*$B$53*(LOOKUP($C$48,'Info Tables'!$A$504:$A$543,'Info Tables'!$D$504:$D$543))))) -> N/A | L223: =IF(D223="Compression","N/A",IF(C223="N/A","N/A",IF(OR(E223="No",F223="Yes"),"N/A",$B$208*(($B$206*0.58*H223)+($B$207*K223))))) -> N/A | M223: =IF(D223="Compression","N/A",IF(C223="N/A","N/A",IF(OR(E223="No",F223="Yes"),"N/A",$B$208*(($B$207*0.58*I223)+($B$206*J223))))) -> N/A | N223: =IF(D223="Compression","N/A",IF(OR(C223="N/A",G223=0),"N/A",IF(OR(E223="No",F223="Yes"),"N/A",IF(MIN(L223:M223)>=G223/2,"OK","NG")))) -> N/A | O223: =IF(D223="Compression","N/A",IF(OR(C223="N/A",G223=0),"N/A",IF(OR(E223="No",F223="Yes"),"N/A",MIN(L223/(G223/2),M223/(G223/2))))) -> N/A | AC223: =IF(OR(AD223="NG",AE223="NG",AF223="NG",AG223="NG",AH223="NG"),1,0) -> 0 | AD223: N/A | AE223: N/A
A224: =$A$93 -> Diagonal (LT) | B224: =$B$93 -> 2094 | C224: =$C$93 -> U9 L8 | D224: =$J$69 -> Tension | E224: =$K$69 -> Yes | F224: =$L$69 -> No | G224: =IF(D224="Compression","N/A",G215) -> 358.267 | H224: =IF(D224="Compression","N/A",IF(C224="N/A","N/A",IF(OR(E224="No",F224="Yes"),"N/A",$G$93*LOOKUP($C$48,'Info Tables'!$A$554:$A$593,'Info Tables'!$E$554:$E$593)))) -> 28.6875 | I224: =IF(D224="Compression","N/A",IF(C224="N/A","N/A",IF(OR(E224="No",F224="Yes"),"N/A",$G$93*LOOKUP($C$48,'Info Tables'!$A$604:$A$643,'Info Tables'!$E$604:$E$643)))) -> 23.0625 | J224: =IF(D224="Compression","N/A",IF(C224="N/A","N/A",IF(OR(E224="No",F224="Yes"),"N/A",I53*$B$53*LOOKUP($C$48,'Info Tables'!$A$454:$A$493,'Info Tables'!$E$454:$E$493)))) -> 4.780125 | K224: =IF(D224="Compression","N/A",IF(C224="N/A","N/A",IF(OR(E224="No",F224="Yes"),"N/A",I53*$B$53*(LOOKUP($C$48,'Info Tables'!$A$504:$A$543,'Info Tables'!$E$504:$E$543))))) -> 3.655125 | L224: =IF(D224="Compression","N/A",IF(C224="N/A","N/A",IF(OR(E224="No",F224="Yes"),"N/A",$B$208*(($B$206*0.58*H224)+($B$207*K224))))) -> 653.1283125 | M224: =IF(D224="Compression","N/A",IF(C224="N/A","N/A",IF(OR(E224="No",F224="Yes"),"N/A",$B$208*(($B$207*0.58*I224)+($B$206*J224))))) -> 816.2712562 | N224: =IF(D224="Compression","N/A",IF(OR(C224="N/A",G224=0),"N/A",IF(OR(E224="No",F224="Yes"),"N/A",IF(MIN(L224:M224)>=G224/2,"OK","NG")))) -> OK | O224: =IF(D224="Compression","N/A",IF(OR(C224="N/A",G224=0),"N/A",IF(OR(E224="No",F224="Yes"),"N/A",MIN(L224/(G224/2),M224/(G224/2))))) -> 3.646042267 | AC224: =IF(OR(AD224="NG",AE224="NG",AF224="NG",AG224="NG",AH224="NG"),1,0) -> 0 | AD224: OK | AE224: 3.646042267
A225: =$A$94 -> Diagonal (RT) | B225: =$B$94 -> 2092 | C225: =$C$94 -> U9 L10 | D225: =$J$70 -> Compression | E225: =$K$70 -> Yes | F225: =$L$70 -> Yes | G225: =IF(D225="Compression","N/A",G216) -> N/A | H225: =IF(D225="Compression","N/A",IF(C225="N/A","N/A",IF(OR(E225="No",F225="Yes"),"N/A",$G$94*LOOKUP($C$48,'Info Tables'!$A$554:$A$593,'Info Tables'!$F$554:$F$593)))) -> N/A | I225: =IF(D225="Compression","N/A",IF(C225="N/A","N/A",IF(OR(E225="No",F225="Yes"),"N/A",$G$94*LOOKUP($C$48,'Info Tables'!$A$604:$A$643,'Info Tables'!$F$604:$F$643)))) -> N/A | J225: =IF(D225="Compression","N/A",IF(C225="N/A","N/A",IF(OR(E225="No",F225="Yes"),"N/A",J53*$B$53*LOOKUP($C$48,'Info Tables'!$A$454:$A$493,'Info Tables'!$F$454:$F$493)))) -> N/A | K225: =IF(D225="Compression","N/A",IF(C225="N/A","N/A",IF(OR(E225="No",F225="Yes"),"N/A",J53*$B$53*(LOOKUP($C$48,'Info Tables'!$A$504:$A$543,'Info Tables'!$F$504:$F$543))))) -> N/A | L225: =IF(D225="Compression","N/A",IF(C225="N/A","N/A",IF(OR(E225="No",F225="Yes"),"N/A",$B$208*(($B$206*0.58*H225)+($B$207*K225))))) -> N/A | M225: =IF(D225="Compression","N/A",IF(C225="N/A","N/A",IF(OR(E225="No",F225="Yes"),"N/A",$B$208*(($B$207*0.58*I225)+($B$206*J225))))) -> N/A | N225: =IF(D225="Compression","N/A",IF(OR(C225="N/A",G225=0),"N/A",IF(OR(E225="No",F225="Yes"),"N/A",IF(MIN(L225:M225)>=G225/2,"OK","NG")))) -> N/A | O225: =IF(D225="Compression","N/A",IF(OR(C225="N/A",G225=0),"N/A",IF(OR(E225="No",F225="Yes"),"N/A",MIN(L225/(G225/2),M225/(G225/2))))) -> N/A | AC225: =IF(OR(AD225="NG",AE225="NG",AF225="NG",AG225="NG",AH225="NG"),1,0) -> 0 | AD225: N/A | AE225: N/A
A226: =$A$95 -> Vertical | B226: =$B$95 -> 2093 | C226: =$C$95 -> U9 L9 | D226: =$J$71 -> Tension | E226: =$K$71 -> Yes | F226: =$L$71 -> No | G226: =IF(D226="Compression","N/A",G217) -> 170.209 | H226: =IF(D226="Compression","N/A",IF(C226="N/A","N/A",IF(OR(E226="No",F226="Yes"),"N/A",$G$95*LOOKUP($C$48,'Info Tables'!$A$554:$A$593,'Info Tables'!$G$554:$G$593)))) -> 18.5625 | I226: =IF(D226="Compression","N/A",IF(C226="N/A","N/A",IF(OR(E226="No",F226="Yes"),"N/A",$G$95*LOOKUP($C$48,'Info Tables'!$A$604:$A$643,'Info Tables'!$G$604:$G$643)))) -> 11.8125 | J226: =IF(D226="Compression","N/A",IF(C226="N/A","N/A",IF(OR(E226="No",F226="Yes"),"N/A",K53*$B$53*LOOKUP($C$48,'Info Tables'!$A$454:$A$493,'Info Tables'!$G$454:$G$493)))) -> 2.8125 | K226: =IF(D226="Compression","N/A",IF(C226="N/A","N/A",IF(OR(E226="No",F226="Yes"),"N/A",K53*$B$53*(LOOKUP($C$48,'Info Tables'!$A$504:$A$543,'Info Tables'!$G$504:$G$543))))) -> 1.6875 | L226: =IF(D226="Compression","N/A",IF(C226="N/A","N/A",IF(OR(E226="No",F226="Yes"),"N/A",$B$208*(($B$206*0.58*H226)+($B$207*K226))))) -> 388.0558125 | M226: =IF(D226="Compression","N/A",IF(C226="N/A","N/A",IF(OR(E226="No",F226="Yes"),"N/A",$B$208*(($B$207*0.58*I226)+($B$206*J226))))) -> 428.304375 | N226: =IF(D226="Compression","N/A",IF(OR(C226="N/A",G226=0),"N/A",IF(OR(E226="No",F226="Yes"),"N/A",IF(MIN(L226:M226)>=G226/2,"OK","NG")))) -> OK | O226: =IF(D226="Compression","N/A",IF(OR(C226="N/A",G226=0),"N/A",IF(OR(E226="No",F226="Yes"),"N/A",MIN(L226/(G226/2),M226/(G226/2))))) -> 4.559756681 | AC226: =IF(OR(AD226="NG",AE226="NG",AF226="NG",AG226="NG",AH226="NG"),1,0) -> 0 | AD226: OK | AE226: 4.559756681
I227: * Use 1/2 the shear length in chords due to fractured section
A229: Rating Factor For Axial Tension & Shear Rupture Resistance (Block Shear)
A230: Location | B230: ID | C230: Member | D230: Member Type | E230: Block shear Capacity 1 (FyAvg + FuAtn) For Both Plates (kips) | F230: Block Shear Capacity 2 (FuAvn + FyAtg) For Both Plates (kips) | G230: Total Joint Block Shear Capacity For Both Plates (kips) | H230: Total Joint DL For Both Plates (kips) | I230: Total Joint LL + I For Both Plates (kips) | J230: Rating Factor (C - f1*DL) / (f2*LL+I) | AB230: 6. RF
A231: =$A$91 -> U/L Chord (LT) | B231: =$B$91 -> 2091 | C231: =$C$91 -> U8 U9 | D231: =$J$67 -> Compression | E231: =IF(G222="N/A","N/A",L213+L222) -> N/A | F231: =IF(H222="N/A","N/A",M213+M222) -> N/A | G231: =IF(F231="N/A","N/A",MIN(E231,F231)) -> N/A | H231: =IF(F231="N/A","N/A",ABS($D$67)) -> N/A | I231: =IF(C231="N/A","N/A",MAX(ABS($E$67),ABS($F$67))) -> 225.966 | J231: =IF(G231="N/A","N/A",(G231-H231)/I231) -> N/A | AB231: =J231 -> N/A
A232: =$A$92 -> U/L Chord (RT) | B232: =$B$92 -> None | C232: =$C$92 -> N/A | D232: =$J$68 -> N/A | E232: =IF(G223="N/A","N/A",L214+L223) -> N/A | F232: N/A | G232: =IF(F232="N/A","N/A",MIN(E232,F232)) -> N/A | H232: =IF(F232="N/A","N/A",ABS($D$68)) -> N/A | I232: =IF(C232="N/A","N/A",MAX(ABS($E$68),ABS($F$68))) -> N/A | J232: =IF(G232="N/A","N/A",(G232-H232)/I232) -> N/A | AB232: =J232 -> N/A
A233: =$A$93 -> Diagonal (LT) | B233: =$B$93 -> 2094 | C233: =$C$93 -> U9 L8 | D233: =$J$69 -> Tension | E233: 1306.256625 | F233: =IF(H224="N/A","N/A",M215+M224) -> 1632.542512 | G233: =IF(F233="N/A","N/A",MIN(E233,F233)) -> 1306.256625 | H233: =IF(F233="N/A","N/A",ABS($D$69)) -> 239.98 | I233: =IF(C233="N/A","N/A",MAX(ABS($E$69),ABS($F$69))) -> 118.287 | J233: =IF(G233="N/A","N/A",(G233-H233)/I233) -> 9.01431793 | AB233: =J233 -> 9.01431793
A234: =$A$94 -> Diagonal (RT) | B234: =$B$94 -> 2092 | C234: =$C$94 -> U9 L10 | D234: =$J$70 -> Compression | E234: N/A | F234: N/A | G234: =IF(F234="N/A","N/A",MIN(E234,F234)) -> N/A | H234: =IF(C234="N/A","N/A",ABS($D$70)) -> 566.54 | I234: =IF(C234="N/A","N/A",MAX(ABS($E$70),ABS($F$70))) -> 235.495 | J234: =IF(G234="N/A","N/A",(G234-H234)/I234) -> N/A | AB234: =J234 -> N/A
A235: =$A$95 -> Vertical | B235: =$B$95 -> 2093 | C235: =$C$95 -> U9 L9 | D235: =$J$71 -> Tension | E235: 776.111625 | F235: 856.60875 | G235: =IF(F235="N/A","N/A",MIN(E235,F235)) -> 776.111625 | H235: =IF(C235="N/A","N/A",ABS($D$71)) -> 90.61 | I235: =IF(C235="N/A","N/A",MAX(ABS($E$71),ABS($F$71))) -> 79.599 | J235: =IF(G235="N/A","N/A",(G235-H235)/I235) -> 8.61193765 | AB235: =J235 -> 8.61193765
A240: 6: Members Tear Out (Block Shear) | AA240: =MIN(AB254:AB258) -> 9.868318615 | AB240: =MIN(AE245:AE249) -> 3.928002869 | AC240: =IF(SUM(AC245:AC249)=0,"OK","NG") -> OK | AD240: =A240 -> 6: Members Tear Out (Block Shear)
A243: Base Metal Tear out | I243: Shear Stress | K243: Tensile Stress
A244: Location | B244: ID | C244: Member | D244: Member Type | E244: Was Member Spliced at Joint Center? | F244: Was Member Butt End Milled? | G244: Max. Factored Axial Load For Both Plates (kips) | H244: Total Base Metal Thickness For Both Sides (inch) | I244: Ag - Inner Gusset Plate Gross Area For Both Sides (sq in) | J244: An - Inner Gusset Plate Net Area For Both Sides (sq in) | K244: Outer Gusset Plate Gross Area For Both Sides (sq in) | L244: Outer Gusset Plate Net Area For Both Sides (sq in) | M244: Maximum Load Capacity For Block Shear 1 Ø(FyAvg + FuAtn) (kips) | N244: Maximum Load Capacity For Block Shear 2 Ø( FuAvn + FyAtg) (kips) | O244: Meets Block Shear Rupture Resistance Requirement | P244: Block Shear Rupture Resistance C/D Ratio
A245: =$A$91 -> U/L Chord (LT) | B245: =$B$91 -> 2091 | C245: =$C$91 -> U8 U9 | D245: =IF(E245="No","N/A",$J$67) -> Compression | E245: =$K$67 -> Yes | F245: =$L$67 -> Yes | G245: =IF(D245="Compression","N/A",IF(C245="N/A","N/A",IF(OR(E245="No",F245="Yes"),"N/A",ABS(MAX(G67:H67))))) -> N/A | H245: =IF(D245="Compression","N/A",IF(C245="N/A","N/A",IF(OR(E245="No",F245="Yes"),"N/A",K156))) -> N/A | I245: =IF(D245="Compression","N/A",IF(C245="N/A","N/A",IF(OR(E245="No",F245="Yes"),"N/A",H245*LOOKUP($C$48,'Info Tables'!$A$554:$A$593,'Info Tables'!$C$554:$C$593)))) -> N/A | J245: =IF(D245="Compression","N/A",IF(C245="N/A","N/A",IF(OR(E245="No",F245="Yes"),"N/A",H245*LOOKUP($C$48,'Info Tables'!$A$604:$A$643,'Info Tables'!$C$604:$C$643)))) -> N/A | K245: =IF(D245="Compression","N/A",IF(C245="N/A","N/A",IF(OR(E245="No",F245="Yes"),"N/A",H245*LOOKUP($C$48,'Info Tables'!$A$454:$A$493,'Info Tables'!$C$454:$C$493)))) -> N/A | L245: =IF(D245="Compression","N/A",IF(C245="N/A","N/A",IF(OR(E245="No",F245="Yes"),"N/A",H245*LOOKUP($C$48,'Info Tables'!$A$504:$A$543,'Info Tables'!$C$504:$C$543)))) -> N/A | M245: =IF(D245="Compression","N/A",IF(C245="N/A","N/A",IF(OR(E245="No",F245="Yes"),"N/A",$B$208*(($B$206*0.58*I245)+($B$207*L245))))) -> N/A | N245: =IF(D245="Compression","N/A",IF(C245="N/A","N/A",IF(OR(E245="No",F245="Yes"),"N/A",$B$208*(($B$207*0.58*J245)+($B$206*K245))))) -> N/A | O245: =IF(D245="Compression","N/A",IF(OR(C245="N/A",G245=0),"N/A",IF(OR(E245="No",F245="Yes"),"N/A",IF(MIN(M245:N245)>=G245,"OK","NG")))) -> N/A | P245: =IF(D245="Compression","N/A",IF(OR(C245="N/A",G245=0),"N/A",IF(OR(E245="No",F245="Yes"),"N/A",MIN(M245/G245,N245/G245)))) -> N/A | AC245: =IF(OR(AD245="NG",AE245="NG",AF245="NG",AG245="NG",AH245="NG"),1,0) -> 0 | AD245: =O245 -> N/A | AE245: N/A
A246: =$A$92 -> U/L Chord (RT) | B246: =$B$92 -> None | C246: =$C$92 -> N/A | D246: =IF(E246="No","N/A",$J$68) -> N/A | E246: =$K$68 -> N/A | F246: =$L$68 -> N/A | G246: =IF(D246="Compression","N/A",IF(C246="N/A","N/A",IF(OR(E246="No",F246="Yes"),"N/A",ABS(MAX(G68:H68))))) -> N/A | H246: =IF(D246="Compression","N/A",IF(C246="N/A","N/A",IF(OR(E246="No",F246="Yes"),"N/A",K157))) -> N/A | I246: =IF(D246="Compression","N/A",IF(C246="N/A","N/A",IF(OR(E246="No",F246="Yes"),"N/A",H246*LOOKUP($C$48,'Info Tables'!$A$554:$A$593,'Info Tables'!$D$554:$D$593)))) -> N/A | J246: =IF(D246="Compression","N/A",IF(C246="N/A","N/A",IF(OR(E246="No",F246="Yes"),"N/A",H246*LOOKUP($C$48,'Info Tables'!$A$604:$A$643,'Info Tables'!$D$604:$D$643)))) -> N/A | K246: =IF(D246="Compression","N/A",IF(C246="N/A","N/A",IF(OR(E246="No",F246="Yes"),"N/A",H246*LOOKUP($C$48,'Info Tables'!$A$454:$A$493,'Info Tables'!$D$454:$D$493)))) -> N/A | L246: =IF(D246="Compression","N/A",IF(C246="N/A","N/A",IF(OR(E246="No",F246="Yes"),"N/A",H246*LOOKUP($C$48,'Info Tables'!$A$504:$A$543,'Info Tables'!$D$504:$D$543)))) -> N/A | M246: =IF(D246="Compression","N/A",IF(C246="N/A","N/A",IF(OR(E246="No",F246="Yes"),"N/A",$B$208*(($B$206*0.58*I246)+($B$207*L246))))) -> N/A | N246: =IF(D246="Compression","N/A",IF(C246="N/A","N/A",IF(OR(E246="No",F246="Yes"),"N/A",$B$208*(($B$207*0.58*J246)+($B$206*K246))))) -> N/A | O246: =IF(D246="Compression","N/A",IF(OR(C246="N/A",G246=0),"N/A",IF(OR(E246="No",F246="Yes"),"N/A",IF(MIN(M246:N246)>=G246,"OK","NG")))) -> N/A | P246: =IF(D246="Compression","N/A",IF(OR(C246="N/A",G246=0),"N/A",IF(OR(E246="No",F246="Yes"),"N/A",MIN(M246/G246,N246/G246)))) -> N/A | AC246: =IF(OR(AD246="NG",AE246="NG",AF246="NG",AG246="NG",AH246="NG"),1,0) -> 0 | AD246: N/A | AE246: N/A
A247: =$A$93 -> Diagonal (LT) | B247: =$B$93 -> 2094 | C247: =$C$93 -> U9 L8 | D247: =$J$69 -> Tension | E247: =$K$69 -> Yes | F247: =$L$69 -> No | G247: =IF(D247="Compression","N/A",IF(C247="N/A","N/A",IF(OR(E247="No",F247="Yes"),"N/A",ABS(MAX(G69:H69))))) -> 358.267 | H247: =IF(D247="Compression","N/A",IF(C247="N/A","N/A",IF(OR(E247="No",F247="Yes"),"N/A",K158))) -> 1.212 | I247: =IF(D247="Compression","N/A",IF(C247="N/A","N/A",IF(OR(E247="No",F247="Yes"),"N/A",H247*LOOKUP($C$48,'Info Tables'!$A$554:$A$593,'Info Tables'!$E$554:$E$593)))) -> 61.812 | J247: =IF(D247="Compression","N/A",IF(C247="N/A","N/A",IF(OR(E247="No",F247="Yes"),"N/A",H247*LOOKUP($C$48,'Info Tables'!$A$604:$A$643,'Info Tables'!$E$604:$E$643)))) -> 49.692 | K247: =IF(D247="Compression","N/A",IF(C247="N/A","N/A",IF(OR(E247="No",F247="Yes"),"N/A",H247*LOOKUP($C$48,'Info Tables'!$A$454:$A$493,'Info Tables'!$E$454:$E$493)))) -> 10.299576 | L247: =IF(D247="Compression","N/A",IF(C247="N/A","N/A",IF(OR(E247="No",F247="Yes"),"N/A",H247*LOOKUP($C$48,'Info Tables'!$A$504:$A$543,'Info Tables'!$E$504:$E$543)))) -> 7.875576 | M247: =IF(D247="Compression","N/A",IF(C247="N/A","N/A",IF(OR(E247="No",F247="Yes"),"N/A",$B$208*(($B$206*0.58*I247)+($B$207*L247))))) -> 1407.273804 | N247: =IF(D247="Compression","N/A",IF(C247="N/A","N/A",IF(OR(E247="No",F247="Yes"),"N/A",$B$208*(($B$207*0.58*J247)+($B$206*K247))))) -> 1758.792467 | O247: =IF(D247="Compression","N/A",IF(OR(C247="N/A",G247=0),"N/A",IF(OR(E247="No",F247="Yes"),"N/A",IF(MIN(M247:N247)>=G247,"OK","NG")))) -> OK | P247: =IF(D247="Compression","N/A",IF(OR(C247="N/A",G247=0),"N/A",IF(OR(E247="No",F247="Yes"),"N/A",MIN(M247/G247,N247/G247)))) -> 3.928002869 | AC247: =IF(OR(AD247="NG",AE247="NG",AF247="NG",AG247="NG",AH247="NG"),1,0) -> 0 | AD247: OK | AE247: 3.928002869
A248: =$A$94 -> Diagonal (RT) | B248: =$B$94 -> 2092 | C248: =$C$94 -> U9 L10 | D248: =$J$70 -> Compression | E248: =$K$70 -> Yes | F248: =$L$70 -> Yes | G248: =IF(D248="Compression","N/A",IF(C248="N/A","N/A",IF(OR(E248="No",F248="Yes"),"N/A",ABS(MAX(G70:H70))))) -> N/A | H248: =IF(D248="Compression","N/A",IF(C248="N/A","N/A",IF(OR(E248="No",F248="Yes"),"N/A",K159))) -> N/A | I248: =IF(D248="Compression","N/A",IF(C248="N/A","N/A",IF(OR(E248="No",F248="Yes"),"N/A",H248*LOOKUP($C$48,'Info Tables'!$A$554:$A$593,'Info Tables'!$F$554:$F$593)))) -> N/A | J248: =IF(D248="Compression","N/A",IF(C248="N/A","N/A",IF(OR(E248="No",F248="Yes"),"N/A",H248*LOOKUP($C$48,'Info Tables'!$A$604:$A$643,'Info Tables'!$F$604:$F$643)))) -> N/A | K248: =IF(D248="Compression","N/A",IF(C248="N/A","N/A",IF(OR(E248="No",F248="Yes"),"N/A",H248*LOOKUP($C$48,'Info Tables'!$A$454:$A$493,'Info Tables'!$F$454:$F$493)))) -> N/A | L248: =IF(D248="Compression","N/A",IF(C248="N/A","N/A",IF(OR(E248="No",F248="Yes"),"N/A",H248*LOOKUP($C$48,'Info Tables'!$A$504:$A$543,'Info Tables'!$F$504:$F$543)))) -> N/A | M248: =IF(D248="Compression","N/A",IF(C248="N/A","N/A",IF(OR(E248="No",F248="Yes"),"N/A",$B$208*(($B$206*0.58*I248)+($B$207*L248))))) -> N/A | N248: =IF(D248="Compression","N/A",IF(C248="N/A","N/A",IF(OR(E248="No",F248="Yes"),"N/A",$B$208*(($B$207*0.58*J248)+($B$206*K248))))) -> N/A | O248: =IF(D248="Compression","N/A",IF(OR(C248="N/A",G248=0),"N/A",IF(OR(E248="No",F248="Yes"),"N/A",IF(MIN(M248:N248)>=G248,"OK","NG")))) -> N/A | P248: =IF(D248="Compression","N/A",IF(OR(C248="N/A",G248=0),"N/A",IF(OR(E248="No",F248="Yes"),"N/A",MIN(M248/G248,N248/G248)))) -> N/A | AC248: =IF(OR(AD248="NG",AE248="NG",AF248="NG",AG248="NG",AH248="NG"),1,0) -> 0 | AD248: N/A | AE248: N/A
A249: =$A$95 -> Vertical | B249: =$B$95 -> 2093 | C249: =$C$95 -> U9 L9 | D249: =$J$71 -> Tension | E249: =$K$71 -> Yes | F249: =$L$71 -> No | G249: =IF(D249="Compression","N/A",IF(C249="N/A","N/A",IF(OR(E249="No",F249="Yes"),"N/A",ABS(MAX(G71:H71))))) -> 170.209 | H249: =IF(D249="Compression","N/A",IF(C249="N/A","N/A",IF(OR(E249="No",F249="Yes"),"N/A",K160))) -> 1.282 | I249: =IF(D249="Compression","N/A",IF(C249="N/A","N/A",IF(OR(E249="No",F249="Yes"),"N/A",H249*LOOKUP($C$48,'Info Tables'!$A$554:$A$593,'Info Tables'!$G$554:$G$593)))) -> 42.306 | J249: =IF(D249="Compression","N/A",IF(C249="N/A","N/A",IF(OR(E249="No",F249="Yes"),"N/A",H249*LOOKUP($C$48,'Info Tables'!$A$604:$A$643,'Info Tables'!$G$604:$G$643)))) -> 26.922 | K249: =IF(D249="Compression","N/A",IF(C249="N/A","N/A",IF(OR(E249="No",F249="Yes"),"N/A",H249*LOOKUP($C$48,'Info Tables'!$A$454:$A$493,'Info Tables'!$G$454:$G$493)))) -> 6.41 | L249: =IF(D249="Compression","N/A",IF(C249="N/A","N/A",IF(OR(E249="No",F249="Yes"),"N/A",H249*LOOKUP($C$48,'Info Tables'!$A$504:$A$543,'Info Tables'!$G$504:$G$543)))) -> 3.846 | M249: =IF(D249="Compression","N/A",IF(C249="N/A","N/A",IF(OR(E249="No",F249="Yes"),"N/A",$B$208*(($B$206*0.58*I249)+($B$207*L249))))) -> 884.422314 | N249: =IF(D249="Compression","N/A",IF(C249="N/A","N/A",IF(OR(E249="No",F249="Yes"),"N/A",$B$208*(($B$207*0.58*J249)+($B$206*K249))))) -> 976.15326 | O249: =IF(D249="Compression","N/A",IF(OR(C249="N/A",G249=0),"N/A",IF(OR(E249="No",F249="Yes"),"N/A",IF(MIN(M249:N249)>=G249,"OK","NG")))) -> OK | P249: =IF(D249="Compression","N/A",IF(OR(C249="N/A",G249=0),"N/A",IF(OR(E249="No",F249="Yes"),"N/A",MIN(M249/G249,N249/G249)))) -> 5.196096058 | AC249: =IF(OR(AD249="NG",AE249="NG",AF249="NG",AG249="NG",AH249="NG"),1,0) -> 0 | AD249: OK | AE249: 5.196096058
A250: Note: Base metal thicknesses are conservative, and the corner angels may add more the capacity.
A252: Rating Factor For Tear Out (Block Shear)
A253: Location | B253: ID | C253: Member | D253: Member Type | E253: Block Shear Capacity 1 (FyAvg + FuAtn) For Both Plates (kips) | F253: Block shear Capacity 2 (FuAvn + FyAtg) For Both Plates (kips) | G253: Total Factored Joint Capacity For Both Plates (kips) | H253: Total Joint DL For Both Plates (kips) | I253: Total Joint LL + I For Both Plates (kips) | J253: Rating Factor (C - f1*DL) / (f2*LL+I) | AB253: 7. RF
A254: =$A$91 -> U/L Chord (LT) | B254: =$B$91 -> 2091 | C254: =$C$91 -> U8 U9 | D254: =$J$67 -> Compression | E254: =IF(G245="N/A","N/A",M245) -> N/A | F254: N/A | G254: =IF(F254="N/A","N/A",MIN(E254,F254)) -> N/A | H254: =IF(F254="N/A","N/A",ABS($D$67)) -> N/A | I254: =IF(C254="N/A","N/A",MAX(ABS($E$67),ABS($F$67))) -> 225.966 | J254: =IF(G254="N/A","N/A",(G254-H254)/I254) -> N/A | AB254: =J254 -> N/A
A255: =$A$92 -> U/L Chord (RT) | B255: =$B$92 -> None | C255: =$C$92 -> N/A | D255: =$J$68 -> N/A | E255: N/A | F255: N/A | G255: =IF(F255="N/A","N/A",MIN(E255,F255)) -> N/A | H255: =IF(F255="N/A","N/A",ABS($D$68)) -> N/A | I255: =IF(C255="N/A","N/A",MAX(ABS($E$68),ABS($F$68))) -> N/A | J255: =IF(G255="N/A","N/A",(G255-H255)/I255) -> N/A | AB255: =J255 -> N/A
A256: =$A$93 -> Diagonal (LT) | B256: =$B$93 -> 2094 | C256: =$C$93 -> U9 L8 | D256: =$J$69 -> Tension | E256: 1407.273804 | F256: 1758.792467 | G256: =IF(F256="N/A","N/A",MIN(E256,F256)) -> 1407.273804 | H256: =IF(F256="N/A","N/A",ABS($D$69)) -> 239.98 | I256: =IF(C256="N/A","N/A",MAX(ABS($E$69),ABS($F$69))) -> 118.287 | J256: =IF(G256="N/A","N/A",(G256-H256)/I256) -> 9.868318615 | AB256: =J256 -> 9.868318615
A257: =$A$94 -> Diagonal (RT) | B257: =$B$94 -> 2092 | C257: =$C$94 -> U9 L10 | D257: =$J$70 -> Compression | E257: N/A | F257: N/A | G257: =IF(F257="N/A","N/A",MIN(E257,F257)) -> N/A | H257: =IF(C257="N/A","N/A",ABS($D$70)) -> 566.54 | I257: =IF(C257="N/A","N/A",MAX(ABS($E$70),ABS($F$70))) -> 235.495 | J257: =IF(G257="N/A","N/A",(G257-H257)/I257) -> N/A | AB257: =J257 -> N/A
A258: =$A$95 -> Vertical | B258: =$B$95 -> 2093 | C258: =$C$95 -> U9 L9 | D258: =$J$71 -> Tension | E258: 884.422314 | F258: 976.15326 | G258: =IF(F258="N/A","N/A",MIN(E258,F258)) -> 884.422314 | H258: =IF(C258="N/A","N/A",ABS($D$71)) -> 90.61 | I258: =IF(C258="N/A","N/A",MAX(ABS($E$71),ABS($F$71))) -> 79.599 | J258: =IF(G258="N/A","N/A",(G258-H258)/I258) -> 9.972641792 | AB258: =J258 -> 9.972641792
A263: 7: Gusset Plate Combined Planes Shear Rupture Resistance | AA263: =MIN(AB309:AB312,AB335:AB338) -> 7.743401586 | AB263: =MIN(MIN(AF293:AG296),MIN(AF319:AG322)) -> 3.541370745 | AC263: =IF(SUM(AB293:AB296,AB319:AB322)=0,"N/A",IF(SUM(AC293:AC296,AC319:AC322)=0,"OK",IF(AND(AC297="N/A",AC323="N/A"),"N/A","NG"))) -> OK | AD263: =A263 -> 7: Gusset Plate Combined Planes Shear Rupture Resistance
A264: For Tensile Members Only
A266: =$A$20 -> Gusset Plate Steel Fy | B266: =$B$20/1000 -> 33 | C266: ksi
A267: =$A$21 -> Gusset Plate Steel Fu | B267: =$B$21/1000 -> 60 | C267: ksi
A268: =$A$32 -> Block Shear Load Factor Ø: | B268: =$B$32 -> 0.85
A272: Location | B272: ID | C272: Member | D272: Member Type | E272: Total Horizontal Component Max. Tensile Factored Load DL (kips) | F272: Total Vertical Component Max. Tensile Factored Load DL (kips) | G272: Total Horizontal Component Max. Tensile Load LL+I (kips) | H272: Total Vertical Component Max. Tensile Factored Load LL+I (kips) | I272: Total Horizontal Component Max. Tensile Factored Load DL+LL+I (kips) | J272: Total Vertical Component Max. Tensile Factored Load DL+LL+I (kips)
A273: =$A$93 -> Diagonal (LT) | B273: =$B$93 -> 2094 | C273: =$C$93 -> U9 L8 | D273: =$J$69 -> Tension | E273: =IF(OR(C273="N/A",F81<=0),0,F81) -> 108.3137337 | F273: =IF(OR(C273="N/A",G81<=0),0,G81) -> 214.1460611 | G273: =IF(C273="N/A",0,J81) -> 53.38822658 | H273: =IF(C273="N/A",0,K81) -> 105.5533592 | I273: =IF(C273="N/A",0,N81) -> 161.7019603 | J273: =IF(C273="N/A",0,O81) -> 319.6994203
A274: =$A$94 -> Diagonal (RT) | B274: =$B$94 -> 2092 | C274: =$C$94 -> U9 L10 | D274: =$J$70 -> Compression | E274: =IF(OR(C274="N/A",F82<=0),0,F82) -> 0 | F274: =IF(OR(C274="N/A",G82<=0),0,G82) -> 0 | G274: =IF(C274="N/A",0,J82) -> 0 | H274: =IF(C274="N/A",0,K82) -> 0 | I274: =IF(C274="N/A","0",N82) -> 0 | J274: =IF(C274="N/A","0",O82) -> 0
A275: =$A$95 -> Vertical | B275: =$B$95 -> 2093 | C275: =$C$95 -> U9 L9 | D275: =$J$71 -> Tension | E275: =IF(OR(C275="N/A",F83<=0),0,F83) -> 23.34464725 | F275: =IF(OR(C275="N/A",G83<=0),0,G83) -> 87.55112532 | G275: =IF(C275="N/A",0,J83) -> 20.50778696 | H275: =IF(C275="N/A",0,K83) -> 76.91184223 | I275: =IF(C275="N/A","0",N83) -> 43.85243421 | J275: =IF(C275="N/A","0",O83) -> 164.4629675
A279: Gusset Plate Quadrant | B279: Gross Width for One Gusset Only (inch) | C279: Net Width for One Gusset Only (inch) | D279: Inner & Outer Total Actual Thickness For Whitmore Width (inch) | E279: Gross Area For Both plates (sq. in.) | F279: Net Area For Both Plates (sq. in.) | G279: Side
A280: Diagonal (LT) Horizontal Direction | B280: =(LOOKUP($C$48,'Info Tables'!A742:A781,'Info Tables'!C742:C781)) -> 26.145 | C280: =(LOOKUP($C$48,'Info Tables'!A792:A831,'Info Tables'!C792:C831)) -> 17.145 | D280: =MIN($D$91,$D$93,$D$95)+MIN($F$91,$F$93,$F$95) -> 1.125 | E280: =IF(B280="None",0,B280*D280) -> 29.413125 | F280: =IF(C280="None",0,C280*D280) -> 19.288125 | G280: Left
A281: Diagonal (LT) Vertical Direction | B281: =(LOOKUP($C$48,'Info Tables'!A842:A881,'Info Tables'!C842:C881)) -> 30.039 | C281: =(LOOKUP($C$48,'Info Tables'!A892:A931,'Info Tables'!C892:C931)) -> 23.039 | D281: =MIN($D$91,$D$93,$D$95)+MIN($F$91,$F$93,$F$95) -> 1.125 | E281: =IF(B281="None",0,B281*D281) -> 33.793875 | F281: =IF(C281="None",0,C281*D281) -> 25.918875
A282: Diag. & Vert. (LT) Horizontal Dir | B282: =IF(AND(LOOKUP($C$48,'Info Tables'!A742:A781,'Info Tables'!C742:C781)="None",LOOKUP($C$48,'Info Tables'!A742:A781,'Info Tables'!E742:E781)="None"),"None",IF(AND(LOOKUP($C$48,'Info Tables'!A742:A781,'Info Tables'!C742:C781)="None",LOOKUP($C$48,'Info Tables'!A742:A781,'Info Tables'!E742:E781)<>"None"),LOOKUP($C$48,'Info Tables'!A742:A781,'Info Tables'!E742:E781),IF(AND(LOOKUP($C$48,'Info Tables'!A742:A781,'Info Tables'!C742:C781)<>"None",LOOKUP($C$48,'Info Tables'!A742:A781,'Info Tables'!E742:E781)="None"),LOOKUP($C$48,'Info Tables'!A742:A781,'Info Tables'!C742:C781),LOOKUP($C$48,'Info Tables'!A742:A781,'Info Tables'!C742:C781)+LOOKUP($C$48,'Info Tables'!A742:A781,'Info Tables'!E742:E781)))) -> 31.145 | C282: =IF(AND(LOOKUP($C$48,'Info Tables'!A792:A831,'Info Tables'!C792:C831)="None",LOOKUP($C$48,'Info Tables'!A792:A831,'Info Tables'!E792:E831)="None"),"None",IF(AND(LOOKUP($C$48,'Info Tables'!A792:A831,'Info Tables'!C792:C831)="None",LOOKUP($C$48,'Info Tables'!A792:A831,'Info Tables'!E792:E831)<>"None"),LOOKUP($C$48,'Info Tables'!A792:A831,'Info Tables'!E792:E831),IF(AND(LOOKUP($C$48,'Info Tables'!A792:A831,'Info Tables'!C792:C831)<>"None",LOOKUP($C$48,'Info Tables'!A792:A831,'Info Tables'!E792:E831)="None"),LOOKUP($C$48,'Info Tables'!A792:A831,'Info Tables'!C792:C831),LOOKUP($C$48,'Info Tables'!A792:A831,'Info Tables'!C792:C831)+LOOKUP($C$48,'Info Tables'!A792:A831,'Info Tables'!E792:E831)))) -> 20.145 | D282: =MIN($D$91,$D$93,$D$95)+MIN($F$91,$F$93,$F$95) -> 1.125 | E282: =IF(B282="None",0,B282*D282) -> 35.038125 | F282: 22.663125
A283: Diag. & Vert. (LT) Vertical Dir | B283: =IF(B281="None",0,B281) -> 30.039 | C283: =IF(C281="None",0,C281) -> 23.039 | D283: =MIN($D$91,$D$93,$D$95)+MIN($F$91,$F$93,$F$95) -> 1.125 | E283: 33.793875 | F283: 25.918875
A284: Diagonal (RT) Horizontal Direction | B284: =(LOOKUP($C$48,'Info Tables'!A742:A781,'Info Tables'!D742:D781)) -> 0 | C284: =(LOOKUP($C$48,'Info Tables'!A792:A831,'Info Tables'!D792:D831)) -> 0 | D284: =MIN($D$92,D94,D95)+MIN($F$92,F94,F95) -> 1.125 | E284: 0 | F284: 0 | G284: Right
A285: Diagonal (RT) Vertical Direction | B285: =(LOOKUP($C$48,'Info Tables'!A842:A881,'Info Tables'!D842:D881)) -> 0 | C285: =(LOOKUP($C$48,'Info Tables'!A892:A931,'Info Tables'!D892:D931)) -> 0 | D285: =MIN($D$92,D94,D95)+MIN($F$92,F94,F95) -> 1.125 | E285: 0 | F285: 0
A286: Diag. & Vert. (RT) Horizontal Dir | B286: =IF(AND(LOOKUP($C$48,'Info Tables'!A742:A781,'Info Tables'!D742:D781)="None",LOOKUP($C$48,'Info Tables'!A742:A781,'Info Tables'!E742:E781)="None"),"None",IF(AND(LOOKUP($C$48,'Info Tables'!A742:A781,'Info Tables'!D742:D781)="None",LOOKUP($C$48,'Info Tables'!A742:A781,'Info Tables'!E742:E781)<>"None"),LOOKUP($C$48,'Info Tables'!A742:A781,'Info Tables'!E742:E781),IF(AND(LOOKUP($C$48,'Info Tables'!A742:A781,'Info Tables'!E742:E781)="None",LOOKUP($C$48,'Info Tables'!A742:A781,'Info Tables'!D742:D781)<>"None"),LOOKUP($C$48,'Info Tables'!A742:A781,'Info Tables'!D742:D781),LOOKUP($C$48,'Info Tables'!A742:A781,'Info Tables'!D742:D781)+LOOKUP($C$48,'Info Tables'!A742:A781,'Info Tables'!E742:E781)))) -> 5 | C286: =IF(AND(LOOKUP($C$48,'Info Tables'!A792:A831,'Info Tables'!D792:D831)="None",LOOKUP($C$48,'Info Tables'!A792:A831,'Info Tables'!E792:E831)="None"),"None",IF(AND(LOOKUP($C$48,'Info Tables'!A792:A831,'Info Tables'!D792:D831)="None",LOOKUP($C$48,'Info Tables'!A792:A831,'Info Tables'!E792:E831)<>"None"),LOOKUP($C$48,'Info Tables'!A792:A831,'Info Tables'!E792:E831),IF(AND(LOOKUP($C$48,'Info Tables'!A792:A831,'Info Tables'!D792:D831)<>"None",LOOKUP($C$48,'Info Tables'!A792:A831,'Info Tables'!E792:E831)="None"),LOOKUP($C$48,'Info Tables'!A792:A831,'Info Tables'!D792:D831),LOOKUP($C$48,'Info Tables'!A792:A831,'Info Tables'!D792:D831)+LOOKUP($C$48,'Info Tables'!A792:A831,'Info Tables'!E792:E831)))) -> 3 | D286: =MIN($D$92,D94,D95)+MIN($F$92,F94,F95) -> 1.125 | E286: 5.625 | F286: 3.375
A287: Diag. & Vert. (RT) Vertical Dir | B287: =IF(B285="None",0,B285) -> 0 | C287: =IF(C285="None",0,C285) -> 0 | D287: =MIN($D$92,D94,D95)+MIN($F$92,F94,F95) -> 1.125 | E287: 0 | F287: 0
A291: A. Consider Shear Yield & Tension Fracture | C291: Assuming diagonals act alone or are combined with vertical members causing shear and tensile stresses. The loads act upon one quadrant of the gusset.
A292: Combined Members | B292: Combined Horizontal Component Total Max. Tensile Factored Load DL+LL+I (kips) | C292: Combined Vertical Component Total Max. Tensile Factored Load DL+LL+I (kips) | D292: Maximum Horizontal Capacity Based on Shear Yield (kips) | E292: Maximum Horizontal CapacityBased on Tension Fracture (kips) | F292: Total Facotred Horizontal Capacity (kips) | G292: Total Factored Vertical Capacity Based on Shear Yield (kips) | H292: Total Factored Vertical Capacity Based on Tension Fracture (kips) | I292: Total Factored Vertical Capacity (kips) | J292: Meets Horizontal Load Component Requirement | K292: Meets Vertical Load Component Requirement | L292: Gusset Plate Combined Planes Horizontal Shear Yield &Tension Fracture C/D Ratio | M292: Gusset Plate Combined Planes Vertical Shear Yield &Tension Fracture C/D Ratio
... 59 more rows

Sheet Member Loads
A1: Truss analysis member loads output are to be entered in this worksheet. Compression member loads shall be negative and tension loads shall be positive.
A2: 2F1, 3f1, 4F1, & 5C1 are Ohio's legal loads for operating rating. Inventory is the typical current design truck such as HS20-44.
A4: Note1: When loads are exactly equal to zero "0' when shown as "0"; i.e. a number that equals to 0.05 shall be manually entered as "0".
A5: Note2: To add more members, insert lines as needed. Excel will automatically included the new lines.
A6: Assumption: Pick maximum load values for each member from the truss analysis output at the considered truss joint and assume these loads are acting simultaneously.
A10: Dead Load | D10: 2F1 | H10: 3F1 | L10: 4F1 | P10: 5C1 | T10: (HS20-44) | X10: Inventory (HS20-44) | AB10: ODOT Truck Train
A11: Member | B11: Compression/Tension Load (kips) | D11: Member | E11: Compression Load (kips) | F11: Tension Load (kips) | H11: Member | I11: Compression Load (kips) | J11: Tension Load (kips) | L11: Member | M11: Compression Load (kips) | N11: Tension Load (kips) | P11: Member | Q11: Compression Load (kips) | R11: Tension Load (kips) | T11: Member | U11: Compression Load (kips) | V11: Tension Load (kips) | X11: Member | Y11: Compression Load (kips) | Z11: Tension Load (kips) | AB11: Member | AC11: Compression Load (kips) | AD11: Tension Load (kips)
A12: Lower Chord Members | D12: Lower Chord Members | H12: Lower Chord Members | L12: Lower Chord Members | P12: Lower Chord Members | T12: Lower Chord Members | X12: Lower Chord Members | AB12: Lower Chord Members
A13: 1001 | B13: =[1]Summary!B13 -> -435.8 | D13: 1001 | E13: =[1]Summary!E13 -> -51.33 | F13: =[1]Summary!F13 -> 0 | H13: 1001 | I13: =[1]Summary!I13 -> -78.06 | J13: =[1]Summary!J13 -> 0 | L13: 1001 | M13: =[1]Summary!M13 -> -90.81 | N13: =[1]Summary!N13 -> 0 | P13: 1001 | Q13: =[1]Summary!Q13 -> -123.97 | R13: =[1]Summary!R13 -> 0 | T13: 1001 | U13: =[1]Summary!U13 -> -184.08 | V13: =[1]Summary!V13 -> 0 | X13: 1001 | Y13: =[1]Summary!Y13 -> -184.08 | Z13: =[1]Summary!Z13 -> 0 | AB13: 1001 | AC13: =[1]Summary!AC13 -> -181.15 | AD13: =[1]Summary!AD13 -> 0
A14: 1002 | B14: =[1]Summary!B14 -> 290.2 | D14: 1002 | E14: =[1]Summary!E14 -> 0 | F14: =[1]Summary!F14 -> 34.18 | H14: 1002 | I14: =[1]Summary!I14 -> 0 | J14: =[1]Summary!J14 -> 51.99 | L14: 1002 | M14: =[1]Summary!M14 -> 0 | N14: =[1]Summary!N14 -> 60.48 | P14: 1002 | Q14: =[1]Summary!Q14 -> 0 | R14: =[1]Summary!R14 -> 82.57 | T14: 1002 | U14: =[1]Summary!U14 -> 0 | V14: =[1]Summary!V14 -> 113.35 | X14: 1002 | Y14: =[1]Summary!Y14 -> 0 | Z14: =[1]Summary!Z14 -> 113.35 | AB14: 1002 | AC14: =[1]Summary!AC14 -> 0 | AD14: =[1]Summary!AD14 -> 120.65
A15: 1011 | B15: =[1]Summary!B15 -> 290.2 | D15: 1011 | E15: =[1]Summary!E15 -> 0 | F15: =[1]Summary!F15 -> 34.18 | H15: 1011 | I15: =[1]Summary!I15 -> 0 | J15: =[1]Summary!J15 -> 51.99 | L15: 1011 | M15: =[1]Summary!M15 -> 0 | N15: =[1]Summary!N15 -> 60.48 | P15: 1011 | Q15: =[1]Summary!Q15 -> 0 | R15: =[1]Summary!R15 -> 82.57 | T15: 1011 | U15: =[1]Summary!U15 -> 0 | V15: =[1]Summary!V15 -> 113.35 | X15: 1011 | Y15: =[1]Summary!Y15 -> 0 | Z15: =[1]Summary!Z15 -> 113.35 | AB15: 1011 | AC15: =[1]Summary!AC15 -> 0 | AD15: =[1]Summary!AD15 -> 120.65
A16: 1012 | B16: =[1]Summary!B16 -> 69.7 | D16: 1012 | E16: =[1]Summary!E16 -> 0 | F16: =[1]Summary!F16 -> 42.45 | H16: 1012 | I16: =[1]Summary!I16 -> 0 | J16: =[1]Summary!J16 -> 62.83 | L16: 1012 | M16: =[1]Summary!M16 -> 0 | N16: =[1]Summary!N16 -> 69.89 | P16: 1012 | Q16: =[1]Summary!Q16 -> 0 | R16: =[1]Summary!R16 -> 61.26 | T16: 1012 | U16: =[1]Summary!U16 -> 0 | V16: =[1]Summary!V16 -> 80.99 | X16: 1012 | Y16: =[1]Summary!Y16 -> 0 | Z16: =[1]Summary!Z16 -> 80.99 | AB16: 1012 | AC16: =[1]Summary!AC16 -> 0 | AD16: =[1]Summary!AD16 -> 61.23
A17: 1013 | B17: =[1]Summary!B17 -> 290.2 | D17: 1013 | E17: =[1]Summary!E17 -> 0 | F17: =[1]Summary!F17 -> 34.18 | H17: 1013 | I17: =[1]Summary!I17 -> 0 | J17: =[1]Summary!J17 -> 51.99 | L17: 1013 | M17: =[1]Summary!M17 -> 0 | N17: =[1]Summary!N17 -> 60.48 | P17: 1013 | Q17: =[1]Summary!Q17 -> 0 | R17: =[1]Summary!R17 -> 82.57 | T17: 1013 | U17: =[1]Summary!U17 -> 0 | V17: =[1]Summary!V17 -> 113.35 | X17: 1013 | Y17: =[1]Summary!Y17 -> 0 | Z17: =[1]Summary!Z17 -> 113.35 | AB17: 1013 | AC17: =[1]Summary!AC17 -> 0 | AD17: =[1]Summary!AD17 -> 120.65
A18: 1021 | B18: =[1]Summary!B18 -> 290.2 | D18: 1021 | E18: =[1]Summary!E18 -> 0 | F18: =[1]Summary!F18 -> 34.18 | H18: 1021 | I18: =[1]Summary!I18 -> 0 | J18: =[1]Summary!J18 -> 51.99 | L18: 1021 | M18: =[1]Summary!M18 -> 0 | N18: =[1]Summary!N18 -> 60.48 | P18: 1021 | Q18: =[1]Summary!Q18 -> 0 | R18: =[1]Summary!R18 -> 82.57 | T18: 1021 | U18: =[1]Summary!U18 -> 0 | V18: =[1]Summary!V18 -> 113.35 | X18: 1021 | Y18: =[1]Summary!Y18 -> 0 | Z18: =[1]Summary!Z18 -> 113.35 | AB18: 1021 | AC18: =[1]Summary!AC18 -> 0 | AD18: =[1]Summary!AD18 -> 120.65
A19: 1022 | B19: =[1]Summary!B19 -> 184.6 | D19: 1022 | E19: =[1]Summary!E19 -> -14.61 | F19: =[1]Summary!F19 -> 28.34 | H19: 1022 | I19: =[1]Summary!I19 -> -20.55 | J19: =[1]Summary!J19 -> 43.06 | L19: 1022 | M19: =[1]Summary!M19 -> -21.71 | N19: =[1]Summary!N19 -> 50.03 | P19: 1022 | Q19: =[1]Summary!Q19 -> -17.58 | R19: =[1]Summary!R19 -> 67.54 | T19: 1022 | U19: =[1]Summary!U19 -> -25.9 | V19: =[1]Summary!V19 -> 91.53 | X19: 1022 | Y19: =[1]Summary!Y19 -> -25.9 | Z19: =[1]Summary!Z19 -> 91.53 | AB19: 1022 | AC19: =[1]Summary!AC19 -> -17.44 | AD19: =[1]Summary!AD19 -> 90.99
A20: 1023 | B20: =[1]Summary!B20 -> -75.3 | D20: 1023 | E20: =[1]Summary!E20 -> -18.68 | F20: =[1]Summary!F20 -> 22.85 | H20: 1023 | I20: =[1]Summary!I20 -> -28.34 | J20: =[1]Summary!J20 -> 33.68 | L20: 1023 | M20: =[1]Summary!M20 -> -32.88 | N20: =[1]Summary!N20 -> 37.8 | P20: 1023 | Q20: =[1]Summary!Q20 -> -43.75 | R20: =[1]Summary!R20 -> 34.95 | T20: 1023 | U20: =[1]Summary!U20 -> -54.38 | V20: =[1]Summary!V20 -> 47.78 | X20: 1023 | Y20: =[1]Summary!Y20 -> -54.38 | Z20: =[1]Summary!Z20 -> 47.78 | AB20: 1023 | AC20: =[1]Summary!AC20 -> -55 | AD20: =[1]Summary!AD20 -> 35.29
A21: 1024 | B21: =[1]Summary!B21 -> 413.2 | D21: 1024 | E21: =[1]Summary!E21 -> 0 | F21: =[1]Summary!F21 -> 48.99 | H21: 1024 | I21: =[1]Summary!I21 -> 0 | J21: =[1]Summary!J21 -> 74.43 | L21: 1024 | M21: =[1]Summary!M21 -> 0 | N21: =[1]Summary!N21 -> 86.48 | P21: 1024 | Q21: =[1]Summary!Q21 -> 0 | R21: =[1]Summary!R21 -> 117.06 | T21: 1024 | U21: =[1]Summary!U21 -> 0 | V21: =[1]Summary!V21 -> 162.74 | X21: 1024 | Y21: =[1]Summary!Y21 -> 0 | Z21: =[1]Summary!Z21 -> 162.74 | AB21: 1024 | AC21: =[1]Summary!AC21 -> 0 | AD21: =[1]Summary!AD21 -> 167.95
A22: 1031 | B22: =[1]Summary!B22 -> 413.2 | D22: 1031 | E22: =[1]Summary!E22 -> 0 | F22: =[1]Summary!F22 -> 48.99 | H22: 1031 | I22: =[1]Summary!I22 -> 0 | J22: =[1]Summary!J22 -> 74.43 | L22: 1031 | M22: =[1]Summary!M22 -> 0 | N22: =[1]Summary!N22 -> 86.48 | P22: 1031 | Q22: =[1]Summary!Q22 -> 0 | R22: =[1]Summary!R22 -> 117.06 | T22: 1031 | U22: =[1]Summary!U22 -> 0 | V22: =[1]Summary!V22 -> 162.74 | X22: 1031 | Y22: =[1]Summary!Y22 -> 0 | Z22: =[1]Summary!Z22 -> 162.74 | AB22: 1031 | AC22: =[1]Summary!AC22 -> 0 | AD22: =[1]Summary!AD22 -> 167.95
A23: 1032 | B23: =[1]Summary!B23 -> 123.9 | D23: 1032 | E23: =[1]Summary!E23 -> -19.19 | F23: =[1]Summary!F23 -> 25.78 | H23: 1032 | I23: =[1]Summary!I23 -> -28.3 | J23: =[1]Summary!J23 -> 39.12 | L23: 1032 | M23: =[1]Summary!M23 -> -31.75 | N23: =[1]Summary!N23 -> 45.38 | P23: 1032 | Q23: =[1]Summary!Q23 -> -28.43 | R23: =[1]Summary!R23 -> 60.38 | T23: 1032 | U23: =[1]Summary!U23 -> -40.14 | V23: =[1]Summary!V23 -> 75.92 | X23: 1032 | Y23: =[1]Summary!Y23 -> -40.14 | Z23: =[1]Summary!Z23 -> 75.92 | AB23: 1032 | AC23: =[1]Summary!AC23 -> -28.65 | AD23: =[1]Summary!AD23 -> 75.91
A24: 1033 | B24: =[1]Summary!B24 -> -36.3 | D24: 1033 | E24: =[1]Summary!E24 -> -18.11 | F24: =[1]Summary!F24 -> 23.23 | H24: 1033 | I24: =[1]Summary!I24 -> -27.43 | J24: =[1]Summary!J24 -> 34.73 | L24: 1033 | M24: =[1]Summary!M24 -> -31.76 | N24: =[1]Summary!N24 -> 39.61 | P24: 1033 | Q24: =[1]Summary!Q24 -> -41.41 | R24: =[1]Summary!R24 -> 43.89 | T24: 1033 | U24: =[1]Summary!U24 -> -47.88 | V24: =[1]Summary!V24 -> 51.09 | X24: 1033 | Y24: =[1]Summary!Y24 -> -47.88 | Z24: =[1]Summary!Z24 -> 51.09 | AB24: 1033 | AC24: =[1]Summary!AC24 -> -49.07 | AD24: =[1]Summary!AD24 -> 45.03
A25: 1034 | B25: =[1]Summary!B25 -> 485.7 | D25: 1034 | E25: =[1]Summary!E25 -> 0 | F25: =[1]Summary!F25 -> 57.51 | H25: 1034 | I25: =[1]Summary!I25 -> 0 | J25: =[1]Summary!J25 -> 87.25 | L25: 1034 | M25: =[1]Summary!M25 -> 0 | N25: =[1]Summary!N25 -> 101.56 | P25: 1034 | Q25: =[1]Summary!Q25 -> 0 | R25: =[1]Summary!R25 -> 137.77 | T25: 1034 | U25: =[1]Summary!U25 -> 0 | V25: =[1]Summary!V25 -> 191.5 | X25: 1034 | Y25: =[1]Summary!Y25 -> 0 | Z25: =[1]Summary!Z25 -> 191.5 | AB25: 1034 | AC25: =[1]Summary!AC25 -> 0 | AD25: =[1]Summary!AD25 -> 193.39
A26: 1041 | B26: =[1]Summary!B26 -> 485.7 | D26: 1041 | E26: =[1]Summary!E26 -> 0 | F26: =[1]Summary!F26 -> 57.51 | H26: 1041 | I26: =[1]Summary!I26 -> 0 | J26: =[1]Summary!J26 -> 87.25 | L26: 1041 | M26: =[1]Summary!M26 -> 0 | N26: =[1]Summary!N26 -> 101.56 | P26: 1041 | Q26: =[1]Summary!Q26 -> 0 | R26: =[1]Summary!R26 -> 137.77 | T26: 1041 | U26: =[1]Summary!U26 -> 0 | V26: =[1]Summary!V26 -> 191.5 | X26: 1041 | Y26: =[1]Summary!Y26 -> 0 | Z26: =[1]Summary!Z26 -> 191.5 | AB26: 1041 | AC26: =[1]Summary!AC26 -> 0 | AD26: =[1]Summary!AD26 -> 193.39
A27: 1042 | B27: =[1]Summary!B27 -> 93.1 | D27: 1042 | E27: =[1]Summary!E27 -> -19.31 | F27: =[1]Summary!F27 -> 27.06 | H27: 1042 | I27: =[1]Summary!I27 -> -28.87 | J27: =[1]Summary!J27 -> 40.98 | L27: 1042 | M27: =[1]Summary!M27 -> -32.93 | N27: =[1]Summary!N27 -> 47.45 | P27: 1042 | Q27: =[1]Summary!Q27 -> -36.48 | R27: =[1]Summary!R27 -> 61.88 | T27: 1042 | U27: =[1]Summary!U27 -> -42.47 | V27: =[1]Summary!V27 -> 72.62 | X27: 1042 | Y27: =[1]Summary!Y27 -> -42.47 | Z27: =[1]Summary!Z27 -> 72.62 | AB27: 1042 | AC27: =[1]Summary!AC27 -> -37.35 | AD27: =[1]Summary!AD27 -> 73.31
A28: 1043 | B28: =[1]Summary!B28 -> -14.4 | D28: 1043 | E28: =[1]Summary!E28 -> -19.15 | F28: =[1]Summary!F28 -> 21.38 | H28: 1043 | I28: =[1]Summary!I28 -> -28.92 | J28: =[1]Summary!J28 -> 32.18 | L28: 1043 | M28: =[1]Summary!M28 -> -33.39 | N28: =[1]Summary!N28 -> 36.98 | P28: 1043 | Q28: =[1]Summary!Q28 -> -42.29 | R28: =[1]Summary!R28 -> 44.69 | T28: 1043 | U28: =[1]Summary!U28 -> -45.76 | V28: =[1]Summary!V28 -> 48.13 | X28: 1043 | Y28: =[1]Summary!Y28 -> -45.76 | Z28: =[1]Summary!Z28 -> 48.13 | AB28: 1043 | AC28: =[1]Summary!AC28 -> -46.14 | AD28: =[1]Summary!AD28 -> 48.28
A29: 1044 | B29: =[1]Summary!B29 -> 0 | D29: 1044 | E29: =[1]Summary!E29 -> 0 | F29: =[1]Summary!F29 -> 21.05 | H29: 1044 | I29: =[1]Summary!I29 -> 0 | J29: =[1]Summary!J29 -> 31.68 | L29: 1044 | M29: =[1]Summary!M29 -> 0 | N29: =[1]Summary!N29 -> 36.41 | P29: 1044 | Q29: =[1]Summary!Q29 -> 0 | R29: =[1]Summary!R29 -> 44.01 | T29: 1044 | U29: =[1]Summary!U29 -> 0 | V29: =[1]Summary!V29 -> 47.39 | X29: 1044 | Y29: =[1]Summary!Y29 -> 0 | Z29: =[1]Summary!Z29 -> 47.39 | AB29: 1044 | AC29: =[1]Summary!AC29 -> 0 | AD29: =[1]Summary!AD29 -> 47.49
A30: 1045 | B30: =[1]Summary!B30 -> 536.2 | D30: 1045 | E30: =[1]Summary!E30 -> 0 | F30: =[1]Summary!F30 -> 63.33 | H30: 1045 | I30: =[1]Summary!I30 -> 0 | J30: =[1]Summary!J30 -> 96.12 | L30: 1045 | M30: =[1]Summary!M30 -> 0 | N30: =[1]Summary!N30 -> 112.15 | P30: 1045 | Q30: =[1]Summary!Q30 -> 0 | R30: =[1]Summary!R30 -> 150.96 | T30: 1045 | U30: =[1]Summary!U30 -> 0 | V30: =[1]Summary!V30 -> 211.58 | X30: 1045 | Y30: =[1]Summary!Y30 -> 0 | Z30: =[1]Summary!Z30 -> 211.58 | AB30: 1045 | AC30: =[1]Summary!AC30 -> 0 | AD30: =[1]Summary!AD30 -> 214.11
A31: 1051 | B31: =[1]Summary!B31 -> 536.2 | D31: 1051 | E31: =[1]Summary!E31 -> 0 | F31: =[1]Summary!F31 -> 63.33 | H31: 1051 | I31: =[1]Summary!I31 -> 0 | J31: =[1]Summary!J31 -> 96.12 | L31: 1051 | M31: =[1]Summary!M31 -> 0 | N31: =[1]Summary!N31 -> 112.15 | P31: 1051 | Q31: =[1]Summary!Q31 -> 0 | R31: =[1]Summary!R31 -> 150.96 | T31: 1051 | U31: =[1]Summary!U31 -> 0 | V31: =[1]Summary!V31 -> 211.58 | X31: 1051 | Y31: =[1]Summary!Y31 -> 0 | Z31: =[1]Summary!Z31 -> 211.58 | AB31: 1051 | AC31: =[1]Summary!AC31 -> 0 | AD31: =[1]Summary!AD31 -> 214.11
A32: 1052 | B32: =[1]Summary!B32 -> 42 | D32: 1052 | E32: =[1]Summary!E32 -> 0 | F32: =[1]Summary!F32 -> 26.01 | H32: 1052 | I32: =[1]Summary!I32 -> 0 | J32: =[1]Summary!J32 -> 39.29 | L32: 1052 | M32: =[1]Summary!M32 -> 0 | N32: =[1]Summary!N32 -> 45.36 | P32: 1052 | Q32: =[1]Summary!Q32 -> 0 | R32: =[1]Summary!R32 -> 57.45 | T32: 1052 | U32: =[1]Summary!U32 -> 0 | V32: =[1]Summary!V32 -> 62.74 | X32: 1052 | Y32: =[1]Summary!Y32 -> 0 | Z32: =[1]Summary!Z32 -> 62.74 | AB32: 1052 | AC32: =[1]Summary!AC32 -> 0 | AD32: =[1]Summary!AD32 -> 62.68
A33: 1053 | B33: =[1]Summary!B33 -> -7.4 | D33: 1053 | E33: =[1]Summary!E33 -> -17.85 | F33: =[1]Summary!F33 -> 22.06 | H33: 1053 | I33: =[1]Summary!I33 -> -26.87 | J33: =[1]Summary!J33 -> 33.32 | L33: 1053 | M33: =[1]Summary!M33 -> -32.21 | N33: =[1]Summary!N33 -> 38.47 | P33: 1053 | Q33: =[1]Summary!Q33 -> -37.32 | R33: =[1]Summary!R33 -> 48.72 | T33: 1053 | U33: =[1]Summary!U33 -> -40.18 | V33: =[1]Summary!V33 -> 53.21 | X33: 1053 | Y33: =[1]Summary!Y33 -> -40.18 | Z33: =[1]Summary!Z33 -> 53.21 | AB33: 1053 | AC33: =[1]Summary!AC33 -> -37.32 | AD33: =[1]Summary!AD33 -> 48.72
A34: 1054 | B34: =[1]Summary!B34 -> 42 | D34: 1054 | E34: =[1]Summary!E34 -> 0 | F34: =[1]Summary!F34 -> 26.01 | H34: 1054 | I34: =[1]Summary!I34 -> 0 | J34: =[1]Summary!J34 -> 39.29 | L34: 1054 | M34: =[1]Summary!M34 -> 0 | N34: =[1]Summary!N34 -> 45.36 | P34: 1054 | Q34: =[1]Summary!Q34 -> 0 | R34: =[1]Summary!R34 -> 57.45 | T34: 1054 | U34: =[1]Summary!U34 -> 0 | V34: =[1]Summary!V34 -> 62.74 | X34: 1054 | Y34: =[1]Summary!Y34 -> 0 | Z34: =[1]Summary!Z34 -> 62.74 | AB34: 1054 | AC34: =[1]Summary!AC34 -> 0 | AD34: =[1]Summary!AD34 -> 62.68
A35: 1055 | B35: =[1]Summary!B35 -> 536.2 | D35: 1055 | E35: =[1]Summary!E35 -> 0 | F35: =[1]Summary!F35 -> 63.33 | H35: 1055 | I35: =[1]Summary!I35 -> 0 | J35: =[1]Summary!J35 -> 96.12 | L35: 1055 | M35: =[1]Summary!M35 -> 0 | N35: =[1]Summary!N35 -> 112.15 | P35: 1055 | Q35: =[1]Summary!Q35 -> 0 | R35: =[1]Summary!R35 -> 150.96 | T35: 1055 | U35: =[1]Summary!U35 -> 0 | V35: =[1]Summary!V35 -> 211.58 | X35: 1055 | Y35: =[1]Summary!Y35 -> 0 | Z35: =[1]Summary!Z35 -> 211.58 | AB35: 1055 | AC35: =[1]Summary!AC35 -> 0 | AD35: =[1]Summary!AD35 -> 214.11
A36: 1061 | B36: =[1]Summary!B36 -> 536.2 | D36: 1061 | E36: =[1]Summary!E36 -> 0 | F36: =[1]Summary!F36 -> 63.33 | H36: 1061 | I36: =[1]Summary!I36 -> 0 | J36: =[1]Summary!J36 -> 96.12 | L36: 1061 | M36: =[1]Summary!M36 -> 0 | N36: =[1]Summary!N36 -> 112.15 | P36: 1061 | Q36: =[1]Summary!Q36 -> 0 | R36: =[1]Summary!R36 -> 150.96 | T36: 1061 | U36: =[1]Summary!U36 -> 0 | V36: =[1]Summary!V36 -> 211.58 | X36: 1061 | Y36: =[1]Summary!Y36 -> 0 | Z36: =[1]Summary!Z36 -> 211.58 | AB36: 1061 | AC36: =[1]Summary!AC36 -> 0 | AD36: =[1]Summary!AD36 -> 214.11
A37: 1062 | B37: =[1]Summary!B37 -> 0 | D37: 1062 | E37: =[1]Summary!E37 -> 0 | F37: =[1]Summary!F37 -> 21.05 | H37: 1062 | I37: =[1]Summary!I37 -> 0 | J37: =[1]Summary!J37 -> 31.68 | L37: 1062 | M37: =[1]Summary!M37 -> 0 | N37: =[1]Summary!N37 -> 36.41 | P37: 1062 | Q37: =[1]Summary!Q37 -> 0 | R37: =[1]Summary!R37 -> 44.01 | T37: 1062 | U37: =[1]Summary!U37 -> 0 | V37: =[1]Summary!V37 -> 47.39 | X37: 1062 | Y37: =[1]Summary!Y37 -> 0 | Z37: =[1]Summary!Z37 -> 47.39 | AB37: 1062 | AC37: =[1]Summary!AC37 -> 0 | AD37: =[1]Summary!AD37 -> 47.49
A38: 1063 | B38: =[1]Summary!B38 -> -14.4 | D38: 1063 | E38: =[1]Summary!E38 -> -19.15 | F38: =[1]Summary!F38 -> 21.38 | H38: 1063 | I38: =[1]Summary!I38 -> -28.92 | J38: =[1]Summary!J38 -> 32.18 | L38: 1063 | M38: =[1]Summary!M38 -> -33.39 | N38: =[1]Summary!N38 -> 36.98 | P38: 1063 | Q38: =[1]Summary!Q38 -> -42.29 | R38: =[1]Summary!R38 -> 44.69 | T38: 1063 | U38: =[1]Summary!U38 -> -45.76 | V38: =[1]Summary!V38 -> 48.13 | X38: 1063 | Y38: =[1]Summary!Y38 -> -45.76 | Z38: =[1]Summary!Z38 -> 48.13 | AB38: 1063 | AC38: =[1]Summary!AC38 -> -46.14 | AD38: =[1]Summary!AD38 -> 48.28
A39: 1064 | B39: =[1]Summary!B39 -> 93.1 | D39: 1064 | E39: =[1]Summary!E39 -> -19.31 | F39: =[1]Summary!F39 -> 27.06 | H39: 1064 | I39: =[1]Summary!I39 -> -28.87 | J39: =[1]Summary!J39 -> 40.98 | L39: 1064 | M39: =[1]Summary!M39 -> -32.93 | N39: =[1]Summary!N39 -> 47.45 | P39: 1064 | Q39: =[1]Summary!Q39 -> -36.48 | R39: =[1]Summary!R39 -> 61.88 | T39: 1064 | U39: =[1]Summary!U39 -> -42.47 | V39: =[1]Summary!V39 -> 72.62 | X39: 1064 | Y39: =[1]Summary!Y39 -> -42.47 | Z39: =[1]Summary!Z39 -> 72.62 | AB39: 1064 | AC39: =[1]Summary!AC39 -> -37.35 | AD39: =[1]Summary!AD39 -> 73.31
A40: 1065 | B40: =[1]Summary!B40 -> 485.7 | D40: 1065 | E40: =[1]Summary!E40 -> 0 | F40: =[1]Summary!F40 -> 57.51 | H40: 1065 | I40: =[1]Summary!I40 -> 0 | J40: =[1]Summary!J40 -> 87.25 | L40: 1065 | M40: =[1]Summary!M40 -> 0 | N40: =[1]Summary!N40 -> 101.56 | P40: 1065 | Q40: =[1]Summary!Q40 -> 0 | R40: =[1]Summary!R40 -> 137.77 | T40: 1065 | U40: =[1]Summary!U40 -> 0 | V40: =[1]Summary!V40 -> 191.5 | X40: 1065 | Y40: =[1]Summary!Y40 -> 0 | Z40: =[1]Summary!Z40 -> 191.5 | AB40: 1065 | AC40: =[1]Summary!AC40 -> 0 | AD40: =[1]Summary!AD40 -> 193.39
A41: 1071 | B41: =[1]Summary!B41 -> 485.7 | D41: 1071 | E41: =[1]Summary!E41 -> 0 | F41: =[1]Summary!F41 -> 57.51 | H41: 1071 | I41: =[1]Summary!I41 -> 0 | J41: =[1]Summary!J41 -> 87.25 | L41: 1071 | M41: =[1]Summary!M41 -> 0 | N41: =[1]Summary!N41 -> 101.56 | P41: 1071 | Q41: =[1]Summary!Q41 -> 0 | R41: =[1]Summary!R41 -> 137.77 | T41: 1071 | U41: =[1]Summary!U41 -> 0 | V41: =[1]Summary!V41 -> 191.5 | X41: 1071 | Y41: =[1]Summary!Y41 -> 0 | Z41: =[1]Summary!Z41 -> 191.5 | AB41: 1071 | AC41: =[1]Summary!AC41 -> 0 | AD41: =[1]Summary!AD41 -> 193.39
A42: 1072 | B42: =[1]Summary!B42 -> -36.3 | D42: 1072 | E42: =[1]Summary!E42 -> -18.11 | F42: =[1]Summary!F42 -> 23.23 | H42: 1072 | I42: =[1]Summary!I42 -> -27.43 | J42: =[1]Summary!J42 -> 34.73 | L42: 1072 | M42: =[1]Summary!M42 -> -31.76 | N42: =[1]Summary!N42 -> 39.61 | P42: 1072 | Q42: =[1]Summary!Q42 -> -41.41 | R42: =[1]Summary!R42 -> 43.89 | T42: 1072 | U42: =[1]Summary!U42 -> -47.88 | V42: =[1]Summary!V42 -> 51.09 | X42: 1072 | Y42: =[1]Summary!Y42 -> -47.88 | Z42: =[1]Summary!Z42 -> 51.09 | AB42: 1072 | AC42: =[1]Summary!AC42 -> -49.07 | AD42: =[1]Summary!AD42 -> 45.03
A43: 1073 | B43: =[1]Summary!B43 -> 123.9 | D43: 1073 | E43: =[1]Summary!E43 -> -19.19 | F43: =[1]Summary!F43 -> 25.78 | H43: 1073 | I43: =[1]Summary!I43 -> -28.3 | J43: =[1]Summary!J43 -> 39.12 | L43: 1073 | M43: =[1]Summary!M43 -> -31.75 | N43: =[1]Summary!N43 -> 45.38 | P43: 1073 | Q43: =[1]Summary!Q43 -> -28.43 | R43: =[1]Summary!R43 -> 60.38 | T43: 1073 | U43: =[1]Summary!U43 -> -40.14 | V43: =[1]Summary!V43 -> 75.92 | X43: 1073 | Y43: =[1]Summary!Y43 -> -40.14 | Z43: =[1]Summary!Z43 -> 75.92 | AB43: 1073 | AC43: =[1]Summary!AC43 -> -28.65 | AD43: =[1]Summary!AD43 -> 75.91
A44: 1074 | B44: =[1]Summary!B44 -> 413.2 | D44: 1074 | E44: =[1]Summary!E44 -> 0 | F44: =[1]Summary!F44 -> 48.99 | H44: 1074 | I44: =[1]Summary!I44 -> 0 | J44: =[1]Summary!J44 -> 74.43 | L44: 1074 | M44: =[1]Summary!M44 -> 0 | N44: =[1]Summary!N44 -> 86.48 | P44: 1074 | Q44: =[1]Summary!Q44 -> 0 | R44: =[1]Summary!R44 -> 117.06 | T44: 1074 | U44: =[1]Summary!U44 -> 0 | V44: =[1]Summary!V44 -> 162.74 | X44: 1074 | Y44: =[1]Summary!Y44 -> 0 | Z44: =[1]Summary!Z44 -> 162.74 | AB44: 1074 | AC44: =[1]Summary!AC44 -> 0 | AD44: =[1]Summary!AD44 -> 167.95
A45: 1081 | B45: =[1]Summary!B45 -> 413.2 | D45: 1081 | E45: =[1]Summary!E45 -> 0 | F45: =[1]Summary!F45 -> 48.99 | H45: 1081 | I45: =[1]Summary!I45 -> 0 | J45: =[1]Summary!J45 -> 74.43 | L45: 1081 | M45: =[1]Summary!M45 -> 0 | N45: =[1]Summary!N45 -> 86.48 | P45: 1081 | Q45: =[1]Summary!Q45 -> 0 | R45: =[1]Summary!R45 -> 117.06 | T45: 1081 | U45: =[1]Summary!U45 -> 0 | V45: =[1]Summary!V45 -> 162.74 | X45: 1081 | Y45: =[1]Summary!Y45 -> 0 | Z45: =[1]Summary!Z45 -> 162.74 | AB45: 1081 | AC45: =[1]Summary!AC45 -> 0 | AD45: =[1]Summary!AD45 -> 167.95
A46: 1082 | B46: =[1]Summary!B46 -> -75.3 | D46: 1082 | E46: =[1]Summary!E46 -> -18.68 | F46: =[1]Summary!F46 -> 22.85 | H46: 1082 | I46: =[1]Summary!I46 -> -28.34 | J46: =[1]Summary!J46 -> 33.68 | L46: 1082 | M46: =[1]Summary!M46 -> -32.88 | N46: =[1]Summary!N46 -> 37.8 | P46: 1082 | Q46: =[1]Summary!Q46 -> -43.75 | R46: =[1]Summary!R46 -> 34.95 | T46: 1082 | U46: =[1]Summary!U46 -> -54.38 | V46: =[1]Summary!V46 -> 47.78 | X46: 1082 | Y46: =[1]Summary!Y46 -> -54.38 | Z46: =[1]Summary!Z46 -> 47.78 | AB46: 1082 | AC46: =[1]Summary!AC46 -> -55 | AD46: =[1]Summary!AD46 -> 35.29
A47: 1083 | B47: =[1]Summary!B47 -> 184.6 | D47: 1083 | E47: =[1]Summary!E47 -> -14.61 | F47: =[1]Summary!F47 -> 28.34 | H47: 1083 | I47: =[1]Summary!I47 -> -20.55 | J47: =[1]Summary!J47 -> 43.06 | L47: 1083 | M47: =[1]Summary!M47 -> -21.71 | N47: =[1]Summary!N47 -> 50.03 | P47: 1083 | Q47: =[1]Summary!Q47 -> -17.58 | R47: =[1]Summary!R47 -> 67.54 | T47: 1083 | U47: =[1]Summary!U47 -> -25.9 | V47: =[1]Summary!V47 -> 91.53 | X47: 1083 | Y47: =[1]Summary!Y47 -> -25.9 | Z47: =[1]Summary!Z47 -> 91.53 | AB47: 1083 | AC47: =[1]Summary!AC47 -> -17.44 | AD47: =[1]Summary!AD47 -> 90.99
A48: 1084 | B48: =[1]Summary!B48 -> 290.2 | D48: 1084 | E48: =[1]Summary!E48 -> 0 | F48: =[1]Summary!F48 -> 34.18 | H48: 1084 | I48: =[1]Summary!I48 -> 0 | J48: =[1]Summary!J48 -> 51.99 | L48: 1084 | M48: =[1]Summary!M48 -> 0 | N48: =[1]Summary!N48 -> 60.48 | P48: 1084 | Q48: =[1]Summary!Q48 -> 0 | R48: =[1]Summary!R48 -> 82.57 | T48: 1084 | U48: =[1]Summary!U48 -> 0 | V48: =[1]Summary!V48 -> 113.35 | X48: 1084 | Y48: =[1]Summary!Y48 -> 0 | Z48: =[1]Summary!Z48 -> 113.35 | AB48: 1084 | AC48: =[1]Summary!AC48 -> 0 | AD48: =[1]Summary!AD48 -> 120.65
A49: 1091 | B49: =[1]Summary!B49 -> 290.2 | D49: 1091 | E49: =[1]Summary!E49 -> 0 | F49: =[1]Summary!F49 -> 34.18 | H49: 1091 | I49: =[1]Summary!I49 -> 0 | J49: =[1]Summary!J49 -> 51.99 | L49: 1091 | M49: =[1]Summary!M49 -> 0 | N49: =[1]Summary!N49 -> 60.48 | P49: 1091 | Q49: =[1]Summary!Q49 -> 0 | R49: =[1]Summary!R49 -> 82.57 | T49: 1091 | U49: =[1]Summary!U49 -> 0 | V49: =[1]Summary!V49 -> 113.35 | X49: 1091 | Y49: =[1]Summary!Y49 -> 0 | Z49: =[1]Summary!Z49 -> 113.35 | AB49: 1091 | AC49: =[1]Summary!AC49 -> 0 | AD49: =[1]Summary!AD49 -> 120.65
A50: 1092 | B50: =[1]Summary!B50 -> 69.7 | D50: 1092 | E50: =[1]Summary!E50 -> 0 | F50: =[1]Summary!F50 -> 42.45 | H50: 1092 | I50: =[1]Summary!I50 -> 0 | J50: =[1]Summary!J50 -> 62.83 | L50: 1092 | M50: =[1]Summary!M50 -> 0 | N50: =[1]Summary!N50 -> 69.89 | P50: 1092 | Q50: =[1]Summary!Q50 -> 0 | R50: =[1]Summary!R50 -> 61.26 | T50: 1092 | U50: =[1]Summary!U50 -> 0 | V50: =[1]Summary!V50 -> 80.99 | X50: 1092 | Y50: =[1]Summary!Y50 -> 0 | Z50: =[1]Summary!Z50 -> 80.99 | AB50: 1092 | AC50: =[1]Summary!AC50 -> 0 | AD50: =[1]Summary!AD50 -> 61.23
A51: 1093 | B51: =[1]Summary!B51 -> 290.2 | D51: 1093 | E51: =[1]Summary!E51 -> 0 | F51: =[1]Summary!F51 -> 34.18 | H51: 1093 | I51: =[1]Summary!I51 -> 0 | J51: =[1]Summary!J51 -> 51.99 | L51: 1093 | M51: =[1]Summary!M51 -> 0 | N51: =[1]Summary!N51 -> 60.48 | P51: 1093 | Q51: =[1]Summary!Q51 -> 0 | R51: =[1]Summary!R51 -> 82.57 | T51: 1093 | U51: =[1]Summary!U51 -> 0 | V51: =[1]Summary!V51 -> 113.35 | X51: 1093 | Y51: =[1]Summary!Y51 -> 0 | Z51: =[1]Summary!Z51 -> 113.35 | AB51: 1093 | AC51: =[1]Summary!AC51 -> 0 | AD51: =[1]Summary!AD51 -> 120.65
A52: 1101 | B52: =[1]Summary!B52 -> 290.2 | D52: 1101 | E52: =[1]Summary!E52 -> 0 | F52: =[1]Summary!F52 -> 34.18 | H52: 1101 | I52: =[1]Summary!I52 -> 0 | J52: =[1]Summary!J52 -> 51.99 | L52: 1101 | M52: =[1]Summary!M52 -> 0 | N52: =[1]Summary!N52 -> 60.48 | P52: 1101 | Q52: =[1]Summary!Q52 -> 0 | R52: =[1]Summary!R52 -> 82.57 | T52: 1101 | U52: =[1]Summary!U52 -> 0 | V52: =[1]Summary!V52 -> 113.35 | X52: 1101 | Y52: =[1]Summary!Y52 -> 0 | Z52: =[1]Summary!Z52 -> 113.35 | AB52: 1101 | AC52: =[1]Summary!AC52 -> 0 | AD52: =[1]Summary!AD52 -> 120.65
A53: 1102 | B53: =[1]Summary!B53 -> -435.8 | D53: 1102 | E53: =[1]Summary!E53 -> -51.33 | F53: =[1]Summary!F53 -> 0 | H53: 1102 | I53: =[1]Summary!I53 -> -78.06 | J53: =[1]Summary!J53 -> 0 | L53: 1102 | M53: =[1]Summary!M53 -> -90.81 | N53: =[1]Summary!N53 -> 0 | P53: 1102 | Q53: =[1]Summary!Q53 -> -123.97 | R53: =[1]Summary!R53 -> 0 | T53: 1102 | U53: =[1]Summary!U53 -> -184.08 | V53: =[1]Summary!V53 -> 0 | X53: 1102 | Y53: =[1]Summary!Y53 -> -184.08 | Z53: =[1]Summary!Z53 -> 0 | AB53: 1102 | AC53: =[1]Summary!AC53 -> -181.15 | AD53: =[1]Summary!AD53 -> 0
A54: Upper Chord Members | D54: Upper Chord Members | H54: Upper Chord Members | L54: Upper Chord Members | P54: Upper Chord Members | T54: Upper Chord Members | X54: Upper Chord Members | AB54: Upper Chord Members
A55: 2011 | B55: =[1]Summary!B55 -> -435.8 | D55: 2011 | E55: =[1]Summary!E55 -> -51.33 | F55: =[1]Summary!F55 -> 0 | H55: 2011 | I55: =[1]Summary!I55 -> -78.06 | J55: =[1]Summary!J55 -> 0 | L55: 2011 | M55: =[1]Summary!M55 -> -90.81 | N55: =[1]Summary!N55 -> 0 | P55: 2011 | Q55: =[1]Summary!Q55 -> -123.97 | R55: =[1]Summary!R55 -> 0 | T55: 2011 | U55: =[1]Summary!U55 -> -184.08 | V55: =[1]Summary!V55 -> 0 | X55: 2011 | Y55: =[1]Summary!Y55 -> -184.08 | Z55: =[1]Summary!Z55 -> 0 | AB55: 2011 | AC55: =[1]Summary!AC55 -> -181.15 | AD55: =[1]Summary!AD55 -> 0
A56: 2012 | B56: =[1]Summary!B56 -> -427.7 | D56: 2012 | E56: =[1]Summary!E56 -> -50.7 | F56: =[1]Summary!F56 -> 0 | H56: 2012 | I56: =[1]Summary!I56 -> -77.03 | J56: =[1]Summary!J56 -> 0 | L56: 2012 | M56: =[1]Summary!M56 -> -89.51 | N56: =[1]Summary!N56 -> 0 | P56: 2012 | Q56: =[1]Summary!Q56 -> -121.15 | R56: =[1]Summary!R56 -> 0 | T56: 2012 | U56: =[1]Summary!U56 -> -168.43 | V56: =[1]Summary!V56 -> 0 | X56: 2012 | Y56: =[1]Summary!Y56 -> -168.43 | Z56: =[1]Summary!Z56 -> 0 | AB56: 2012 | AC56: =[1]Summary!AC56 -> -173.82 | AD56: =[1]Summary!AD56 -> 0
A57: 2013 | B57: =[1]Summary!B57 -> 184.6 | D57: 2013 | E57: =[1]Summary!E57 -> -14.61 | F57: =[1]Summary!F57 -> 28.34 | H57: 2013 | I57: =[1]Summary!I57 -> -20.55 | J57: =[1]Summary!J57 -> 43.06 | L57: 2013 | M57: =[1]Summary!M57 -> -21.71 | N57: =[1]Summary!N57 -> 50.03 | P57: 2013 | Q57: =[1]Summary!Q57 -> -17.58 | R57: =[1]Summary!R57 -> 67.54 | T57: 2013 | U57: =[1]Summary!U57 -> -25.9 | V57: =[1]Summary!V57 -> 91.53 | X57: 2013 | Y57: =[1]Summary!Y57 -> -25.9 | Z57: =[1]Summary!Z57 -> 91.53 | AB57: 2013 | AC57: =[1]Summary!AC57 -> -17.44 | AD57: =[1]Summary!AD57 -> 90.99
A58: 2014 | B58: =[1]Summary!B58 -> 69.7 | D58: 2014 | E58: =[1]Summary!E58 -> 0 | F58: =[1]Summary!F58 -> 42.45 | H58: 2014 | I58: =[1]Summary!I58 -> 0 | J58: =[1]Summary!J58 -> 62.83 | L58: 2014 | M58: =[1]Summary!M58 -> 0 | N58: =[1]Summary!N58 -> 69.89 | P58: 2014 | Q58: =[1]Summary!Q58 -> 0 | R58: =[1]Summary!R58 -> 61.26 | T58: 2014 | U58: =[1]Summary!U58 -> 0 | V58: =[1]Summary!V58 -> 80.99 | X58: 2014 | Y58: =[1]Summary!Y58 -> 0 | Z58: =[1]Summary!Z58 -> 80.99 | AB58: 2014 | AC58: =[1]Summary!AC58 -> 0 | AD58: =[1]Summary!AD58 -> 61.23
A59: 2021 | B59: =[1]Summary!B59 -> -427.7 | D59: 2021 | E59: =[1]Summary!E59 -> -50.7 | F59: =[1]Summary!F59 -> 0 | H59: 2021 | I59: =[1]Summary!I59 -> -77.03 | J59: =[1]Summary!J59 -> 0 | L59: 2021 | M59: =[1]Summary!M59 -> -89.51 | N59: =[1]Summary!N59 -> 0 | P59: 2021 | Q59: =[1]Summary!Q59 -> -121.15 | R59: =[1]Summary!R59 -> 0 | T59: 2021 | U59: =[1]Summary!U59 -> -168.43 | V59: =[1]Summary!V59 -> 0 | X59: 2021 | Y59: =[1]Summary!Y59 -> -168.43 | Z59: =[1]Summary!Z59 -> 0 | AB59: 2021 | AC59: =[1]Summary!AC59 -> -173.82 | AD59: =[1]Summary!AD59 -> 0
A60: 2022 | B60: =[1]Summary!B60 -> -491.8 | D60: 2022 | E60: =[1]Summary!E60 -> -58.24 | F60: =[1]Summary!F60 -> 0 | H60: 2022 | I60: =[1]Summary!I60 -> -88.36 | J60: =[1]Summary!J60 -> 0 | L60: 2022 | M60: =[1]Summary!M60 -> -102.85 | N60: =[1]Summary!N60 -> 0 | P60: 2022 | Q60: =[1]Summary!Q60 -> -139.52 | R60: =[1]Summary!R60 -> 0 | T60: 2022 | U60: =[1]Summary!U60 -> -193.94 | V60: =[1]Summary!V60 -> 0 | X60: 2022 | Y60: =[1]Summary!Y60 -> -193.94 | Z60: =[1]Summary!Z60 -> 0 | AB60: 2022 | AC60: =[1]Summary!AC60 -> -195.85 | AD60: =[1]Summary!AD60 -> 0
A61: 2023 | B61: =[1]Summary!B61 -> 123.9 | D61: 2023 | E61: =[1]Summary!E61 -> -19.19 | F61: =[1]Summary!F61 -> 25.78 | H61: 2023 | I61: =[1]Summary!I61 -> -28.3 | J61: =[1]Summary!J61 -> 39.12 | L61: 2023 | M61: =[1]Summary!M61 -> -31.75 | N61: =[1]Summary!N61 -> 45.38 | P61: 2023 | Q61: =[1]Summary!Q61 -> -28.43 | R61: =[1]Summary!R61 -> 60.38 | T61: 2023 | U61: =[1]Summary!U61 -> -40.14 | V61: =[1]Summary!V61 -> 75.92 | X61: 2023 | Y61: =[1]Summary!Y61 -> -40.14 | Z61: =[1]Summary!Z61 -> 75.92 | AB61: 2023 | AC61: =[1]Summary!AC61 -> -28.65 | AD61: =[1]Summary!AD61 -> 75.91
A62: 2024 | B62: =[1]Summary!B62 -> -75.3 | D62: 2024 | E62: =[1]Summary!E62 -> -18.68 | F62: =[1]Summary!F62 -> 22.85 | H62: 2024 | I62: =[1]Summary!I62 -> -28.34 | J62: =[1]Summary!J62 -> 33.68 | L62: 2024 | M62: =[1]Summary!M62 -> -32.88 | N62: =[1]Summary!N62 -> 37.8 | P62: 2024 | Q62: =[1]Summary!Q62 -> -43.75 | R62: =[1]Summary!R62 -> 34.95 | T62: 2024 | U62: =[1]Summary!U62 -> -54.38 | V62: =[1]Summary!V62 -> 47.78 | X62: 2024 | Y62: =[1]Summary!Y62 -> -54.38 | Z62: =[1]Summary!Z62 -> 47.78 | AB62: 2024 | AC62: =[1]Summary!AC62 -> -55 | AD62: =[1]Summary!AD62 -> 35.29
A63: 2031 | B63: =[1]Summary!B63 -> -491.8 | D63: 2031 | E63: =[1]Summary!E63 -> -58.24 | F63: =[1]Summary!F63 -> 0 | H63: 2031 | I63: =[1]Summary!I63 -> -88.36 | J63: =[1]Summary!J63 -> 0 | L63: 2031 | M63: =[1]Summary!M63 -> -102.85 | N63: =[1]Summary!N63 -> 0 | P63: 2031 | Q63: =[1]Summary!Q63 -> -139.52 | R63: =[1]Summary!R63 -> 0 | T63: 2031 | U63: =[1]Summary!U63 -> -193.94 | V63: =[1]Summary!V63 -> 0 | X63: 2031 | Y63: =[1]Summary!Y63 -> -193.94 | Z63: =[1]Summary!Z63 -> 0 | AB63: 2031 | AC63: =[1]Summary!AC63 -> -195.85 | AD63: =[1]Summary!AD63 -> 0
A64: 2032 | B64: =[1]Summary!B64 -> -536.9 | D64: 2032 | E64: =[1]Summary!E64 -> -63.42 | F64: =[1]Summary!F64 -> 0 | H64: 2032 | I64: =[1]Summary!I64 -> -96.25 | J64: =[1]Summary!J64 -> 0 | L64: 2032 | M64: =[1]Summary!M64 -> -112.31 | N64: =[1]Summary!N64 -> 0 | P64: 2032 | Q64: =[1]Summary!Q64 -> -151.17 | R64: =[1]Summary!R64 -> 0 | T64: 2032 | U64: =[1]Summary!U64 -> -211.88 | V64: =[1]Summary!V64 -> 0 | X64: 2032 | Y64: =[1]Summary!Y64 -> -211.88 | Z64: =[1]Summary!Z64 -> 0 | AB64: 2032 | AC64: =[1]Summary!AC64 -> -214.41 | AD64: =[1]Summary!AD64 -> 0
A65: 2033 | B65: =[1]Summary!B65 -> 93.1 | D65: 2033 | E65: =[1]Summary!E65 -> -19.31 | F65: =[1]Summary!F65 -> 27.06 | H65: 2033 | I65: =[1]Summary!I65 -> -28.87 | J65: =[1]Summary!J65 -> 40.98 | L65: 2033 | M65: =[1]Summary!M65 -> -32.93 | N65: =[1]Summary!N65 -> 47.45 | P65: 2033 | Q65: =[1]Summary!Q65 -> -36.48 | R65: =[1]Summary!R65 -> 61.88 | T65: 2033 | U65: =[1]Summary!U65 -> -42.47 | V65: =[1]Summary!V65 -> 72.62 | X65: 2033 | Y65: =[1]Summary!Y65 -> -42.47 | Z65: =[1]Summary!Z65 -> 72.62 | AB65: 2033 | AC65: =[1]Summary!AC65 -> -37.35 | AD65: =[1]Summary!AD65 -> 73.31
A66: 2034 | B66: =[1]Summary!B66 -> -36.3 | D66: 2034 | E66: =[1]Summary!E66 -> -18.11 | F66: =[1]Summary!F66 -> 23.23 | H66: 2034 | I66: =[1]Summary!I66 -> -27.43 | J66: =[1]Summary!J66 -> 34.73 | L66: 2034 | M66: =[1]Summary!M66 -> -31.76 | N66: =[1]Summary!N66 -> 39.61 | P66: 2034 | Q66: =[1]Summary!Q66 -> -41.41 | R66: =[1]Summary!R66 -> 43.89 | T66: 2034 | U66: =[1]Summary!U66 -> -47.88 | V66: =[1]Summary!V66 -> 51.09 | X66: 2034 | Y66: =[1]Summary!Y66 -> -47.88 | Z66: =[1]Summary!Z66 -> 51.09 | AB66: 2034 | AC66: =[1]Summary!AC66 -> -49.07 | AD66: =[1]Summary!AD66 -> 45.03
A67: 2041 | B67: =[1]Summary!B67 -> -536.9 | D67: 2041 | E67: =[1]Summary!E67 -> -63.42 | F67: =[1]Summary!F67 -> 0 | H67: 2041 | I67: =[1]Summary!I67 -> -96.25 | J67: =[1]Summary!J67 -> 0 | L67: 2041 | M67: =[1]Summary!M67 -> -112.31 | N67: =[1]Summary!N67 -> 0 | P67: 2041 | Q67: =[1]Summary!Q67 -> -151.17 | R67: =[1]Summary!R67 -> 0 | T67: 2041 | U67: =[1]Summary!U67 -> -211.88 | V67: =[1]Summary!V67 -> 0 | X67: 2041 | Y67: =[1]Summary!Y67 -> -211.88 | Z67: =[1]Summary!Z67 -> 0 | AB67: 2041 | AC67: =[1]Summary!AC67 -> -214.41 | AD67: =[1]Summary!AD67 -> 0
A68: 2042 | B68: =[1]Summary!B68 -> -558.4 | D68: 2042 | E68: =[1]Summary!E68 -> -65.67 | F68: =[1]Summary!F68 -> 0 | H68: 2042 | I68: =[1]Summary!I68 -> -100.07 | J68: =[1]Summary!J68 -> 0 | L68: 2042 | M68: =[1]Summary!M68 -> -116.41 | N68: =[1]Summary!N68 -> 0 | P68: 2042 | Q68: =[1]Summary!Q68 -> -155.05 | R68: =[1]Summary!R68 -> 0 | T68: 2042 | U68: =[1]Summary!U68 -> -220.4 | V68: =[1]Summary!V68 -> 0 | X68: 2042 | Y68: =[1]Summary!Y68 -> -220.4 | Z68: =[1]Summary!Z68 -> 0 | AB68: 2042 | AC68: =[1]Summary!AC68 -> -222.11 | AD68: =[1]Summary!AD68 -> 0
A69: 2043 | B69: =[1]Summary!B69 -> 42 | D69: 2043 | E69: =[1]Summary!E69 -> 0 | F69: =[1]Summary!F69 -> 26.01 | H69: 2043 | I69: =[1]Summary!I69 -> 0 | J69: =[1]Summary!J69 -> 39.29 | L69: 2043 | M69: =[1]Summary!M69 -> 0 | N69: =[1]Summary!N69 -> 45.36 | P69: 2043 | Q69: =[1]Summary!Q69 -> 0 | R69: =[1]Summary!R69 -> 57.45 | T69: 2043 | U69: =[1]Summary!U69 -> 0 | V69: =[1]Summary!V69 -> 62.74 | X69: 2043 | Y69: =[1]Summary!Y69 -> 0 | Z69: =[1]Summary!Z69 -> 62.74 | AB69: 2043 | AC69: =[1]Summary!AC69 -> 0 | AD69: =[1]Summary!AD69 -> 62.68
A70: 2044 | B70: =[1]Summary!B70 -> -14.4 | D70: 2044 | E70: =[1]Summary!E70 -> -19.15 | F70: =[1]Summary!F70 -> 21.38 | H70: 2044 | I70: =[1]Summary!I70 -> -28.92 | J70: =[1]Summary!J70 -> 32.18 | L70: 2044 | M70: =[1]Summary!M70 -> -33.39 | N70: =[1]Summary!N70 -> 36.98 | P70: 2044 | Q70: =[1]Summary!Q70 -> -42.29 | R70: =[1]Summary!R70 -> 44.69 | T70: 2044 | U70: =[1]Summary!U70 -> -45.76 | V70: =[1]Summary!V70 -> 48.13 | X70: 2044 | Y70: =[1]Summary!Y70 -> -45.76 | Z70: =[1]Summary!Z70 -> 48.13 | AB70: 2044 | AC70: =[1]Summary!AC70 -> -46.14 | AD70: =[1]Summary!AD70 -> 48.28
A71: 2051 | B71: =[1]Summary!B71 -> -558.4 | D71: 2051 | E71: =[1]Summary!E71 -> -65.67 | F71: =[1]Summary!F71 -> 0 | H71: 2051 | I71: =[1]Summary!I71 -> -100.07 | J71: =[1]Summary!J71 -> 0 | L71: 2051 | M71: =[1]Summary!M71 -> -116.41 | N71: =[1]Summary!N71 -> 0 | P71: 2051 | Q71: =[1]Summary!Q71 -> -155.05 | R71: =[1]Summary!R71 -> 0 | T71: 2051 | U71: =[1]Summary!U71 -> -220.4 | V71: =[1]Summary!V71 -> 0 | X71: 2051 | Y71: =[1]Summary!Y71 -> -220.4 | Z71: =[1]Summary!Z71 -> 0 | AB71: 2051 | AC71: =[1]Summary!AC71 -> -222.11 | AD71: =[1]Summary!AD71 -> 0
A72: 2052 | B72: =[1]Summary!B72 -> -558.4 | D72: 2052 | E72: =[1]Summary!E72 -> -65.67 | F72: =[1]Summary!F72 -> 0 | H72: 2052 | I72: =[1]Summary!I72 -> -100.07 | J72: =[1]Summary!J72 -> 0 | L72: 2052 | M72: =[1]Summary!M72 -> -116.41 | N72: =[1]Summary!N72 -> 0 | P72: 2052 | Q72: =[1]Summary!Q72 -> -155.05 | R72: =[1]Summary!R72 -> 0 | T72: 2052 | U72: =[1]Summary!U72 -> -220.4 | V72: =[1]Summary!V72 -> 0 | X72: 2052 | Y72: =[1]Summary!Y72 -> -220.4 | Z72: =[1]Summary!Z72 -> 0 | AB72: 2052 | AC72: =[1]Summary!AC72 -> -222.11 | AD72: =[1]Summary!AD72 -> 0
A73: 2053 | B73: =[1]Summary!B73 -> 0 | D73: 2053 | E73: =[1]Summary!E73 -> 0 | F73: =[1]Summary!F73 -> 21.05 | H73: 2053 | I73: =[1]Summary!I73 -> 0 | J73: =[1]Summary!J73 -> 31.68 | L73: 2053 | M73: =[1]Summary!M73 -> 0 | N73: =[1]Summary!N73 -> 36.41 | P73: 2053 | Q73: =[1]Summary!Q73 -> 0 | R73: =[1]Summary!R73 -> 44.01 | T73: 2053 | U73: =[1]Summary!U73 -> 0 | V73: =[1]Summary!V73 -> 47.39 | X73: 2053 | Y73: =[1]Summary!Y73 -> 0 | Z73: =[1]Summary!Z73 -> 47.39 | AB73: 2053 | AC73: =[1]Summary!AC73 -> 0 | AD73: =[1]Summary!AD73 -> 47.49
A74: 2054 | B74: =[1]Summary!B74 -> -7.4 | D74: 2054 | E74: =[1]Summary!E74 -> -17.85 | F74: =[1]Summary!F74 -> 22.06 | H74: 2054 | I74: =[1]Summary!I74 -> -26.87 | J74: =[1]Summary!J74 -> 33.32 | L74: 2054 | M74: =[1]Summary!M74 -> -32.21 | N74: =[1]Summary!N74 -> 38.47 | P74: 2054 | Q74: =[1]Summary!Q74 -> -37.32 | R74: =[1]Summary!R74 -> 48.72 | T74: 2054 | U74: =[1]Summary!U74 -> -40.18 | V74: =[1]Summary!V74 -> 53.21 | X74: 2054 | Y74: =[1]Summary!Y74 -> -40.18 | Z74: =[1]Summary!Z74 -> 53.21 | AB74: 2054 | AC74: =[1]Summary!AC74 -> -37.32 | AD74: =[1]Summary!AD74 -> 48.72
A75: 2055 | B75: =[1]Summary!B75 -> 0 | D75: 2055 | E75: =[1]Summary!E75 -> 0 | F75: =[1]Summary!F75 -> 21.05 | H75: 2055 | I75: =[1]Summary!I75 -> 0 | J75: =[1]Summary!J75 -> 31.68 | L75: 2055 | M75: =[1]Summary!M75 -> 0 | N75: =[1]Summary!N75 -> 36.41 | P75: 2055 | Q75: =[1]Summary!Q75 -> 0 | R75: =[1]Summary!R75 -> 44.01 | T75: 2055 | U75: =[1]Summary!U75 -> 0 | V75: =[1]Summary!V75 -> 47.39 | X75: 2055 | Y75: =[1]Summary!Y75 -> 0 | Z75: =[1]Summary!Z75 -> 47.39 | AB75: 2055 | AC75: =[1]Summary!AC75 -> 0 | AD75: =[1]Summary!AD75 -> 47.49
A76: 2061 | B76: =[1]Summary!B76 -> -558.4 | D76: 2061 | E76: =[1]Summary!E76 -> -65.67 | F76: =[1]Summary!F76 -> 0 | H76: 2061 | I76: =[1]Summary!I76 -> -100.07 | J76: =[1]Summary!J76 -> 0 | L76: 2061 | M76: =[1]Summary!M76 -> -116.41 | N76: =[1]Summary!N76 -> 0 | P76: 2061 | Q76: =[1]Summary!Q76 -> -155.05 | R76: =[1]Summary!R76 -> 0 | T76: 2061 | U76: =[1]Summary!U76 -> -220.4 | V76: =[1]Summary!V76 -> 0 | X76: 2061 | Y76: =[1]Summary!Y76 -> -220.4 | Z76: =[1]Summary!Z76 -> 0 | AB76: 2061 | AC76: =[1]Summary!AC76 -> -222.11 | AD76: =[1]Summary!AD76 -> 0
A77: 2062 | B77: =[1]Summary!B77 -> -536.9 | D77: 2062 | E77: =[1]Summary!E77 -> -63.42 | F77: =[1]Summary!F77 -> 0 | H77: 2062 | I77: =[1]Summary!I77 -> -96.25 | J77: =[1]Summary!J77 -> 0 | L77: 2062 | M77: =[1]Summary!M77 -> -112.31 | N77: =[1]Summary!N77 -> 0 | P77: 2062 | Q77: =[1]Summary!Q77 -> -151.17 | R77: =[1]Summary!R77 -> 0 | T77: 2062 | U77: =[1]Summary!U77 -> -211.88 | V77: =[1]Summary!V77 -> 0 | X77: 2062 | Y77: =[1]Summary!Y77 -> -211.88 | Z77: =[1]Summary!Z77 -> 0 | AB77: 2062 | AC77: =[1]Summary!AC77 -> -214.41 | AD77: =[1]Summary!AD77 -> 0
A78: 2063 | B78: =[1]Summary!B78 -> -14.4 | D78: 2063 | E78: =[1]Summary!E78 -> -19.15 | F78: =[1]Summary!F78 -> 21.38 | H78: 2063 | I78: =[1]Summary!I78 -> -28.92 | J78: =[1]Summary!J78 -> 32.18 | L78: 2063 | M78: =[1]Summary!M78 -> -33.39 | N78: =[1]Summary!N78 -> 36.98 | P78: 2063 | Q78: =[1]Summary!Q78 -> -42.29 | R78: =[1]Summary!R78 -> 44.69 | T78: 2063 | U78: =[1]Summary!U78 -> -45.76 | V78: =[1]Summary!V78 -> 48.13 | X78: 2063 | Y78: =[1]Summary!Y78 -> -45.76 | Z78: =[1]Summary!Z78 -> 48.13 | AB78: 2063 | AC78: =[1]Summary!AC78 -> -46.14 | AD78: =[1]Summary!AD78 -> 48.28
A79: 2064 | B79: =[1]Summary!B79 -> 42 | D79: 2064 | E79: =[1]Summary!E79 -> 0 | F79: =[1]Summary!F79 -> 26.01 | H79: 2064 | I79: =[1]Summary!I79 -> 0 | J79: =[1]Summary!J79 -> 39.29 | L79: 2064 | M79: =[1]Summary!M79 -> 0 | N79: =[1]Summary!N79 -> 45.36 | P79: 2064 | Q79: =[1]Summary!Q79 -> 0 | R79: =[1]Summary!R79 -> 57.45 | T79: 2064 | U79: =[1]Summary!U79 -> 0 | V79: =[1]Summary!V79 -> 62.74 | X79: 2064 | Y79: =[1]Summary!Y79 -> 0 | Z79: =[1]Summary!Z79 -> 62.74 | AB79: 2064 | AC79: =[1]Summary!AC79 -> 0 | AD79: =[1]Summary!AD79 -> 62.68
A80: 2071 | B80: =[1]Summary!B80 -> -536.9 | D80: 2071 | E80: =[1]Summary!E80 -> -63.42 | F80: =[1]Summary!F80 -> 0 | H80: 2071 | I80: =[1]Summary!I80 -> -96.25 | J80: =[1]Summary!J80 -> 0 | L80: 2071 | M80: =[1]Summary!M80 -> -112.31 | N80: =[1]Summary!N80 -> 0 | P80: 2071 | Q80: =[1]Summary!Q80 -> -151.17 | R80: =[1]Summary!R80 -> 0 | T80: 2071 | U80: =[1]Summary!U80 -> -211.88 | V80: =[1]Summary!V80 -> 0 | X80: 2071 | Y80: =[1]Summary!Y80 -> -211.88 | Z80: =[1]Summary!Z80 -> 0 | AB80: 2071 | AC80: =[1]Summary!AC80 -> -214.41 | AD80: =[1]Summary!AD80 -> 0
A81: 2072 | B81: =[1]Summary!B81 -> -491.8 | D81: 2072 | E81: =[1]Summary!E81 -> -58.24 | F81: =[1]Summary!F81 -> 0 | H81: 2072 | I81: =[1]Summary!I81 -> -88.36 | J81: =[1]Summary!J81 -> 0 | L81: 2072 | M81: =[1]Summary!M81 -> -102.85 | N81: =[1]Summary!N81 -> 0 | P81: 2072 | Q81: =[1]Summary!Q81 -> -139.52 | R81: =[1]Summary!R81 -> 0 | T81: 2072 | U81: =[1]Summary!U81 -> -193.94 | V81: =[1]Summary!V81 -> 0 | X81: 2072 | Y81: =[1]Summary!Y81 -> -193.94 | Z81: =[1]Summary!Z81 -> 0 | AB81: 2072 | AC81: =[1]Summary!AC81 -> -195.85 | AD81: =[1]Summary!AD81 -> 0
A82: 2073 | B82: =[1]Summary!B82 -> -36.3 | D82: 2073 | E82: =[1]Summary!E82 -> -18.11 | F82: =[1]Summary!F82 -> 23.23 | H82: 2073 | I82: =[1]Summary!I82 -> -27.43 | J82: =[1]Summary!J82 -> 34.73 | L82: 2073 | M82: =[1]Summary!M82 -> -31.76 | N82: =[1]Summary!N82 -> 39.61 | P82: 2073 | Q82: =[1]Summary!Q82 -> -41.41 | R82: =[1]Summary!R82 -> 43.89 | T82: 2073 | U82: =[1]Summary!U82 -> -47.88 | V82: =[1]Summary!V82 -> 51.09 | X82: 2073 | Y82: =[1]Summary!Y82 -> -47.88 | Z82: =[1]Summary!Z82 -> 51.09 | AB82: 2073 | AC82: =[1]Summary!AC82 -> -49.07 | AD82: =[1]Summary!AD82 -> 45.03
A83: 2074 | B83: =[1]Summary!B83 -> 93.1 | D83: 2074 | E83: =[1]Summary!E83 -> -19.31 | F83: =[1]Summary!F83 -> 27.06 | H83: 2074 | I83: =[1]Summary!I83 -> -28.87 | J83: =[1]Summary!J83 -> 40.98 | L83: 2074 | M83: =[1]Summary!M83 -> -32.93 | N83: =[1]Summary!N83 -> 47.45 | P83: 2074 | Q83: =[1]Summary!Q83 -> -36.48 | R83: =[1]Summary!R83 -> 61.88 | T83: 2074 | U83: =[1]Summary!U83 -> -42.47 | V83: =[1]Summary!V83 -> 72.62 | X83: 2074 | Y83: =[1]Summary!Y83 -> -42.47 | Z83: =[1]Summary!Z83 -> 72.62 | AB83: 2074 | AC83: =[1]Summary!AC83 -> -37.35 | AD83: =[1]Summary!AD83 -> 73.31
A84: 2081 | B84: =[1]Summary!B84 -> -491.8 | D84: 2081 | E84: =[1]Summary!E84 -> -58.24 | F84: =[1]Summary!F84 -> 0 | H84: 2081 | I84: =[1]Summary!I84 -> -88.36 | J84: =[1]Summary!J84 -> 0 | L84: 2081 | M84: =[1]Summary!M84 -> -102.85 | N84: =[1]Summary!N84 -> 0 | P84: 2081 | Q84: =[1]Summary!Q84 -> -139.52 | R84: =[1]Summary!R84 -> 0 | T84: 2081 | U84: =[1]Summary!U84 -> -193.94 | V84: =[1]Summary!V84 -> 0 | X84: 2081 | Y84: =[1]Summary!Y84 -> -193.94 | Z84: =[1]Summary!Z84 -> 0 | AB84: 2081 | AC84: =[1]Summary!AC84 -> -195.85 | AD84: =[1]Summary!AD84 -> 0
A85: 2082 | B85: =[1]Summary!B85 -> -427.7 | D85: 2082 | E85: =[1]Summary!E85 -> -50.7 | F85: =[1]Summary!F85 -> 0 | H85: 2082 | I85: =[1]Summary!I85 -> -77.03 | J85: =[1]Summary!J85 -> 0 | L85: 2082 | M85: =[1]Summary!M85 -> -89.51 | N85: =[1]Summary!N85 -> 0 | P85: 2082 | Q85: =[1]Summary!Q85 -> -121.15 | R85: =[1]Summary!R85 -> 0 | T85: 2082 | U85: =[1]Summary!U85 -> -168.43 | V85: =[1]Summary!V85 -> 0 | X85: 2082 | Y85: =[1]Summary!Y85 -> -168.43 | Z85: =[1]Summary!Z85 -> 0 | AB85: 2082 | AC85: =[1]Summary!AC85 -> -173.82 | AD85: =[1]Summary!AD85 -> 0
A86: 2083 | B86: =[1]Summary!B86 -> -75.3 | D86: 2083 | E86: =[1]Summary!E86 -> -18.68 | F86: =[1]Summary!F86 -> 22.85 | H86: 2083 | I86: =[1]Summary!I86 -> -28.34 | J86: =[1]Summary!J86 -> 33.68 | L86: 2083 | M86: =[1]Summary!M86 -> -32.88 | N86: =[1]Summary!N86 -> 37.8 | P86: 2083 | Q86: =[1]Summary!Q86 -> -43.75 | R86: =[1]Summary!R86 -> 34.95 | T86: 2083 | U86: =[1]Summary!U86 -> -54.38 | V86: =[1]Summary!V86 -> 47.78 | X86: 2083 | Y86: =[1]Summary!Y86 -> -54.38 | Z86: =[1]Summary!Z86 -> 47.78 | AB86: 2083 | AC86: =[1]Summary!AC86 -> -55 | AD86: =[1]Summary!AD86 -> 35.29
A87: 2084 | B87: =[1]Summary!B87 -> 123.9 | D87: 2084 | E87: =[1]Summary!E87 -> -19.19 | F87: =[1]Summary!F87 -> 25.78 | H87: 2084 | I87: =[1]Summary!I87 -> -28.3 | J87: =[1]Summary!J87 -> 39.12 | L87: 2084 | M87: =[1]Summary!M87 -> -31.75 | N87: =[1]Summary!N87 -> 45.38 | P87: 2084 | Q87: =[1]Summary!Q87 -> -28.43 | R87: =[1]Summary!R87 -> 60.38 | T87: 2084 | U87: =[1]Summary!U87 -> -40.14 | V87: =[1]Summary!V87 -> 75.92 | X87: 2084 | Y87: =[1]Summary!Y87 -> -40.14 | Z87: =[1]Summary!Z87 -> 75.92 | AB87: 2084 | AC87: =[1]Summary!AC87 -> -28.65 | AD87: =[1]Summary!AD87 -> 75.91
A88: 2091 | B88: =[1]Summary!B88 -> -427.7 | D88: 2091 | E88: =[1]Summary!E88 -> -50.7 | F88: =[1]Summary!F88 -> 0 | H88: 2091 | I88: =[1]Summary!I88 -> -77.03 | J88: =[1]Summary!J88 -> 0 | L88: 2091 | M88: =[1]Summary!M88 -> -89.51 | N88: =[1]Summary!N88 -> 0 | P88: 2091 | Q88: =[1]Summary!Q88 -> -121.15 | R88: =[1]Summary!R88 -> 0 | T88: 2091 | U88: =[1]Summary!U88 -> -168.43 | V88: =[1]Summary!V88 -> 0 | X88: 2091 | Y88: =[1]Summary!Y88 -> -168.43 | Z88: =[1]Summary!Z88 -> 0 | AB88: 2091 | AC88: =[1]Summary!AC88 -> -173.82 | AD88: =[1]Summary!AD88 -> 0
A89: 2092 | B89: =[1]Summary!B89 -> -435.8 | D89: 2092 | E89: =[1]Summary!E89 -> -51.33 | F89: =[1]Summary!F89 -> 0 | H89: 2092 | I89: =[1]Summary!I89 -> -78.06 | J89: =[1]Summary!J89 -> 0 | L89: 2092 | M89: =[1]Summary!M89 -> -90.81 | N89: =[1]Summary!N89 -> 0 | P89: 2092 | Q89: =[1]Summary!Q89 -> -123.97 | R89: =[1]Summary!R89 -> 0 | T89: 2092 | U89: =[1]Summary!U89 -> -184.08 | V89: =[1]Summary!V89 -> 0 | X89: 2092 | Y89: =[1]Summary!Y89 -> -184.08 | Z89: =[1]Summary!Z89 -> 0 | AB89: 2092 | AC89: =[1]Summary!AC89 -> -181.15 | AD89: =[1]Summary!AD89 -> 0
A90: 2093 | B90: =[1]Summary!B90 -> 69.7 | D90: 2093 | E90: =[1]Summary!E90 -> 0 | F90: =[1]Summary!F90 -> 42.45 | H90: 2093 | I90: =[1]Summary!I90 -> 0 | J90: =[1]Summary!J90 -> 62.83 | L90: 2093 | M90: =[1]Summary!M90 -> 0 | N90: =[1]Summary!N90 -> 69.89 | P90: 2093 | Q90: =[1]Summary!Q90 -> 0 | R90: =[1]Summary!R90 -> 61.26 | T90: 2093 | U90: =[1]Summary!U90 -> 0 | V90: =[1]Summary!V90 -> 80.99 | X90: 2093 | Y90: =[1]Summary!Y90 -> 0 | Z90: =[1]Summary!Z90 -> 80.99 | AB90: 2093 | AC90: =[1]Summary!AC90 -> 0 | AD90: =[1]Summary!AD90 -> 61.23
A91: 2094 | B91: =[1]Summary!B91 -> 184.6 | D91: 2094 | E91: =[1]Summary!E91 -> -14.61 | F91: =[1]Summary!F91 -> 28.34 | H91: 2094 | I91: =[1]Summary!I91 -> -20.55 | J91: =[1]Summary!J91 -> 43.06 | L91: 2094 | M91: =[1]Summary!M91 -> -21.71 | N91: =[1]Summary!N91 -> 50.03 | P91: 2094 | Q91: =[1]Summary!Q91 -> -17.58 | R91: =[1]Summary!R91 -> 67.54 | T91: 2094 | U91: =[1]Summary!U91 -> -25.9 | V91: =[1]Summary!V91 -> 91.53 | X91: 2094 | Y91: =[1]Summary!Y91 -> -25.9 | Z91: =[1]Summary!Z91 -> 91.53 | AB91: 2094 | AC91: =[1]Summary!AC91 -> -17.44 | AD91: =[1]Summary!AD91 -> 90.99

Sheet Info Tables
A1: Table | B1: 1
A2: Inventory Load Rating
A3: Operating Load Rating
A5: Table | B5: 2
A6: 2F1
A7: 3F1
A8: 4F1
A9: 5C1
A10: Inventory
A13: Note: To add more joints or members, just insert lines as needed. Excel will automatically include the new lines.
A16: Table | B16: 3
A17: Joints | C17: Dimensions from Project Plans | L17: Dimensions from Field Measurements
A18: ID | B18: Joint | C18: No. of Member End Gusset Plates | D18: Gusset Plate Thickness on Each Side (1-PLT Only) (in) | E18: Total Gusset Plate Thickness at Joint Both Sides (in) | F18: Gusset Plate Gross Horizontal Width (in) | G18: Gusset Plate Gross Vertical Depth/Height (in) | H18: Gusset Plate Net Horizontal Width (in) | I18: Gusset Plate Net Vertical Depth/Height (in) | J18: Max Unsupported Edge Distance Inner (in) | K18: Max Unsupported Edge Distance Outer (in) | L18: Plate Thickness Loss (Inner) | M18: Plate Thickness Loss (Outer) | N18: Remaining Plate Thickness (Inner) | O18: Remaining Plate Thickness (Outer) | P18: % Remaining Plate Thickness For Global Horizontal Shear (Inner Plate) | Q18: % Remaining Plate Thickness For Global Horizontal Shear (Outer Plate) | R18: % Remaining Plate Thickness For Global Vertical Shear (Inner Plate) | S18: % Remaining Plate Thickness For Global Vertical Shear (Outer Plate) | T18: % Remaining Plate Thickness For Maximum Edge Stiffness (Inner Plate) | U18: % Remaining Plate Thickness For Maximum Edge Stiffness (Outer Plate)
A19: 100 | B19: L0 | C19: 2 | D19: 0.75 | E19: =C19*D19 -> 1.5 | F19: 56 | G19: 73 | H19: =F19-14*1 -> 42 | I19: =G19-9*1 -> 64 | J19: 28.126 | K19: 28.126 | N19: =D19-L19 -> 0.75 | O19: =D19-M19 -> 0.75 | P19: 1 | Q19: 1 | R19: 1 | S19: 1 | T19: 1 | U19: 1 | W19: 1
A20: 101 | B20: L1 | C20: 2 | D20: 0.5625 | E20: =C20*D20 -> 1.125 | F20: 14.742 | G20: 42.75 | H20: =F20-4*1 -> 10.742 | I20: =G20-10*1 -> 32.75 | J20: 25 | K20: 25 | N20: =D20-L20 -> 0.5625 | O20: =D20-M20 -> 0.5625 | P20: 1 | Q20: 1 | R20: 1 | S20: 1 | T20: 1 | U20: 1
A21: 102 | B21: L2 | C21: 2 | D21: 0.5625 | E21: 1.125 | F21: 61.75 | G21: 47.25 | H21: =F21-18*1 -> 43.75 | I21: =G21-7*1 -> 40.25 | J21: 30.603 | K21: 30.603 | N21: 0.5625 | O21: 0.5625 | P21: 1 | Q21: 1 | R21: 1 | S21: 1 | T21: 1 | U21: 1
A22: 103 | B22: L3 | C22: 2 | D22: 0.5625 | E22: 1.125 | F22: 60.75 | G22: 43 | H22: =F22-19*1 -> 41.75 | I22: =G22-10*1 -> 33 | J22: 29.855 | K22: 29.855 | N22: 0.5625 | O22: 0.5625 | P22: 1 | Q22: 1 | R22: 1 | S22: 1 | T22: 1 | U22: 1
A23: 104 | B23: L4 | C23: 2 | D23: 0.5625 | E23: 1.125 | F23: 66.25 | G23: 40.254 | H23: =F23-20*1 -> 46.25 | I23: =G23-9*1 -> 31.254 | J23: 32.613 | K23: 32.613 | N23: 0.5625 | O23: 0.5625 | P23: 1 | Q23: 1 | R23: 1 | S23: 1 | T23: 1 | U23: 1
A24: 105 | B24: L5 | C24: 2 | D24: 0.5625 | E24: 1.125 | F24: 37.251 | G24: 39.682 | H24: =F24-10*1 -> 27.251 | I24: =G24-9*1 -> 30.682 | J24: 17.607 | K24: 17.607 | N24: 0.5625 | O24: 0.5625 | P24: 1 | Q24: 1 | R24: 1 | S24: 1 | T24: 1 | U24: 1
A25: 106 | B25: L6 | C25: 2 | D25: 0.5625 | E25: 1.125 | F25: 66.25 | G25: 40.254 | H25: =F25-20*1 -> 46.25 | I25: =G25-9*1 -> 31.254 | J25: 32.613 | K25: 32.613 | N25: 0.5625 | O25: 0.5625 | P25: 1 | Q25: 1 | R25: 1 | S25: 1 | T25: 1 | U25: 1
A26: 107 | B26: L7 | C26: 2 | D26: 0.5625 | E26: 1.125 | F26: 60.75 | G26: 43 | H26: =F26-19*1 -> 41.75 | I26: =G26-10*1 -> 33 | J26: 29.855 | K26: 29.855 | N26: 0.5625 | O26: 0.5625 | P26: 1 | Q26: 1 | R26: 1 | S26: 1 | T26: 1 | U26: 1
A27: 108 | B27: L8 | C27: 2 | D27: 0.5625 | E27: 1.125 | F27: 61.75 | G27: 47.25 | H27: =F27-18*1 -> 43.75 | I27: =G27-7*1 -> 40.25 | J27: 30.603 | K27: 30.603 | N27: 0.5625 | O27: 0.5625 | P27: 1 | Q27: 1 | R27: 1 | S27: 1 | T27: 1 | U27: 1
A28: 109 | B28: L9 | C28: 2 | D28: 0.5625 | E28: 1.125 | F28: 14.742 | G28: 42.75 | H28: =F28-4*1 -> 10.742 | I28: =G28-10*1 -> 32.75 | J28: 25 | K28: 25 | N28: 0.5625 | O28: 0.5625 | P28: 1 | Q28: 1 | R28: 1 | S28: 1 | T28: 1 | U28: 1
A29: 110 | B29: L10 | C29: 2 | D29: 0.75 | E29: 1.5 | F29: 56 | G29: 73 | H29: =F29-14*1 -> 42 | I29: =G29-22*1 -> 51 | J29: 28.126 | K29: 28.126 | N29: 0.75 | O29: 0.75 | P29: 1 | Q29: 1 | R29: 1 | S29: 1 | T29: 1 | U29: 1
A30: 201 | B30: U1 | C30: 2 | D30: 0.5625 | E30: 1.125 | F30: 55.212 | G30: 46.1208 | H30: =F30-10*1 -> 45.212 | I30: =G30-8*1 -> 38.1208 | J30: 31.297 | K30: 31.297 | N30: 0.5625 | O30: 0.5625 | P30: 1.39 | Q30: 1.39 | R30: 1 | S30: 1 | T30: 1 | U30: 1
A31: 202 | B31: U2 | C31: 2 | D31: 0.5625 | E31: 1.125 | F31: 41.784 | G31: 43.008 | H31: =F31-8*1 -> 33.784 | I31: =G31-7*1 -> 36.008 | J31: 24.376 | K31: 24.376 | N31: 0.5625 | O31: 0.5625 | P31: 1 | Q31: 1 | R31: 1 | S31: 1 | T31: 1 | U31: 1
A32: 203 | B32: U3 | C32: 2 | D32: 0.5625 | E32: 1.125 | F32: 44.272 | G32: 39.183 | H32: =F32-8*1 -> 36.272 | I32: =G32-10*1 -> 29.183 | J32: 23.901 | K32: 23.901 | N32: 0.5625 | O32: 0.5625 | P32: 1 | Q32: 1 | R32: 1 | S32: 1 | T32: 1 | U32: 1
A33: 204 | B33: U4 | C33: 2 | D33: 0.5 | E33: 1 | F33: 32.594 | G33: 34.035 | H33: =F33-9*1 -> 23.594 | I33: =G33-9*1 -> 25.035 | J33: 18.074 | K33: 18.074 | N33: 0.5 | O33: 0.5 | P33: 1 | Q33: 1 | R33: 1 | S33: 1 | T33: 1 | U33: 1
A34: 205 | B34: U5 | C34: 2 | D34: 0.5 | E34: 1 | F34: 37.25 | G34: 33.835 | H34: =F34-10*1 -> 27.25 | I34: =G34-8*1 -> 25.835 | J34: 15.607 | K34: 15.607 | N34: 0.5 | O34: =D34-M34 -> 0.5 | P34: 1 | Q34: 1 | R34: 1 | S34: 1 | T34: 1 | U34: 1
A35: 206 | B35: U6 | C35: 2 | D35: 0.5 | E35: 1 | F35: 32.594 | G35: 34.035 | H35: =F35-9*1 -> 23.594 | I35: =G35-9*1 -> 25.035 | J35: 18.074 | K35: 18.074 | N35: =D35-L35 -> 0.5 | O35: =D35-M35 -> 0.5 | P35: 1 | Q35: 1 | R35: 1 | S35: 1 | T35: 1 | U35: 1
A36: 207 | B36: U7 | C36: 2 | D36: 0.5625 | E36: 1.125 | F36: 44.272 | G36: 39.183 | H36: =F36-8*1 -> 36.272 | I36: =G36-10*1 -> 29.183 | J36: 23.901 | K36: 23.901 | N36: 0.5625 | O36: 0.5625 | P36: 1 | Q36: 1 | R36: 1 | S36: 1 | T36: 1 | U36: 1
A37: 208 | B37: U8 | C37: 2 | D37: 0.5625 | E37: 1.125 | F37: 41.784 | G37: 43.008 | H37: =F37-8*1 -> 33.784 | I37: =G37-7*1 -> 36.008 | J37: 24.376 | K37: 24.376 | N37: 0.5625 | O37: 0.5625 | P37: 1 | Q37: 1 | R37: 1 | S37: 1 | T37: 1 | U37: 1
A38: 209 | B38: U9 | C38: 2 | D38: 0.5625 | E38: 1.125 | F38: 55.212 | G38: 46.1208 | H38: =F38-10*1 -> 45.212 | I38: =G38-8*1 -> 38.1208 | J38: 31.297 | K38: 31.297 | N38: 0.5625 | O38: 0.5625 | P38: 1.39 | Q38: 1.39 | R38: 1 | S38: 1 | T38: 1 | U38: 1
N39: 0 | O39: 0 | P39: 1 | Q39: 1 | R39: 1 | S39: 1 | T39: 1 | U39: 1
N40: 0 | O40: 0 | P40: 1 | Q40: 1 | R40: 1 | S40: 1 | T40: 1 | U40: 1
N41: 0 | O41: 0 | P41: 1 | Q41: 1 | R41: 1 | S41: 1 | T41: 1 | U41: 1
N42: 0 | O42: 0 | P42: 1 | Q42: 1 | R42: 1 | S42: 1 | T42: 1 | U42: 1
N43: 0 | O43: 0 | P43: 1 | Q43: 1 | R43: 1 | S43: 1 | T43: 1 | U43: 1
N44: 0 | O44: 0 | P44: 1 | Q44: 1 | R44: 1 | S44: 1 | T44: 1 | U44: 1
N45: 0 | O45: 0 | P45: 1 | Q45: 1 | R45: 1 | S45: 1 | T45: 1 | U45: 1
N46: 0 | O46: 0 | P46: 1 | Q46: 1 | R46: 1 | S46: 1 | T46: 1 | U46: 1
N47: 0 | O47: 0 | P47: 1 | Q47: 1 | R47: 1 | S47: 1 | T47: 1 | U47: 1
N48: 0 | O48: 0 | P48: 1 | Q48: 1 | R48: 1 | S48: 1 | T48: 1 | U48: 1
N49: 0 | O49: 0 | P49: 1 | Q49: 1 | R49: 1 | S49: 1 | T49: 1 | U49: 1
N50: 0 | O50: 0 | P50: 1 | Q50: 1 | R50: 1 | S50: 1 | T50: 1 | U50: 1
N51: 0 | O51: 0 | P51: 1 | Q51: 1 | R51: 1 | S51: 1 | T51: 1 | U51: 1
N52: 0 | O52: 0 | P52: 1 | Q52: 1 | R52: 1 | S52: 1 | T52: 1 | U52: 1
N53: 0 | O53: 0 | P53: 1 | Q53: 1 | R53: 1 | S53: 1 | T53: 1 | U53: 1
N54: 0 | O54: 0 | P54: 1 | Q54: 1 | R54: 1 | S54: 1 | T54: 1 | U54: 1
N55: 0 | O55: 0 | P55: 1 | Q55: 1 | R55: 1 | S55: 1 | T55: 1 | U55: 1
N56: 0 | O56: 0 | P56: 1 | Q56: 1 | R56: 1 | S56: 1 | T56: 1 | U56: 1
N57: 0 | O57: 0 | P57: 1 | Q57: 1 | R57: 1 | S57: 1 | T57: 1 | U57: 1
N58: 0 | O58: 0 | P58: 1 | Q58: 1 | R58: 1 | S58: 1 | T58: 1 | U58: 1
A67: Table | B67: 4
A68: Member Incidences | G68: Put "None" if member nonexistent
A69: Joint | B69: Chord (LT) | C69: Chord (RT) | D69: Diagonal (LT) | E69: Diagonal (RT) | F69: Vertical
A70: 100 | B70: None | C70: 1002 | D70: None | E70: 1001 | F70: None
A71: 101 | B71: 1011 | C71: 1013 | D71: None | E71: None | F71: 1012
A72: 102 | B72: 1021 | C72: 1024 | D72: 1022 | E72: None | F72: 1023
A73: 103 | B73: 1031 | C73: 1034 | D73: 1032 | E73: None | F73: 1033
A74: 104 | B74: 1041 | C74: 1045 | D74: 1042 | E74: 1044 | F74: 1043
A75: 105 | B75: 1051 | C75: 1055 | D75: 1052 | E75: 1054 | F75: 1053
A76: 106 | B76: 1061 | C76: 1065 | D76: 1062 | E76: 1064 | F76: 1063
A77: 107 | B77: 1071 | C77: 1074 | D77: None | E77: 1073 | F77: 1072
A78: 108 | B78: 1081 | C78: 1084 | D78: None | E78: 1083 | F78: 1082
A79: 109 | B79: 1091 | C79: 1093 | D79: None | E79: None | F79: 1092
A80: 110 | B80: 1101 | C80: None | D80: 1102 | E80: None | F80: None
A81: 201 | B81: None | C81: 2012 | D81: 2011 | E81: 2013 | F81: 2014
A82: 202 | B82: 2021 | C82: 2022 | D82: None | E82: 2023 | F82: 2024
A83: 203 | B83: 2031 | C83: 2032 | D83: None | E83: 2033 | F83: 2034
A84: 204 | B84: 2041 | C84: 2042 | D84: None | E84: 2043 | F84: 2044
A85: 205 | B85: 2051 | C85: 2052 | D85: 2055 | E85: 2053 | F85: 2054
A86: 206 | B86: 2061 | C86: 2062 | D86: 2064 | E86: None | F86: 2063
A87: 207 | B87: 2071 | C87: 2072 | D87: 2074 | E87: None | F87: 2073
A88: 208 | B88: 2081 | C88: 2082 | D88: 2084 | E88: None | F88: 2083
A89: 209 | B89: 2091 | C89: None | D89: 2094 | E89: 2092 | F89: 2093
A116: Table | B116: 5
A117: Member Ends
A118: ID | B118: Member | C118: Angle with Horizontal Measured CCW | D118: Base Metal Plate Thickness Per Side (in) | E118: No. of Sides | F118: Total Base Metal Plate Thickness At Member End (in) | G118: % Remaining Plate Thickness For Tensile Area (Inner Plate) | H118: % Remaining Plate Thickness For Whitmore Area (Inner Plate) | I118: % Remaining Plate Thickness For Shear Area (Inner Plate) | J118: % Remaining Plate Thickness For Rivet Count (Inner Plate) | K118: % Remaining Plate Thickness For Tensile Area (Outer Plate) | L118: % Remaining Plate Thickness For Whitmore Area (Outer Plate) | M118: % Remaining Plate Thickness For Shear Area (Outer Plate) | N118: % Remaining Plate Thickness For Rivet Count (Outer Plate)
A119: 1001 | B119: U1 L0 | D119: 0.6 | E119: 2 | F119: =D119*E119 -> 1.2 | G119: 1 | H119: 1 | I119: 1 | J119: 1 | K119: 1 | L119: 1 | M119: 1 | N119: 1
A120: 1002 | B120: L0 L1 | D120: 0.8125 | E120: 2 | F120: =D120*E120 -> 1.625 | G120: 1 | H120: 1 | I120: 1 | J120: 1 | K120: 1 | L120: 1 | M120: 1 | N120: 1
A121: 1011 | B121: L0 L1 | D121: 0.8125 | E121: 2 | F121: 1.625 | G121: 1 | H121: 1 | I121: 1 | J121: 1 | K121: 1 | L121: 1 | M121: 1 | N121: 1
A122: 1012 | B122: U1 L1 | D122: =0.516+0.125 -> 0.641 | E122: 2 | F122: 1.282 | G122: 1 | H122: 1 | I122: 1 | J122: 1 | K122: 1 | L122: 1 | M122: 1 | N122: 1
A123: 1013 | B123: L1 L2 | D123: 0.8125 | E123: 2 | F123: 1.625 | G123: 1 | H123: 1 | I123: 1 | J123: 1 | K123: 1 | L123: 1 | M123: 1 | N123: 1
A124: 1021 | B124: L1 L2 | D124: =13/16+7/16 -> 1.25 | E124: 2 | F124: 2.5 | G124: 1.78 | H124: 1 | I124: 1.7778 | J124: 1 | K124: 1.78 | L124: 1 | M124: 1.7778 | N124: 1
A125: 1022 | B125: U1 L2 | D125: 0.606 | E125: 2 | F125: 1.212 | G125: 1 | H125: 1 | I125: 1 | J125: 1 | K125: 1 | L125: 1 | M125: 1 | N125: 1
A126: 1023 | B126: U2 L2 | D126: 0.606 | E126: 2 | F126: 1.212 | G126: 1 | H126: 1 | I126: 1 | J126: 1 | K126: 1 | L126: 1 | M126: 1 | N126: 1
A127: 1024 | B127: L2 L3 | D127: =0.75+7/16 -> 1.1875 | E127: 2 | F127: 2.375 | G127: 1.67 | H127: 1 | I127: 1.6667 | J127: 1 | K127: 1.67 | L127: 1 | M127: 1.6667 | N127: 1
A128: 1031 | B128: L2 L3 | D128: =0.75+3/8+0.25+3/8 -> 1.75 | E128: 2 | F128: 3.5 | G128: 2.33 | H128: 2.03 | I128: 2.33 | J128: 1 | K128: 2.33 | L128: 2.03 | M128: 2.33 | N128: 1
A129: 1032 | B129: U2 L3 | D129: 0.576 | E129: 2 | F129: 1.152 | G129: 1 | H129: 1 | I129: 1 | J129: 1 | K129: 1 | L129: 1 | M129: 1 | N129: 1
A130: 1033 | B130: U3 L3 | D130: =0.516+0.125 -> 0.641 | E130: 2 | F130: 1.282 | G130: 1 | H130: 1 | I130: 1 | J130: 1 | K130: 1 | L130: 1 | M130: 1 | N130: 1
A131: 1034 | B131: L3 L4 | D131: =0.75+3/8+0.25+3/8 -> 1.75 | E131: 2 | F131: 3.5 | G131: 2.33 | H131: 1 | I131: 2.33 | J131: 1 | K131: 2.33 | L131: 1 | M131: 2.33 | N131: 1
A132: 1041 | B132: L3 L4 | D132: =0.75+5/8+1/8+0.5 -> 2 | E132: 2 | F132: 4 | G132: 3 | H132: 2.52 | I132: 3 | J132: 1 | K132: 3 | L132: 2.52 | M132: 3 | N132: 1
A133: 1042 | B133: U3 L4 | D133: =0.576+0.125 -> 0.701 | E133: 2 | F133: 1.402 | G133: 1 | H133: 1 | I133: 1 | J133: 1 | K133: 1 | L133: 1 | M133: 1 | N133: 1
A134: 1043 | B134: U4 L4 | D134: =0.516+0.125 -> 0.641 | E134: 2 | F134: 1.282 | G134: 1 | H134: 1 | I134: 1 | J134: 1 | K134: 1 | L134: 1 | M134: 1 | N134: 1
A135: 1044 | B135: U5 L4 | D135: 0.54 | E135: 2 | F135: 1.08 | G135: 1 | H135: 1 | I135: 1 | J135: 1 | K135: 1 | L135: 1 | M135: 1 | N135: 1
A136: 1045 | B136: L4 L5 | D136: =0.75+5/8+1/8+0.5 -> 2 | E136: 2 | F136: 4 | G136: 3 | H136: 1 | I136: 3 | J136: 1 | K136: 3 | L136: 1 | M136: 3 | N136: 1
A137: 1051 | B137: L4 L5 | D137: =0.75+0.75 -> 1.5 | E137: 2 | F137: 3 | G137: 1 | H137: 1 | I137: 1 | J137: 1 | K137: 1 | L137: 1 | M137: 1 | N137: 1
A138: 1052 | B138: U4 L5 | D138: =0.54 -> 0.54 | E138: 2 | F138: 1.08 | G138: 1 | H138: 1 | I138: 1 | J138: 1 | K138: 1 | L138: 1 | M138: 1 | N138: 1
A139: 1053 | B139: U5 L5 | D139: =0.516+0.125 -> 0.641 | E139: 2 | F139: 1.282 | G139: 1 | H139: 1 | I139: 1 | J139: 1 | K139: 1 | L139: 1 | M139: 1 | N139: 1
A140: 1054 | B140: U6 L5 | D140: 0.54 | E140: 2 | F140: 1.08 | G140: 1 | H140: 1 | I140: 1 | J140: 1 | K140: 1 | L140: 1 | M140: 1 | N140: 1
A141: 1055 | B141: L5 L6 | D141: =0.75+0.75 -> 1.5 | E141: 2 | F141: 3 | G141: 1 | H141: 1 | I141: 1 | J141: 1 | K141: 1 | L141: 1 | M141: 1 | N141: 1
A142: 1061 | B142: L5 L6 | D142: =0.75+5/8+1/8+0.5 -> 2 | E142: 2 | F142: 4 | G142: 3 | H142: 1 | I142: 3 | J142: 1 | K142: 3 | L142: 1 | M142: 3 | N142: 1
A143: 1062 | B143: U5 L6 | D143: 0.54 | E143: 2 | F143: 1.08 | G143: 1 | H143: 1 | I143: 1 | J143: 1 | K143: 1 | L143: 1 | M143: 1 | N143: 1
A144: 1063 | B144: U6 L6 | D144: =0.516+0.125 -> 0.641 | E144: 2 | F144: 1.282 | G144: 1 | H144: 1 | I144: 1 | J144: 1 | K144: 1 | L144: 1 | M144: 1 | N144: 1
A145: 1064 | B145: U7 L6 | D145: =0.576+0.125 -> 0.701 | E145: 2 | F145: 1.402 | G145: 1 | H145: 1 | I145: 1 | J145: 1 | K145: 1 | L145: 1 | M145: 1 | N145: 1
A146: 1065 | B146: L6 L7 | D146: =0.75+5/8+1/8+0.5 -> 2 | E146: 2 | F146: 4 | G146: 3 | H146: 2.52 | I146: 3 | J146: 1 | K146: 3 | L146: 2.52 | M146: 3 | N146: 1
A147: 1071 | B147: L6 L7 | D147: =0.75+3/8+0.25+3/8 -> 1.75 | E147: 2 | F147: 3.5 | G147: 2.33 | H147: 1 | I147: 2.33 | J147: 1 | K147: 2.33 | L147: 1 | M147: 2.33 | N147: 1
A148: 1072 | B148: U7 L7 | D148: =0.516+0.125 -> 0.641 | E148: 2 | F148: 1.282 | G148: 1 | H148: 1 | I148: 1 | J148: 1 | K148: 1 | L148: 1 | M148: 1 | N148: 1
A149: 1073 | B149: U8 L7 | D149: 0.576 | E149: 2 | F149: 1.152 | G149: 1 | H149: 1 | I149: 1 | J149: 1 | K149: 1 | L149: 1 | M149: 1 | N149: 1
A150: 1074 | B150: L7 L8 | D150: =0.75+3/8+0.25+3/8 -> 1.75 | E150: 2 | F150: 3.5 | G150: 2.33 | H150: 2.03 | I150: 2.33 | J150: 1 | K150: 2.33 | L150: 2.03 | M150: 2.33 | N150: 1
A151: 1081 | B151: L7 L8 | D151: =0.75+7/16 -> 1.1875 | E151: 2 | F151: 2.375 | G151: 1.67 | H151: 1 | I151: 1.6667 | J151: 1 | K151: 1.67 | L151: 1 | M151: 1.6667 | N151: 1
A152: 1082 | B152: U8 L8 | D152: 0.606 | E152: 2 | F152: 1.212 | G152: 1 | H152: 1 | I152: 1 | J152: 1 | K152: 1 | L152: 1 | M152: 1 | N152: 1
A153: 1083 | B153: U9 L8 | D153: 0.606 | E153: 2 | F153: 1.212 | G153: 1 | H153: 1 | I153: 1 | J153: 1 | K153: 1 | L153: 1 | M153: 1 | N153: 1
A154: 1084 | B154: L8 L9 | D154: =13/16+7/16 -> 1.25 | E154: 2 | F154: 2.5 | G154: 1.78 | H154: 1 | I154: 1.7778 | J154: 1 | K154: 1.78 | L154: 1 | M154: 1.7778 | N154: 1
A155: 1091 | B155: L8 L9 | D155: 0.8125 | E155: 2 | F155: 1.625 | G155: 1 | H155: 1 | I155: 1 | J155: 1 | K155: 1 | L155: 1 | M155: 1 | N155: 1
A156: 1092 | B156: U9 L9 | D156: =0.516+0.125 -> 0.641 | E156: 2 | F156: 1.282 | G156: 1 | H156: 1 | I156: 1 | J156: 1 | K156: 1 | L156: 1 | M156: 1 | N156: 1
A157: 1093 | B157: L9 L10 | D157: 0.8125 | E157: 2 | F157: 1.625 | G157: 1 | H157: 1 | I157: 1 | J157: 1 | K157: 1 | L157: 1 | M157: 1 | N157: 1
A158: 1101 | B158: L9 L10 | D158: 0.8125 | E158: 2 | F158: 1.625 | G158: 1 | H158: 1 | I158: 1 | J158: 1 | K158: 1 | L158: 1 | M158: 1 | N158: 1
A159: 1102 | B159: U9 L10 | D159: 0.6 | E159: 2 | F159: 1.2 | G159: 1 | H159: 1 | I159: 1 | J159: 1 | K159: 1 | L159: 1 | M159: 1 | N159: 1
A160: 2011 | B160: U1 L0 | D160: =0.6+3/8 -> 0.975 | E160: 2 | F160: 1.95 | G160: 1 | H160: 1 | I160: 1 | J160: 1 | K160: 1 | L160: 1 | M160: 1 | N160: 1
A161: 2012 | B161: U1 U2 | D161: =0.7+5/16+7/16 -> 1.45 | E161: 2 | F161: 2.9 | G161: 1 | H161: 1 | I161: 1 | J161: 1 | K161: 1 | L161: 1 | M161: 1 | N161: 1
A162: 2013 | B162: U1 L2 | D162: 0.606 | E162: 2 | F162: 1.212 | G162: 1 | H162: 1 | I162: 1 | J162: 1 | K162: 1 | L162: 1 | M162: 1 | N162: 1
A163: 2014 | B163: U1 L1 | D163: =0.516+0.125 -> 0.641 | E163: 2 | F163: 1.282 | G163: 1 | H163: 1 | I163: 1 | J163: 1 | K163: 1 | L163: 1 | M163: 1 | N163: 1
A164: 2021 | B164: U1 U2 | D164: =0.7+3/16+3/8 -> 1.2625 | E164: 2 | F164: 2.525 | G164: 1 | H164: 1 | I164: 1 | J164: 1 | K164: 1 | L164: 1 | M164: 1 | N164: 1
A165: 2022 | B165: U2 U3 | D165: =0.5+3/8+3/8 -> 1.25 | E165: 2 | F165: 2.5 | G165: 1 | H165: 1 | I165: 1 | J165: 1 | K165: 1 | L165: 1 | M165: 1 | N165: 1
A166: 2023 | B166: U2 L3 | D166: 0.576 | E166: 2 | F166: 1.152 | G166: 1 | H166: 1 | I166: 1 | J166: 1 | K166: 1 | L166: 1 | M166: 1 | N166: 1
A167: 2024 | B167: U2 L2 | D167: 0.606 | E167: 2 | F167: 1.212 | G167: 1 | H167: 1 | I167: 1 | J167: 1 | K167: 1 | L167: 1 | M167: 1 | N167: 1
A168: 2031 | B168: U2 U3 | D168: =0.5+3/8+3/8 -> 1.25 | E168: 2 | F168: 2.5 | G168: 1 | H168: 1 | I168: 1 | J168: 1 | K168: 1 | L168: 1 | M168: 1 | N168: 1
A169: 2032 | B169: U3 U4 | D169: =0.6+3/8+3/8 -> 1.35 | E169: 2 | F169: 2.7 | G169: 1 | H169: 1 | I169: 1 | J169: 1 | K169: 1 | L169: 1 | M169: 1 | N169: 1
A170: 2033 | B170: U3 L4 | D170: 0.576 | E170: 2 | F170: 1.152 | G170: 1 | H170: 1 | I170: 1 | J170: 1 | K170: 1 | L170: 1 | M170: 1 | N170: 1
A171: 2034 | B171: U3 L3 | D171: =0.516+0.125 -> 0.641 | E171: 2 | F171: 1.282 | G171: 1 | H171: 1 | I171: 1 | J171: 1 | K171: 1 | L171: 1 | M171: 1 | N171: 1
A172: 2041 | B172: U3 U4 | D172: =0.6+3/8+3/8 -> 1.35 | E172: 2 | F172: 2.7 | G172: 1 | H172: 1 | I172: 1 | J172: 1 | K172: 1 | L172: 1 | M172: 1 | N172: 1
A173: 2042 | B173: U4 U5 | D173: =0.6+7/16+3/8 -> 1.4125 | E173: 2 | F173: 2.825 | G173: 1 | H173: 1 | I173: 1 | J173: 1 | K173: 1 | L173: 1 | M173: 1 | N173: 1
A174: 2043 | B174: U4 L5 | D174: 0.54 | E174: 2 | F174: 1.08 | G174: 1 | H174: 1 | I174: 1 | J174: 1 | K174: 1 | L174: 1 | M174: 1 | N174: 1
A175: 2044 | B175: U4 L4 | D175: =0.516+0.125 -> 0.641 | E175: 2 | F175: 1.282 | G175: 1 | H175: 1 | I175: 1 | J175: 1 | K175: 1 | L175: 1 | M175: 1 | N175: 1
A176: 2051 | B176: U4 U5 | D176: =0.6+7/16 -> 1.0375 | E176: 2 | F176: 2.075 | G176: 1 | H176: 1 | I176: 1 | J176: 1 | K176: 1 | L176: 1 | M176: 1 | N176: 1
A177: 2052 | B177: U5 U6 | D177: =0.6+7/16 -> 1.0375 | E177: 2 | F177: 2.075 | G177: 1 | H177: 1 | I177: 1 | J177: 1 | K177: 1 | L177: 1 | M177: 1 | N177: 1
A178: 2053 | B178: U5 L6 | D178: 0.54 | E178: 2 | F178: 1.08 | G178: 1 | H178: 1 | I178: 1 | J178: 1 | K178: 1 | L178: 1 | M178: 1 | N178: 1
A179: 2054 | B179: U5 L5 | D179: =0.516+0.125 -> 0.641 | E179: 2 | F179: 1.282 | G179: 1 | H179: 1 | I179: 1 | J179: 1 | K179: 1 | L179: 1 | M179: 1 | N179: 1
A180: 2055 | B180: U5 L4 | D180: 0.54 | E180: 2 | F180: 1.08 | G180: 1 | H180: 1 | I180: 1 | J180: 1 | K180: 1 | L180: 1 | M180: 1 | N180: 1
A181: 2061 | B181: U5 U6 | D181: =0.6+7/16+3/8 -> 1.4125 | E181: 2 | F181: 2.825 | G181: 1 | H181: 1 | I181: 1 | J181: 1 | K181: 1 | L181: 1 | M181: 1 | N181: 1
A182: 2062 | B182: U6 U7 | D182: =0.6+3/8+3/8 -> 1.35 | E182: 2 | F182: 2.7 | G182: 1 | H182: 1 | I182: 1 | J182: 1 | K182: 1 | L182: 1 | M182: 1 | N182: 1
A183: 2063 | B183: U6 L6 | D183: =0.516+0.125 -> 0.641 | E183: 2 | F183: 1.282 | G183: 1 | H183: 1 | I183: 1 | J183: 1 | K183: 1 | L183: 1 | M183: 1 | N183: 1
A184: 2064 | B184: U6 L5 | D184: 0.54 | E184: 2 | F184: =D184*E184 -> 1.08 | G184: 1 | H184: 1 | I184: 1 | J184: 1 | K184: 1 | L184: 1 | M184: 1 | N184: 1
A185: 2071 | B185: U6 U7 | D185: =0.6+3/8+3/8 -> 1.35 | E185: 2 | F185: 2.7 | G185: 1 | H185: 1 | I185: 1 | J185: 1 | K185: 1 | L185: 1 | M185: 1 | N185: 1
A186: 2072 | B186: U7 U8 | D186: =0.5+3/8+3/8 -> 1.25 | E186: 2 | F186: 2.5 | G186: 1 | H186: 1 | I186: 1 | J186: 1 | K186: 1 | L186: 1 | M186: 1 | N186: 1
A187: 2073 | B187: U7 L7 | D187: =0.516+0.125 -> 0.641 | E187: 2 | F187: 1.282 | G187: 1 | H187: 1 | I187: 1 | J187: 1 | K187: 1 | L187: 1 | M187: 1 | N187: 1
A188: 2074 | B188: U7 L6 | D188: 0.576 | E188: 2 | F188: 1.152 | G188: 1 | H188: 1 | I188: 1 | J188: 1 | K188: 1 | L188: 1 | M188: 1 | N188: 1
A189: 2081 | B189: U7 U8 | D189: =0.5+3/8+3/8 -> 1.25 | E189: 2 | F189: 2.5 | G189: 1 | H189: 1 | I189: 1 | J189: 1 | K189: 1 | L189: 1 | M189: 1 | N189: 1
A190: 2082 | B190: U8 U9 | D190: =0.7+3/16+3/8 -> 1.2625 | E190: 2 | F190: 2.525 | G190: 1 | H190: 1 | I190: 1 | J190: 1 | K190: 1 | L190: 1 | M190: 1 | N190: 1
A191: 2083 | B191: U8 L8 | D191: 0.606 | E191: 2 | F191: 1.212 | G191: 1 | H191: 1 | I191: 1 | J191: 1 | K191: 1 | L191: 1 | M191: 1 | N191: 1
A192: 2084 | B192: U8 L7 | D192: 0.576 | E192: 2 | F192: 1.152 | G192: 1 | H192: 1 | I192: 1 | J192: 1 | K192: 1 | L192: 1 | M192: 1 | N192: 1
A193: 2091 | B193: U8 U9 | D193: =0.7+5/16+7/16 -> 1.45 | E193: 2 | F193: 2.9 | G193: 1 | H193: 1 | I193: 1 | J193: 1 | K193: 1 | L193: 1 | M193: 1 | N193: 1
A194: 2092 | B194: U9 L10 | D194: =0.6+3/8 -> 0.975 | E194: 2 | F194: 1.95 | G194: 1 | H194: 1 | I194: 1 | J194: 1 | K194: 1 | L194: 1 | M194: 1 | N194: 1
A195: 2093 | B195: U9 L9 | D195: =0.516+0.125 -> 0.641 | E195: 2 | F195: 1.282 | G195: 1 | H195: 1 | I195: 1 | J195: 1 | K195: 1 | L195: 1 | M195: 1 | N195: 1
A196: 2094 | B196: U9 L8 | D196: 0.606 | E196: 2 | F196: 1.212 | G196: 1 | H196: 1 | I196: 1 | J196: 1 | K196: 1 | L196: 1 | M196: 1 | N196: 1
A201: Table | B201: 6 | I201: Table | J201: 6a
A202: Total Number of Connectors for Both Plates at Member Ends (Each) | I202: Connection Length For One Line of Connrctors For One Plate at Member Ends (Each)
A203: ID | B203: Joint | C203: U/L Chord (LT) | D203: U/L Chord (RT) | E203: Diagonal (LT) | F203: Diagonal (RT) | G203: Vertical | I203: ID | J203: Joint | K203: U/L Chord (LT) | L203: U/L Chord (RT) | M203: Diagonal (LT) | N203: Diagonal (RT) | O203: Vertical
A204: 100 | B204: L0 | C204: None | D204: 52 | E204: None | F204: 80 | G204: None | I204: 100 | J204: L0 | K204: None | L204: 22.5 | M204: None | N204: 31.5 | O204: None
A205: 101 | B205: L1 | C205: None | D205: None | E205: None | F205: None | G205: 28 | I205: 101 | J205: L1 | K205: None | L205: None | M205: None | N205: None | O205: 22.75
A206: 102 | B206: L2 | C206: =2*30 -> 60 | D206: =2*86 -> 172 | E206: 40 | F206: None | G206: 36 | I206: 102 | J206: L2 | K206: 14 | L206: 44 | M206: 28.5 | N206: None | O206: 27.25
A207: 103 | B207: L3 | C207: =2*36 -> 72 | D207: =2*78 -> 156 | E207: 28 | F207: None | G207: 28 | I207: 103 | J207: L3 | K207: 16 | L207: 41.25 | M207: 17.729 | N207: None | O207: 23.5
A208: 104 | B208: L4 | C208: =2*36 -> 72 | D208: =2*78 -> 156 | E208: 28 | F208: 20 | G208: 24 | I208: 104 | J208: L4 | K208: 16.875 | L208: 46.375 | M208: 19.5 | N208: 13.5 | O208: 20.9
A209: 105 | B209: L5 | C209: None | D209: None | E209: 20 | F209: 20 | G209: 24 | I209: 105 | J209: L5 | K209: None | L209: None | M209: 12.5 | N209: 12.5 | O209: 18.5
A210: 106 | B210: L6 | C210: =2*78 -> 156 | D210: =2*36 -> 72 | E210: 20 | F210: 28 | G210: 24 | I210: 106 | J210: L6 | K210: 46.375 | L210: 16.875 | M210: 13.5 | N210: 19.5 | O210: 20.9
A211: 107 | B211: L7 | C211: =2*78 -> 156 | D211: =2*36 -> 72 | E211: None | F211: 28 | G211: 28 | I211: 107 | J211: L7 | K211: 41.25 | L211: 16 | M211: None | N211: 17.729 | O211: 23.5
A212: 108 | B212: L8 | C212: =2*86 -> 172 | D212: =2*30 -> 60 | E212: None | F212: 40 | G212: 36 | I212: 108 | J212: L8 | K212: 44 | L212: 14 | M212: None | N212: 28.5 | O212: 27.25
A213: 109 | B213: L9 | C213: None | D213: None | E213: None | F213: None | G213: 28 | I213: 109 | J213: L9 | K213: None | L213: None | M213: None | N213: None | O213: 22.75
A214: 110 | B214: L10 | C214: 52 | D214: None | E214: 80 | F214: None | G214: None | I214: 110 | J214: L10 | K214: 22.5 | L214: None | M214: 31.5 | N214: None | O214: None
A215: 201 | B215: U1 | C215: None | D215: 54 | E215: =2*64 -> 128 | F215: 40 | G215: 24 | I215: 201 | J215: U1 | K215: None | L215: 23 | M215: 26.75 | N215: 25.5 | O215: 16.5
A216: 202 | B216: U2 | C216: =2*36 -> 72 | D216: =2*38 -> 76 | E216: None | F216: 28 | G216: 28 | I216: 202 | J216: U2 | K216: 15.301 | L216: 17.42 | M216: None | N216: 20.5 | O216: 16.5
A217: 203 | B217: U3 | C217: =2*40 -> 80 | D217: =2*40 -> 80 | E217: None | F217: 28 | G217: 24 | I217: 203 | J217: U3 | K217: 18.58 | L217: 20.635 | M217: None | N217: 19.5 | O217: 19
A218: 204 | B218: U4 | C218: =2*32 -> 64 | D218: =2*36 -> 72 | E218: None | F218: 20 | G218: 20 | I218: 204 | J218: U4 | K218: 12.111 | L218: 17 | M218: None | N218: 13.5 | O218: 13.5
A219: 205 | B219: U5 | C219: None | D219: None | E219: 20 | F219: 20 | G219: 16 | I219: 205 | J219: U5 | K219: None | L219: None | M219: 13.5 | N219: 13.5 | O219: 13.5
A220: 206 | B220: U6 | C220: =2*36 -> 72 | D220: =2*32 -> 64 | E220: 20 | F220: None | G220: 20 | I220: 206 | J220: U6 | K220: 17 | L220: 12.111 | M220: 13.5 | N220: None | O220: 13.5
A221: 207 | B221: U7 | C221: =2*40 -> 80 | D221: =2*40 -> 80 | E221: 28 | F221: None | G221: 24 | I221: 207 | J221: U7 | K221: 20.635 | L221: 18.58 | M221: 19.5 | N221: None | O221: 19
A222: 208 | B222: U8 | C222: =2*38 -> 76 | D222: =2*36 -> 72 | E222: 28 | F222: None | G222: 28 | I222: 208 | J222: U8 | K222: 17.42 | L222: 15.301 | M222: 20.5 | N222: None | O222: 16.5
A223: 209 | B223: U9 | C223: 54 | D223: None | E223: 40 | F223: =2*64 -> 128 | G223: 24 | I223: 209 | J223: U9 | K223: 23 | L223: None | M223: 25.5 | N223: 26.75 | O223: 16.5
A251: Table | B251: =1+B201 -> 7
A252: Member Angle Perpendicular to The Gusset Plate Horizontal Shear Axis | H252: Note: Enter angles closest to plate axis (x or y direction)
A253: ID | B253: Joint | C253: U/L Chord (LT) | D253: U/L Chord (RT) | E253: Diagonal (LT) | F253: Diagonal (RT) | G253: Vertical | H253: CTY Note: Angle with Horizontal is to assumed shear horizontal axis for upper chord and the angle to the vertical is always measured CCW
A254: 100 | B254: L0 | C254: None | D254: 0 | E254: None | F254: 48.24 | G254: 90
A255: 101 | B255: L1 | C255: 0 | D255: 0 | E255: None | F255: None | G255: 90
A256: 102 | B256: L2 | C256: 0 | D256: 0 | E256: 48.24 | F256: None | G256: 90
A257: 103 | B257: L3 | C257: 0 | D257: 0 | E257: 54.2 | F257: None | G257: 90
A258: 104 | B258: L4 | C258: 0 | D258: 0 | E258: 57.12 | F258: 57.99 | G258: 90
A259: 105 | B259: L5 | C259: 0 | D259: 0 | E259: 57.99 | F259: 57.99 | G259: 90
A260: 106 | B260: L6 | C260: 0 | D260: 0 | E260: 57.99 | F260: 57.12 | G260: 90
A261: 107 | B261: L7 | C261: 0 | D261: 0 | E261: None | F261: 54.2 | G261: 90
A262: 108 | B262: L8 | C262: 0 | D262: 0 | E262: None | F262: 48.24 | G262: 90
A263: 109 | B263: L9 | C263: 0 | D263: 0 | E263: None | F263: None | G263: 90
A264: 110 | B264: L10 | C264: 0 | D264: 0 | E264: 48.24 | F264: None | G264: 90
A265: 201 | B265: U1 | C265: None | D265: 0 | E265: 33.31 | F265: 63.17 | G265: 75.07
A266: 202 | B266: U2 | C266: -5.84 | D266: 0 | E266: None | F266: 63.29 | G266: 80.91
A267: 203 | B267: U3 | C267: -6.04 | D267: 0 | E267: None | F267: 60.17 | G267: 86.95
A268: 204 | B268: U4 | C268: -3.05 | D268: 0 | E268: None | F268: 57.99 | G268: 90
A269: 205 | B269: U5 | C269: 0 | D269: 0 | E269: 57.99 | F269: 57.99 | G269: 90
A270: 206 | B270: U6 | C270: 0 | D270: -3.05 | E270: 57.99 | F270: None | G270: 90
... 340 more rows

Sheet Gusset Plate Rating Summary
A1: Start Joint ID | B1: 100 | F1: Made By: | G1: CTY | H1: Date: | I1: 2009-05-27
A2: End Joint ID | B2: 209 | F2: Checked By: | G2: JAK | H2: Date: | I2: 2009-05-28
A3: Spans 2 and 3 As-Built - Gusset Plate Ratings
A5: Joint Name | B5: HS-20 (Inventory) | C5: HS-20 (Operating) | D5: 2F1 (Operating) | E5: 3F1 (Operating) | F5: 4F1 (Operating) | G5: 5C1 (Operating) | H5: ODOT Truck Train (Operating) | I5: Edge Stiffeness AASHTO 10.16.11.3
A6: L0 | B6: 1.110713203 | C6: 1.854036655 | D6: 6.287571499 | E6: 4.133664048 | F6: 3.553392755 | G6: 2.60275153 | H6: 1.781261449 | I6: OK
A7: L1 | B7: 1.496267308 | C7: 2.497615429 | D7: 4.76517959 | E7: 3.21951096 | F7: 2.89428922 | G7: 3.302022096 | H7: 3.303639941 | I7: OK
A8: L2 | B8: 1.334855807 | C8: 2.228182385 | D8: 7.196384394 | E8: 4.736310583 | F8: 4.076464796 | G8: 3.019625906 | H8: 2.24140602 | I8: OK
A9: L3 | B9: 1.053492775 | C9: 1.758522556 | D9: 5.744060264 | E9: 3.785323967 | F9: 3.26315279 | G9: 2.444745948 | H9: 1.703971186 | I9: OK
A10: L4 | B10: 0.6684711985 | C10: 1.115832693 | D10: 3.715561827 | E10: 2.449076913 | F10: 2.10399725 | G10: 1.551005013 | H10: 1.104927663 | I10: OK
A11: L5 | B11: 1.453989744 | C11: 2.427044419 | D11: 5.85439319 | E11: 3.875611272 | F11: 3.356983396 | G11: 2.650526838 | H11: 2.429367691 | I11: OK
A12: L6 | B12: 0.6684711985 | C12: 1.115832693 | D12: 3.715561827 | E12: 2.449076913 | F12: 2.10399725 | G12: 1.551005013 | H12: 1.104927663 | I12: OK
A13: L7 | B13: 1.053492775 | C13: 1.758522556 | D13: 5.744060264 | E13: 3.785323967 | F13: 3.26315279 | G13: 2.444745948 | H13: 1.703971186 | I13: OK
A14: L8 | B14: 1.334855807 | C14: 2.228182385 | D14: 7.196384394 | E14: 4.736310583 | F14: 4.076464796 | G14: 3.019625906 | H14: 2.24140602 | I14: OK
A15: L9 | B15: 1.496267308 | C15: 2.497615429 | D15: 4.76517959 | E15: 3.21951096 | F15: 2.89428922 | G15: 3.302022096 | H15: 3.303639941 | I15: OK
A16: L10 | B16: 1.110713203 | C16: 1.854036655 | D16: 6.287571499 | E16: 4.133664048 | F16: 3.553392755 | G16: 2.60275153 | H16: 1.781261449 | I16: OK
A17: U1 | B17: 1.208862426 | C17: 2.017870357 | D17: 3.84987798 | E17: 2.601103298 | F17: 2.338350554 | G17: 2.667765593 | H17: 2.24140602 | I17: OK
A18: U2 | B18: 1.168501622 | C18: 1.950498862 | D18: 5.744060264 | E18: 3.785323967 | F18: 3.26315279 | G18: 2.452498735 | H18: 1.950755811 | I18: OK
A19: U3 | B19: 1.475685157 | C19: 2.463259069 | D19: 6.610564435 | E19: 4.365101845 | F19: 3.7699025 | G19: 2.890786581 | H19: 2.440074664 | I19: OK
A20: U4 | B20: 1.453989744 | C20: 2.427044419 | D20: 5.85439319 | E20: 3.875611272 | F20: 3.356983396 | G20: 2.650526838 | H20: 2.429367691 | I20: OK
A21: U5 | B21: 2.206931453 | C21: 3.683877887 | D21: 8.29233689 | E21: 5.508679326 | F21: 4.595411782 | G21: 3.966190072 | H21: 3.966190072 | I21: OK
A22: U6 | B22: 1.453989744 | C22: 2.427044419 | D22: 5.85439319 | E22: 3.875611272 | F22: 3.356983396 | G22: 2.650526838 | H22: 2.429367691 | I22: OK
A23: U7 | B23: 1.475685157 | C23: 2.463259069 | D23: 6.610564435 | E23: 4.365101845 | F23: 3.7699025 | G23: 2.890786581 | H23: 2.440074664 | I23: OK
A24: U8 | B24: 1.168501622 | C24: 1.950498862 | D24: 5.744060264 | E24: 3.785323967 | F24: 3.26315279 | G24: 2.452498735 | H24: 1.950755811 | I24: OK
A25: U9 | B25: 1.208862426 | C25: 2.017870357 | D25: 3.84987798 | E25: 2.601103298 | F25: 2.338350554 | G25: 2.667765593 | H25: 2.24140602 | I25: OK
